Date,Purpose/Category (T),Department/Service (T),Amount Excl VAT,Beneficiary (T)
21/04/2021,Local Restrictions Support Grants � Mandatory Closed (COVID-19),Local Restrictions Support Grants (COVID-19),535.71,1 Oak Limited
21/04/2021,Local Restrictions Support Grants � Mandatory Closed (COVID-19),Local Restrictions Support Grants (COVID-19),"1,500.00",1 Oak Limited
21/04/2021,Local Restrictions Support Grants � Mandatory Closed (COVID-19),Local Restrictions Support Grants (COVID-19),"1,500.00",1 Oak Limited
21/04/2021,Local Restrictions Support Grants � Mandatory Closed (COVID-19),Local Restrictions Support Grants (COVID-19),"4,500.00",1 Oak Limited
21/04/2021,Local Restrictions Support Grants � Mandatory Closed (COVID-19),Local Restrictions Support Grants (COVID-19),"4,714.00",1 Oak Limited
21/04/2021,Closed Business Lockdown Grants (COVID-19),Closed Business Lockdown Grants (COVID-19),"9,000.00",1 Oak Limited
02/06/2021,Restart Grant - Strand Two (COVID-19),Restart Grants (COVID-19),"18,000.00",1 Oak Limited
14/04/2021,Restart Grant - Strand Two (COVID-19),Restart Grants (COVID-19),"8,000.00",1 Oak Ltd t/a Starbucks
14/04/2021,Restart Grant - Strand One (COVID-19),Restart Grants (COVID-19),"6,000.00",141 Products Ltd
14/04/2021,Restart Grant - Strand Two (COVID-19),Restart Grants (COVID-19),"8,000.00",1st Uttoxeter Scount Group
14/04/2021,Restart Grant - Strand Two (COVID-19),Restart Grants (COVID-19),"8,000.00",2 Old Hall Cottage
12/05/2021,Restart Grant - Strand Two (COVID-19),Restart Grants (COVID-19),"8,000.00",22nd Burton (St Marks) Scout Council
14/04/2021,Restart Grant - Strand Two (COVID-19),Restart Grants (COVID-19),"8,000.00",38 High Street Ltd
19/05/2021,Local Restrictions Support Grants � Discretionary (COVID-19),Local Restrictions Support Grants (COVID-19),"10,000.00",3G Auto Ltd
27/04/2021,Commuted Sum Expenditure,Enterprise,"60,000.00",65-68 Burton High Street Limited
14/04/2021,Restart Grant - Strand Two (COVID-19),Restart Grants (COVID-19),"8,000.00",99 Station Street Limited
14/04/2021,Restart Grant - Strand Two (COVID-19),Restart Grants (COVID-19),"8,000.00",A and G Uttoxeter
14/04/2021,Restart Grant - Strand Two (COVID-19),Restart Grants (COVID-19),"8,000.00",A and G Uttoxeter
14/04/2021,Restart Grant - Strand Two (COVID-19),Restart Grants (COVID-19),"8,000.00",A and G Uttoxeter
14/04/2021,Restart Grant - Strand Two (COVID-19),Restart Grants (COVID-19),"12,000.00",A and G Uttoxeter
14/04/2021,Restart Grant - Strand One (COVID-19),Restart Grants (COVID-19),"2,667.00",A Bunch of Blooms
28/04/2021,Local Restrictions Support Grants � Discretionary (COVID-19),Local Restrictions Support Grants (COVID-19),"10,000.00",A Handyman Can Ltd
14/04/2021,Restart Grant - Strand One (COVID-19),Restart Grants (COVID-19),"6,000.00",A Write Card Ltd
05/05/2021,Repairs & Maintenance to Buildings,Facilities Management,"1,200.00",AAC Air Conditioning Ltd
05/05/2021,Repairs & Maintenance to Buildings,Facilities Management,"2,845.00",AAC Air Conditioning Ltd
16/06/2021,Local Restrictions Support Grants � Discretionary (COVID-19),Local Restrictions Support Grants (COVID-19),"10,000.00",AAKWA Group Ltd
14/04/2021,Restart Grant - Strand Two (COVID-19),Restart Grants (COVID-19),"12,000.00",Abbots Bromley Village Hall
19/05/2021,Local Restrictions Support Grants � Discretionary (COVID-19),Local Restrictions Support Grants (COVID-19),"10,000.00",ABC Training Services Ltd
05/05/2021,Local Restrictions Support Grants � Discretionary (COVID-19),Local Restrictions Support Grants (COVID-19),"10,000.00",ACE Golf Challenge
14/04/2021,Restart Grant - Strand Two (COVID-19),Restart Grants (COVID-19),"8,000.00",Active Athlete Ltd
14/04/2021,Restart Grant - Strand One (COVID-19),Restart Grants (COVID-19),"4,000.00",AD07 Trading Ltd
02/06/2021,Local Restrictions Support Grants � Discretionary (COVID-19),Local Restrictions Support Grants (COVID-19),"5,000.00",Advance LED Lighting Solutions Ltd
30/06/2021,Restart Grant - Strand Two (COVID-19),Restart Grants (COVID-19),"18,000.00",Ago Hotels Ltd
14/04/2021,Restart Grant - Strand One (COVID-19),Restart Grants (COVID-19),"2,667.00",Ahoy Sailor Vintage
31/03/2021,Consultants,Business Rate Collection,950.00,Airey Consultancy Services Ltd
02/06/2021,Restart Grant - Strand Two (COVID-19),Restart Grants (COVID-19),"8,000.00",AJ�s
14/04/2021,Restart Grant - Strand One (COVID-19),Restart Grants (COVID-19),"4,000.00",Albion Bathrooms Ltd
14/04/2021,Restart Grant - Strand Two (COVID-19),Restart Grants (COVID-19),"8,000.00",Allestree
28/04/2021,Restart Grant - Strand One (COVID-19),Restart Grants (COVID-19),"2,667.00",Allora Fashion Ltd
28/04/2021,Restart Grant - Strand One (COVID-19),Restart Grants (COVID-19),"2,667.00",Allora Fashion Ltd
14/04/2021,Restart Grant - Strand Two (COVID-19),Restart Grants (COVID-19),"8,000.00",Allora Fashion Ltd
14/04/2021,Restart Grant - Strand One (COVID-19),Restart Grants (COVID-19),"4,000.00",Alpha One Retail Ltd
07/04/2021,Local Restrictions Support Grants � Discretionary (COVID-19),Local Restrictions Support Grants (COVID-19),"10,000.00",AM Chartered Management Accountants
14/04/2021,Restart Grant - Strand Two (COVID-19),Restart Grants (COVID-19),"12,000.00",Amber Taverns Limited
15/04/2021,Test and Trace Payments - Standard Scheme (COVID-19),Test and Trace Payments (COVID-19),500.00,An Individual
27/05/2021,Test and Trace Payments - Standard Scheme (COVID-19),Test and Trace Payments (COVID-19),500.00,An Individual
13/04/2021,Test and Trace Payments - Standard Scheme (COVID-19),Test and Trace Payments (COVID-19),500.00,An Individual
20/04/2021,Test and Trace Payments - Local Discretionary Scheme (COVID-19),Test and Trace Payments (COVID-19),500.00,An Individual
03/06/2021,Test and Trace Payments - Standard Scheme (COVID-19),Test and Trace Payments (COVID-19),500.00,An Individual
24/06/2021,Test and Trace Payments - Standard Scheme (COVID-19),Test and Trace Payments (COVID-19),500.00,An Individual
10/06/2021,Test and Trace Payments - Local Discretionary Scheme (COVID-19),Test and Trace Payments (COVID-19),500.00,An Individual
20/04/2021,Test and Trace Payments - Local Discretionary Scheme (COVID-19),Test and Trace Payments (COVID-19),500.00,An Individual
24/06/2021,Test and Trace Payments - Standard Scheme (COVID-19),Test and Trace Payments (COVID-19),500.00,An Individual
17/06/2021,Test and Trace Payments - Local Discretionary Scheme (COVID-19),Test and Trace Payments (COVID-19),500.00,An Individual
24/06/2021,Test and Trace Payments - Local Discretionary Scheme (COVID-19),Test and Trace Payments (COVID-19),500.00,An Individual
04/05/2021,Test and Trace Payments - Standard Scheme (COVID-19),Test and Trace Payments (COVID-19),500.00,An Individual
08/06/2021,Test and Trace Payments - Standard Scheme (COVID-19),Test and Trace Payments (COVID-19),500.00,An Individual
11/05/2021,Test and Trace Payments - Local Discretionary Scheme (COVID-19),Test and Trace Payments (COVID-19),500.00,An Individual
13/04/2021,Test and Trace Payments - Standard Scheme (COVID-19),Test and Trace Payments (COVID-19),500.00,An Individual
04/05/2021,Test and Trace Payments - Standard Scheme (COVID-19),Test and Trace Payments (COVID-19),500.00,An Individual
20/05/2021,Test and Trace Payments - Standard Scheme (COVID-19),Test and Trace Payments (COVID-19),500.00,An Individual
13/04/2021,Test and Trace Payments - Standard Scheme (COVID-19),Test and Trace Payments (COVID-19),500.00,An Individual
22/04/2021,Test and Trace Payments - Standard Scheme (COVID-19),Test and Trace Payments (COVID-19),500.00,An Individual
13/04/2021,Test and Trace Payments - Local Discretionary Scheme (COVID-19),Test and Trace Payments (COVID-19),500.00,An Individual
10/06/2021,Test and Trace Payments - Local Discretionary Scheme (COVID-19),Test and Trace Payments (COVID-19),500.00,An Individual
27/05/2021,Test and Trace Payments - Local Discretionary Scheme (COVID-19),Test and Trace Payments (COVID-19),500.00,An Individual
08/04/2021,Test and Trace Payments - Local Discretionary Scheme (COVID-19),Test and Trace Payments (COVID-19),500.00,An Individual
17/06/2021,Test and Trace Payments - Local Discretionary Scheme (COVID-19),Test and Trace Payments (COVID-19),500.00,An Individual
15/04/2021,Test and Trace Payments - Standard Scheme (COVID-19),Test and Trace Payments (COVID-19),500.00,An Individual
20/04/2021,Test and Trace Payments - Standard Scheme (COVID-19),Test and Trace Payments (COVID-19),500.00,An Individual
08/04/2021,Test and Trace Payments - Standard Scheme (COVID-19),Test and Trace Payments (COVID-19),500.00,An Individual
13/04/2021,Test and Trace Payments - Standard Scheme (COVID-19),Test and Trace Payments (COVID-19),500.00,An Individual
03/06/2021,Test and Trace Payments - Local Discretionary Scheme (COVID-19),Test and Trace Payments (COVID-19),500.00,An Individual
03/06/2021,Test and Trace Payments - Local Discretionary Scheme (COVID-19),Test and Trace Payments (COVID-19),500.00,An Individual
10/06/2021,Test and Trace Payments - Local Discretionary Scheme (COVID-19),Test and Trace Payments (COVID-19),500.00,An Individual
17/06/2021,Test and Trace Payments - Local Discretionary Scheme (COVID-19),Test and Trace Payments (COVID-19),500.00,An Individual
13/05/2021,Test and Trace Payments - Local Discretionary Scheme (COVID-19),Test and Trace Payments (COVID-19),500.00,An Individual
27/04/2021,Test and Trace Payments - Standard Scheme (COVID-19),Test and Trace Payments (COVID-19),500.00,An Individual
20/05/2021,Test and Trace Payments - Standard Scheme (COVID-19),Test and Trace Payments (COVID-19),500.00,An Individual
27/05/2021,Test and Trace Payments - Local Discretionary Scheme (COVID-19),Test and Trace Payments (COVID-19),500.00,An Individual
08/04/2021,Test and Trace Payments - Standard Scheme (COVID-19),Test and Trace Payments (COVID-19),500.00,An Individual
08/04/2021,Test and Trace Payments - Standard Scheme (COVID-19),Test and Trace Payments (COVID-19),500.00,An Individual
22/04/2021,Test and Trace Payments - Local Discretionary Scheme (COVID-19),Test and Trace Payments (COVID-19),500.00,An Individual
27/05/2021,Test and Trace Payments - Standard Scheme (COVID-19),Test and Trace Payments (COVID-19),500.00,An Individual
24/06/2021,Test and Trace Payments - Local Discretionary Scheme (COVID-19),Test and Trace Payments (COVID-19),500.00,An Individual
08/04/2021,Test and Trace Payments - Standard Scheme (COVID-19),Test and Trace Payments (COVID-19),500.00,An Individual
27/04/2021,Test and Trace Payments - Standard Scheme (COVID-19),Test and Trace Payments (COVID-19),500.00,An Individual
11/05/2021,Test and Trace Payments - Local Discretionary Scheme (COVID-19),Test and Trace Payments (COVID-19),500.00,An Individual
13/04/2021,Test and Trace Payments - Standard Scheme (COVID-19),Test and Trace Payments (COVID-19),500.00,An Individual
27/04/2021,Test and Trace Payments - Standard Scheme (COVID-19),Test and Trace Payments (COVID-19),500.00,An Individual
27/05/2021,Test and Trace Payments - Local Discretionary Scheme (COVID-19),Test and Trace Payments (COVID-19),500.00,An Individual
06/04/2021,Test and Trace Payments - Standard Scheme (COVID-19),Test and Trace Payments (COVID-19),500.00,An Individual
04/05/2021,Test and Trace Payments - Local Discretionary Scheme (COVID-19),Test and Trace Payments (COVID-19),500.00,An Individual
08/04/2021,Test and Trace Payments - Standard Scheme (COVID-19),Test and Trace Payments (COVID-19),500.00,An Individual
13/04/2021,Test and Trace Payments - Standard Scheme (COVID-19),Test and Trace Payments (COVID-19),500.00,An Individual
04/05/2021,Test and Trace Payments - Local Discretionary Scheme (COVID-19),Test and Trace Payments (COVID-19),500.00,An Individual
04/05/2021,Test and Trace Payments - Local Discretionary Scheme (COVID-19),Test and Trace Payments (COVID-19),500.00,An Individual
22/04/2021,Test and Trace Payments - Local Discretionary Scheme (COVID-19),Test and Trace Payments (COVID-19),500.00,An Individual
06/04/2021,Test and Trace Payments - Local Discretionary Scheme (COVID-19),Test and Trace Payments (COVID-19),500.00,An Individual
13/04/2021,Test and Trace Payments - Local Discretionary Scheme (COVID-19),Test and Trace Payments (COVID-19),500.00,An Individual
15/04/2021,Test and Trace Payments - Local Discretionary Scheme (COVID-19),Test and Trace Payments (COVID-19),500.00,An Individual
06/04/2021,Test and Trace Payments - Standard Scheme (COVID-19),Test and Trace Payments (COVID-19),500.00,An Individual
17/06/2021,Test and Trace Payments - Local Discretionary Scheme (COVID-19),Test and Trace Payments (COVID-19),500.00,An Individual
20/04/2021,Test and Trace Payments - Local Discretionary Scheme (COVID-19),Test and Trace Payments (COVID-19),500.00,An Individual
08/06/2021,Test and Trace Payments - Standard Scheme (COVID-19),Test and Trace Payments (COVID-19),500.00,An Individual
20/05/2021,Test and Trace Payments - Standard Scheme (COVID-19),Test and Trace Payments (COVID-19),500.00,An Individual
27/05/2021,Test and Trace Payments - Standard Scheme (COVID-19),Test and Trace Payments (COVID-19),500.00,An Individual
17/06/2021,Test and Trace Payments - Local Discretionary Scheme (COVID-19),Test and Trace Payments (COVID-19),500.00,An Individual
24/06/2021,Test and Trace Payments - Standard Scheme (COVID-19),Test and Trace Payments (COVID-19),500.00,An Individual
24/06/2021,Test and Trace Payments - Standard Scheme (COVID-19),Test and Trace Payments (COVID-19),500.00,An Individual
14/04/2021,Local Restrictions Support Grants � Mandatory Closed (COVID-19),Local Restrictions Support Grants (COVID-19),667.00,An Individual
14/04/2021,Local Restrictions Support Grants � Mandatory Closed (COVID-19),Local Restrictions Support Grants (COVID-19),667.00,An Individual
21/04/2021,Local Restrictions Support Grants � Mandatory Closed (COVID-19),Local Restrictions Support Grants (COVID-19),667.00,An Individual
21/04/2021,Local Restrictions Support Grants � Mandatory Closed (COVID-19),Local Restrictions Support Grants (COVID-19),667.00,An Individual
09/06/2021,Consultants,Management Local Outbreaks - SCC Grant Env Health (COVID-19),903.00,An Individual
11/06/2021,Consultants,Management Local Outbreaks - SCC Grant Env Health (COVID-19),"1,043.00",An Individual
26/03/2021,Arts Worker Fees,Arts Programme - Community Arts Development,"1,250.00",An Individual
30/03/2021,Arts Worker Fees,Arts Development,"1,250.00",An Individual
14/04/2021,Local Restrictions Support Grants � Mandatory Closed (COVID-19),Local Restrictions Support Grants (COVID-19),"1,334.00",An Individual
07/04/2021,Local Restrictions Support Grants � Mandatory Closed (COVID-19),Local Restrictions Support Grants (COVID-19),"1,334.00",An Individual
14/04/2021,Local Restrictions Support Grants � Mandatory Closed (COVID-19),Local Restrictions Support Grants (COVID-19),"1,334.00",An Individual
14/04/2021,Local Restrictions Support Grants � Mandatory Closed (COVID-19),Local Restrictions Support Grants (COVID-19),"1,334.00",An Individual
21/04/2021,Local Restrictions Support Grants � Mandatory Closed (COVID-19),Local Restrictions Support Grants (COVID-19),"1,334.00",An Individual
28/05/2021,Advance of Salary,Advance of Salary,"1,656.48",An Individual
20/05/2021,Flood Compensation Payments,Flood Compensation Payments,"1,827.40",An Individual
14/04/2021,Local Restrictions Support Grants � Mandatory Closed (COVID-19),Local Restrictions Support Grants (COVID-19),"2,001.00",An Individual
07/04/2021,Local Restrictions Support Grants � Mandatory Closed (COVID-19),Local Restrictions Support Grants (COVID-19),"2,001.00",An Individual
21/04/2021,Local Restrictions Support Grants � Mandatory Closed (COVID-19),Local Restrictions Support Grants (COVID-19),"2,001.00",An Individual
14/04/2021,Local Restrictions Support Grants � Mandatory Closed (COVID-19),Local Restrictions Support Grants (COVID-19),"2,001.00",An Individual
14/04/2021,Local Restrictions Support Grants � Mandatory Closed (COVID-19),Local Restrictions Support Grants (COVID-19),"2,001.00",An Individual
21/04/2021,Local Restrictions Support Grants � Mandatory Closed (COVID-19),Local Restrictions Support Grants (COVID-19),"2,001.00",An Individual
20/05/2021,Flood Compensation Payments,Flood Compensation Payments,"2,015.00",An Individual
14/04/2021,Local Restrictions Support Grants � Mandatory Closed (COVID-19),Local Restrictions Support Grants (COVID-19),"2,096.00",An Individual
07/04/2021,Local Restrictions Support Grants � Mandatory Closed (COVID-19),Local Restrictions Support Grants (COVID-19),"2,096.00",An Individual
21/04/2021,Local Restrictions Support Grants � Mandatory Closed (COVID-19),Local Restrictions Support Grants (COVID-19),"2,096.00",An Individual
14/04/2021,Local Restrictions Support Grants � Mandatory Closed (COVID-19),Local Restrictions Support Grants (COVID-19),"2,096.00",An Individual
28/04/2021,Local Restrictions Support Grants � Mandatory Closed (COVID-19),Local Restrictions Support Grants (COVID-19),"2,096.00",An Individual
14/04/2021,Local Restrictions Support Grants � Mandatory Closed (COVID-19),Local Restrictions Support Grants (COVID-19),"2,096.00",An Individual
19/05/2021,Local Restrictions Support Grants � Mandatory Closed (COVID-19),Local Restrictions Support Grants (COVID-19),"2,096.00",An Individual
21/04/2021,Local Restrictions Support Grants � Mandatory Closed (COVID-19),Local Restrictions Support Grants (COVID-19),"2,096.00",An Individual
20/05/2021,Flood Compensation Payments,Flood Compensation Payments,"2,184.00",An Individual
08/04/2021,Other Fees & Charges,Police Elections,"2,500.00",An Individual
01/06/2021,Flood Compensation Payments,Flood Compensation Payments,"2,510.00",An Individual
14/04/2021,Restart Grant - Strand One (COVID-19),Restart Grants (COVID-19),"2,667.00",An Individual
14/04/2021,Restart Grant - Strand One (COVID-19),Restart Grants (COVID-19),"2,667.00",An Individual
28/04/2021,Restart Grant - Strand One (COVID-19),Restart Grants (COVID-19),"2,667.00",An Individual
14/04/2021,Restart Grant - Strand One (COVID-19),Restart Grants (COVID-19),"2,667.00",An Individual
14/04/2021,Restart Grant - Strand One (COVID-19),Restart Grants (COVID-19),"2,667.00",An Individual
14/04/2021,Restart Grant - Strand One (COVID-19),Restart Grants (COVID-19),"2,667.00",An Individual
14/04/2021,Restart Grant - Strand One (COVID-19),Restart Grants (COVID-19),"2,667.00",An Individual
14/04/2021,Restart Grant - Strand One (COVID-19),Restart Grants (COVID-19),"2,667.00",An Individual
14/04/2021,Restart Grant - Strand One (COVID-19),Restart Grants (COVID-19),"2,667.00",An Individual
14/04/2021,Restart Grant - Strand One (COVID-19),Restart Grants (COVID-19),"2,667.00",An Individual
14/04/2021,Restart Grant - Strand One (COVID-19),Restart Grants (COVID-19),"2,667.00",An Individual
30/06/2021,Restart Grant - Strand One (COVID-19),Restart Grants (COVID-19),"2,667.00",An Individual
02/06/2021,Restart Grant - Strand One (COVID-19),Restart Grants (COVID-19),"2,667.00",An Individual
30/06/2021,Restart Grant - Strand One (COVID-19),Restart Grants (COVID-19),"2,667.00",An Individual
14/04/2021,Restart Grant - Strand One (COVID-19),Restart Grants (COVID-19),"2,667.00",An Individual
14/04/2021,Restart Grant - Strand One (COVID-19),Restart Grants (COVID-19),"2,667.00",An Individual
14/04/2021,Restart Grant - Strand One (COVID-19),Restart Grants (COVID-19),"2,667.00",An Individual
28/04/2021,Restart Grant - Strand One (COVID-19),Restart Grants (COVID-19),"2,667.00",An Individual
14/04/2021,Restart Grant - Strand One (COVID-19),Restart Grants (COVID-19),"2,667.00",An Individual
14/04/2021,Restart Grant - Strand One (COVID-19),Restart Grants (COVID-19),"2,667.00",An Individual
14/04/2021,Restart Grant - Strand One (COVID-19),Restart Grants (COVID-19),"2,667.00",An Individual
14/04/2021,Restart Grant - Strand One (COVID-19),Restart Grants (COVID-19),"2,667.00",An Individual
14/04/2021,Restart Grant - Strand One (COVID-19),Restart Grants (COVID-19),"2,667.00",An Individual
14/04/2021,Restart Grant - Strand One (COVID-19),Restart Grants (COVID-19),"2,667.00",An Individual
14/04/2021,Restart Grant - Strand One (COVID-19),Restart Grants (COVID-19),"2,667.00",An Individual
14/04/2021,Restart Grant - Strand One (COVID-19),Restart Grants (COVID-19),"2,667.00",An Individual
14/04/2021,Restart Grant - Strand One (COVID-19),Restart Grants (COVID-19),"2,667.00",An Individual
14/04/2021,Restart Grant - Strand One (COVID-19),Restart Grants (COVID-19),"2,667.00",An Individual
14/04/2021,Restart Grant - Strand One (COVID-19),Restart Grants (COVID-19),"2,667.00",An Individual
28/04/2021,Restart Grant - Strand One (COVID-19),Restart Grants (COVID-19),"2,667.00",An Individual
14/04/2021,Restart Grant - Strand One (COVID-19),Restart Grants (COVID-19),"2,667.00",An Individual
14/04/2021,Restart Grant - Strand One (COVID-19),Restart Grants (COVID-19),"2,667.00",An Individual
14/04/2021,Restart Grant - Strand One (COVID-19),Restart Grants (COVID-19),"2,667.00",An Individual
14/04/2021,Restart Grant - Strand One (COVID-19),Restart Grants (COVID-19),"2,667.00",An Individual
14/04/2021,Restart Grant - Strand One (COVID-19),Restart Grants (COVID-19),"2,667.00",An Individual
14/04/2021,Restart Grant - Strand One (COVID-19),Restart Grants (COVID-19),"2,667.00",An Individual
28/04/2021,Restart Grant - Strand One (COVID-19),Restart Grants (COVID-19),"2,667.00",An Individual
14/04/2021,Restart Grant - Strand One (COVID-19),Restart Grants (COVID-19),"2,667.00",An Individual
14/04/2021,Restart Grant - Strand One (COVID-19),Restart Grants (COVID-19),"2,667.00",An Individual
14/04/2021,Restart Grant - Strand One (COVID-19),Restart Grants (COVID-19),"2,667.00",An Individual
14/04/2021,Restart Grant - Strand One (COVID-19),Restart Grants (COVID-19),"2,667.00",An Individual
14/04/2021,Restart Grant - Strand One (COVID-19),Restart Grants (COVID-19),"2,667.00",An Individual
23/06/2021,Restart Grant - Strand One (COVID-19),Restart Grants (COVID-19),"2,667.00",An Individual
09/06/2021,Restart Grant - Strand One (COVID-19),Restart Grants (COVID-19),"2,667.00",An Individual
14/04/2021,Restart Grant - Strand One (COVID-19),Restart Grants (COVID-19),"2,667.00",An Individual
14/04/2021,Restart Grant - Strand One (COVID-19),Restart Grants (COVID-19),"2,667.00",An Individual
14/04/2021,Restart Grant - Strand One (COVID-19),Restart Grants (COVID-19),"2,667.00",An Individual
23/06/2021,Restart Grant - Strand One (COVID-19),Restart Grants (COVID-19),"2,667.00",An Individual
14/04/2021,Restart Grant - Strand One (COVID-19),Restart Grants (COVID-19),"2,667.00",An Individual
14/04/2021,Restart Grant - Strand One (COVID-19),Restart Grants (COVID-19),"2,667.00",An Individual
20/05/2021,Flood Compensation Payments,Flood Compensation Payments,"2,754.00",An Individual
01/06/2021,Flood Compensation Payments,Flood Compensation Payments,"2,834.00",An Individual
21/04/2021,Local Restrictions Support Grants � Mandatory Closed (COVID-19),Local Restrictions Support Grants (COVID-19),"3,000.00",An Individual
03/06/2021,Industrial Unit Deposits,Miscellaneous Properties,"3,000.00",An Individual
21/04/2021,Local Restrictions Support Grants � Mandatory Closed (COVID-19),Local Restrictions Support Grants (COVID-19),"3,143.00",An Individual
19/04/2021,Flood Compensation Payments,Flood Compensation Payments,"3,455.00",An Individual
06/05/2021,Flood Compensation Payments,Flood Compensation Payments,"3,536.40",An Individual
14/04/2021,Closed Business Lockdown Grants (COVID-19),Closed Business Lockdown Grants (COVID-19),"4,000.00",An Individual
14/04/2021,Restart Grant - Strand One (COVID-19),Restart Grants (COVID-19),"4,000.00",An Individual
07/04/2021,Closed Business Lockdown Grants (COVID-19),Closed Business Lockdown Grants (COVID-19),"4,000.00",An Individual
21/04/2021,Closed Business Lockdown Grants (COVID-19),Closed Business Lockdown Grants (COVID-19),"4,000.00",An Individual
14/04/2021,Closed Business Lockdown Grants (COVID-19),Closed Business Lockdown Grants (COVID-19),"4,000.00",An Individual
14/04/2021,Closed Business Lockdown Grants (COVID-19),Closed Business Lockdown Grants (COVID-19),"4,000.00",An Individual
14/04/2021,Restart Grant - Strand One (COVID-19),Restart Grants (COVID-19),"4,000.00",An Individual
21/04/2021,Closed Business Lockdown Grants (COVID-19),Closed Business Lockdown Grants (COVID-19),"4,000.00",An Individual
14/04/2021,Flood Compensation Payments,Flood Compensation Payments,"4,187.48",An Individual
20/05/2021,Flood Compensation Payments,Flood Compensation Payments,"4,626.00",An Individual
31/03/2021,Flood Compensation Payments,Flood Compensation Payments,"5,000.00",An Individual
11/05/2021,Contributions to Other Bodies,Police Elections,"5,000.00",An Individual
30/06/2021,Local Restrictions Support Grants � Discretionary (COVID-19),Local Restrictions Support Grants (COVID-19),"5,000.00",An Individual
31/03/2021,Flood Compensation Payments,Flood Compensation Payments,"5,000.00",An Individual
31/03/2021,Flood Compensation Payments,Flood Compensation Payments,"5,000.00",An Individual
06/05/2021,Flood Compensation Payments,Flood Compensation Payments,"5,000.00",An Individual
11/05/2021,Contributions to Other Bodies,Police Elections,"5,000.00",An Individual
06/05/2021,Flood Compensation Payments,Flood Compensation Payments,"5,000.00",An Individual
21/04/2021,Closed Business Lockdown Grants (COVID-19),Closed Business Lockdown Grants (COVID-19),"6,000.00",An Individual
14/04/2021,Restart Grant - Strand One (COVID-19),Restart Grants (COVID-19),"6,000.00",An Individual
14/04/2021,Restart Grant - Strand Two (COVID-19),Restart Grants (COVID-19),"8,000.00",An Individual
14/04/2021,Restart Grant - Strand Two (COVID-19),Restart Grants (COVID-19),"8,000.00",An Individual
14/04/2021,Restart Grant - Strand Two (COVID-19),Restart Grants (COVID-19),"8,000.00",An Individual
14/04/2021,Restart Grant - Strand Two (COVID-19),Restart Grants (COVID-19),"8,000.00",An Individual
14/04/2021,Restart Grant - Strand Two (COVID-19),Restart Grants (COVID-19),"8,000.00",An Individual
14/04/2021,Restart Grant - Strand Two (COVID-19),Restart Grants (COVID-19),"8,000.00",An Individual
14/04/2021,Restart Grant - Strand Two (COVID-19),Restart Grants (COVID-19),"8,000.00",An Individual
14/04/2021,Restart Grant - Strand Two (COVID-19),Restart Grants (COVID-19),"8,000.00",An Individual
14/04/2021,Restart Grant - Strand Two (COVID-19),Restart Grants (COVID-19),"8,000.00",An Individual
14/04/2021,Restart Grant - Strand Two (COVID-19),Restart Grants (COVID-19),"8,000.00",An Individual
14/04/2021,Restart Grant - Strand Two (COVID-19),Restart Grants (COVID-19),"8,000.00",An Individual
14/04/2021,Restart Grant - Strand Two (COVID-19),Restart Grants (COVID-19),"8,000.00",An Individual
28/04/2021,Restart Grant - Strand Two (COVID-19),Restart Grants (COVID-19),"8,000.00",An Individual
14/04/2021,Restart Grant - Strand Two (COVID-19),Restart Grants (COVID-19),"8,000.00",An Individual
14/04/2021,Restart Grant - Strand Two (COVID-19),Restart Grants (COVID-19),"8,000.00",An Individual
14/04/2021,Restart Grant - Strand Two (COVID-19),Restart Grants (COVID-19),"8,000.00",An Individual
14/04/2021,Restart Grant - Strand Two (COVID-19),Restart Grants (COVID-19),"8,000.00",An Individual
14/04/2021,Restart Grant - Strand Two (COVID-19),Restart Grants (COVID-19),"8,000.00",An Individual
14/04/2021,Restart Grant - Strand Two (COVID-19),Restart Grants (COVID-19),"8,000.00",An Individual
02/06/2021,Restart Grant - Strand Two (COVID-19),Restart Grants (COVID-19),"8,000.00",An Individual
14/04/2021,Restart Grant - Strand Two (COVID-19),Restart Grants (COVID-19),"8,000.00",An Individual
14/04/2021,Restart Grant - Strand Two (COVID-19),Restart Grants (COVID-19),"8,000.00",An Individual
14/04/2021,Restart Grant - Strand Two (COVID-19),Restart Grants (COVID-19),"8,000.00",An Individual
14/04/2021,Restart Grant - Strand Two (COVID-19),Restart Grants (COVID-19),"8,000.00",An Individual
14/04/2021,Restart Grant - Strand Two (COVID-19),Restart Grants (COVID-19),"8,000.00",An Individual
14/04/2021,Restart Grant - Strand Two (COVID-19),Restart Grants (COVID-19),"8,000.00",An Individual
14/04/2021,Restart Grant - Strand Two (COVID-19),Restart Grants (COVID-19),"8,000.00",An Individual
14/04/2021,Restart Grant - Strand Two (COVID-19),Restart Grants (COVID-19),"8,000.00",An Individual
14/04/2021,Restart Grant - Strand Two (COVID-19),Restart Grants (COVID-19),"8,000.00",An Individual
14/04/2021,Restart Grant - Strand Two (COVID-19),Restart Grants (COVID-19),"8,000.00",An Individual
14/04/2021,Restart Grant - Strand Two (COVID-19),Restart Grants (COVID-19),"8,000.00",An Individual
30/06/2021,Restart Grant - Strand Two (COVID-19),Restart Grants (COVID-19),"8,000.00",An Individual
14/04/2021,Restart Grant - Strand Two (COVID-19),Restart Grants (COVID-19),"8,000.00",An Individual
14/04/2021,Restart Grant - Strand Two (COVID-19),Restart Grants (COVID-19),"8,000.00",An Individual
14/04/2021,Restart Grant - Strand Two (COVID-19),Restart Grants (COVID-19),"8,000.00",An Individual
14/04/2021,Restart Grant - Strand Two (COVID-19),Restart Grants (COVID-19),"8,000.00",An Individual
14/04/2021,Restart Grant - Strand Two (COVID-19),Restart Grants (COVID-19),"8,000.00",An Individual
14/04/2021,Restart Grant - Strand Two (COVID-19),Restart Grants (COVID-19),"8,000.00",An Individual
14/04/2021,Restart Grant - Strand Two (COVID-19),Restart Grants (COVID-19),"8,000.00",An Individual
14/04/2021,Restart Grant - Strand Two (COVID-19),Restart Grants (COVID-19),"8,000.00",An Individual
14/04/2021,Restart Grant - Strand Two (COVID-19),Restart Grants (COVID-19),"8,000.00",An Individual
14/04/2021,Restart Grant - Strand Two (COVID-19),Restart Grants (COVID-19),"8,000.00",An Individual
14/04/2021,Restart Grant - Strand Two (COVID-19),Restart Grants (COVID-19),"8,000.00",An Individual
14/04/2021,Restart Grant - Strand Two (COVID-19),Restart Grants (COVID-19),"8,000.00",An Individual
14/04/2021,Restart Grant - Strand Two (COVID-19),Restart Grants (COVID-19),"8,000.00",An Individual
14/04/2021,Restart Grant - Strand Two (COVID-19),Restart Grants (COVID-19),"8,000.00",An Individual
14/04/2021,Restart Grant - Strand Two (COVID-19),Restart Grants (COVID-19),"8,000.00",An Individual
14/04/2021,Restart Grant - Strand Two (COVID-19),Restart Grants (COVID-19),"8,000.00",An Individual
14/04/2021,Restart Grant - Strand Two (COVID-19),Restart Grants (COVID-19),"8,000.00",An Individual
14/04/2021,Restart Grant - Strand Two (COVID-19),Restart Grants (COVID-19),"8,000.00",An Individual
14/04/2021,Restart Grant - Strand Two (COVID-19),Restart Grants (COVID-19),"8,000.00",An Individual
14/04/2021,Restart Grant - Strand Two (COVID-19),Restart Grants (COVID-19),"8,000.00",An Individual
14/04/2021,Restart Grant - Strand Two (COVID-19),Restart Grants (COVID-19),"8,000.00",An Individual
14/04/2021,Restart Grant - Strand Two (COVID-19),Restart Grants (COVID-19),"8,000.00",An Individual
14/04/2021,Restart Grant - Strand Two (COVID-19),Restart Grants (COVID-19),"8,000.00",An Individual
09/06/2021,Restart Grant - Strand Two (COVID-19),Restart Grants (COVID-19),"8,000.00",An Individual
14/04/2021,Restart Grant - Strand Two (COVID-19),Restart Grants (COVID-19),"8,000.00",An Individual
14/04/2021,Restart Grant - Strand Two (COVID-19),Restart Grants (COVID-19),"8,000.00",An Individual
14/04/2021,Restart Grant - Strand Two (COVID-19),Restart Grants (COVID-19),"8,000.00",An Individual
14/04/2021,Restart Grant - Strand Two (COVID-19),Restart Grants (COVID-19),"8,000.00",An Individual
14/04/2021,Restart Grant - Strand Two (COVID-19),Restart Grants (COVID-19),"8,000.00",An Individual
14/04/2021,Restart Grant - Strand Two (COVID-19),Restart Grants (COVID-19),"8,000.00",An Individual
14/04/2021,Restart Grant - Strand Two (COVID-19),Restart Grants (COVID-19),"8,000.00",An Individual
14/04/2021,Restart Grant - Strand Two (COVID-19),Restart Grants (COVID-19),"8,000.00",An Individual
14/04/2021,Restart Grant - Strand Two (COVID-19),Restart Grants (COVID-19),"8,000.00",An Individual
14/04/2021,Restart Grant - Strand Two (COVID-19),Restart Grants (COVID-19),"8,000.00",An Individual
02/06/2021,Restart Grant - Strand Two (COVID-19),Restart Grants (COVID-19),"8,000.00",An Individual
14/04/2021,Restart Grant - Strand Two (COVID-19),Restart Grants (COVID-19),"8,000.00",An Individual
14/04/2021,Restart Grant - Strand Two (COVID-19),Restart Grants (COVID-19),"8,000.00",An Individual
14/04/2021,Restart Grant - Strand Two (COVID-19),Restart Grants (COVID-19),"8,000.00",An Individual
14/04/2021,Restart Grant - Strand Two (COVID-19),Restart Grants (COVID-19),"8,000.00",An Individual
14/04/2021,Restart Grant - Strand Two (COVID-19),Restart Grants (COVID-19),"8,000.00",An Individual
14/04/2021,Restart Grant - Strand Two (COVID-19),Restart Grants (COVID-19),"8,000.00",An Individual
14/04/2021,Restart Grant - Strand Two (COVID-19),Restart Grants (COVID-19),"8,000.00",An Individual
14/04/2021,Restart Grant - Strand Two (COVID-19),Restart Grants (COVID-19),"8,000.00",An Individual
14/04/2021,Restart Grant - Strand Two (COVID-19),Restart Grants (COVID-19),"8,000.00",An Individual
14/04/2021,Restart Grant - Strand Two (COVID-19),Restart Grants (COVID-19),"8,000.00",An Individual
14/04/2021,Restart Grant - Strand Two (COVID-19),Restart Grants (COVID-19),"8,000.00",An Individual
02/06/2021,Restart Grant - Strand Two (COVID-19),Restart Grants (COVID-19),"8,000.00",An Individual
14/04/2021,Restart Grant - Strand Two (COVID-19),Restart Grants (COVID-19),"8,000.00",An Individual
14/04/2021,Restart Grant - Strand Two (COVID-19),Restart Grants (COVID-19),"8,000.00",An Individual
02/06/2021,Restart Grant - Strand Two (COVID-19),Restart Grants (COVID-19),"8,000.00",An Individual
14/04/2021,Restart Grant - Strand Two (COVID-19),Restart Grants (COVID-19),"8,000.00",An Individual
30/06/2021,Restart Grant - Strand Two (COVID-19),Restart Grants (COVID-19),"8,000.00",An Individual
14/04/2021,Restart Grant - Strand Two (COVID-19),Restart Grants (COVID-19),"8,000.00",An Individual
14/04/2021,Restart Grant - Strand Two (COVID-19),Restart Grants (COVID-19),"8,000.00",An Individual
14/04/2021,Restart Grant - Strand Two (COVID-19),Restart Grants (COVID-19),"8,000.00",An Individual
14/04/2021,Restart Grant - Strand Two (COVID-19),Restart Grants (COVID-19),"8,000.00",An Individual
14/04/2021,Restart Grant - Strand Two (COVID-19),Restart Grants (COVID-19),"8,000.00",An Individual
02/06/2021,Restart Grant - Strand Two (COVID-19),Restart Grants (COVID-19),"8,000.00",An Individual
14/04/2021,Restart Grant - Strand Two (COVID-19),Restart Grants (COVID-19),"8,000.00",An Individual
14/04/2021,Restart Grant - Strand Two (COVID-19),Restart Grants (COVID-19),"8,000.00",An Individual
14/04/2021,Restart Grant - Strand Two (COVID-19),Restart Grants (COVID-19),"8,000.00",An Individual
14/04/2021,Restart Grant - Strand Two (COVID-19),Restart Grants (COVID-19),"8,000.00",An Individual
14/04/2021,Restart Grant - Strand Two (COVID-19),Restart Grants (COVID-19),"8,000.00",An Individual
14/04/2021,Restart Grant - Strand Two (COVID-19),Restart Grants (COVID-19),"8,000.00",An Individual
14/04/2021,Restart Grant - Strand Two (COVID-19),Restart Grants (COVID-19),"8,000.00",An Individual
14/04/2021,Restart Grant - Strand Two (COVID-19),Restart Grants (COVID-19),"8,000.00",An Individual
14/04/2021,Restart Grant - Strand Two (COVID-19),Restart Grants (COVID-19),"8,000.00",An Individual
14/04/2021,Restart Grant - Strand Two (COVID-19),Restart Grants (COVID-19),"8,000.00",An Individual
14/04/2021,Restart Grant - Strand Two (COVID-19),Restart Grants (COVID-19),"8,000.00",An Individual
14/04/2021,Restart Grant - Strand Two (COVID-19),Restart Grants (COVID-19),"8,000.00",An Individual
14/04/2021,Restart Grant - Strand Two (COVID-19),Restart Grants (COVID-19),"8,000.00",An Individual
14/04/2021,Restart Grant - Strand Two (COVID-19),Restart Grants (COVID-19),"8,000.00",An Individual
14/04/2021,Restart Grant - Strand Two (COVID-19),Restart Grants (COVID-19),"8,000.00",An Individual
14/04/2021,Restart Grant - Strand Two (COVID-19),Restart Grants (COVID-19),"8,000.00",An Individual
14/04/2021,Restart Grant - Strand Two (COVID-19),Restart Grants (COVID-19),"8,000.00",An Individual
14/04/2021,Restart Grant - Strand Two (COVID-19),Restart Grants (COVID-19),"8,000.00",An Individual
14/04/2021,Restart Grant - Strand Two (COVID-19),Restart Grants (COVID-19),"8,000.00",An Individual
14/04/2021,Restart Grant - Strand Two (COVID-19),Restart Grants (COVID-19),"8,000.00",An Individual
14/04/2021,Restart Grant - Strand Two (COVID-19),Restart Grants (COVID-19),"8,000.00",An Individual
14/04/2021,Restart Grant - Strand Two (COVID-19),Restart Grants (COVID-19),"8,000.00",An Individual
14/04/2021,Restart Grant - Strand Two (COVID-19),Restart Grants (COVID-19),"8,000.00",An Individual
14/04/2021,Restart Grant - Strand Two (COVID-19),Restart Grants (COVID-19),"8,000.00",An Individual
14/04/2021,Restart Grant - Strand Two (COVID-19),Restart Grants (COVID-19),"8,000.00",An Individual
14/04/2021,Restart Grant - Strand Two (COVID-19),Restart Grants (COVID-19),"8,000.00",An Individual
14/04/2021,Restart Grant - Strand Two (COVID-19),Restart Grants (COVID-19),"8,000.00",An Individual
14/04/2021,Restart Grant - Strand Two (COVID-19),Restart Grants (COVID-19),"8,000.00",An Individual
14/04/2021,Restart Grant - Strand Two (COVID-19),Restart Grants (COVID-19),"8,000.00",An Individual
14/04/2021,Restart Grant - Strand Two (COVID-19),Restart Grants (COVID-19),"8,000.00",An Individual
14/04/2021,Restart Grant - Strand Two (COVID-19),Restart Grants (COVID-19),"8,000.00",An Individual
14/04/2021,Restart Grant - Strand Two (COVID-19),Restart Grants (COVID-19),"8,000.00",An Individual
14/04/2021,Restart Grant - Strand Two (COVID-19),Restart Grants (COVID-19),"8,000.00",An Individual
14/04/2021,Restart Grant - Strand Two (COVID-19),Restart Grants (COVID-19),"8,000.00",An Individual
14/04/2021,Restart Grant - Strand Two (COVID-19),Restart Grants (COVID-19),"8,000.00",An Individual
14/04/2021,Restart Grant - Strand Two (COVID-19),Restart Grants (COVID-19),"8,000.00",An Individual
14/04/2021,Restart Grant - Strand Two (COVID-19),Restart Grants (COVID-19),"8,000.00",An Individual
14/04/2021,Restart Grant - Strand Two (COVID-19),Restart Grants (COVID-19),"8,000.00",An Individual
14/04/2021,Restart Grant - Strand Two (COVID-19),Restart Grants (COVID-19),"8,000.00",An Individual
14/04/2021,Restart Grant - Strand Two (COVID-19),Restart Grants (COVID-19),"8,000.00",An Individual
14/04/2021,Restart Grant - Strand Two (COVID-19),Restart Grants (COVID-19),"8,000.00",An Individual
19/05/2021,Restart Grant - Strand Two (COVID-19),Restart Grants (COVID-19),"8,000.00",An Individual
14/04/2021,Restart Grant - Strand Two (COVID-19),Restart Grants (COVID-19),"8,000.00",An Individual
14/04/2021,Restart Grant - Strand Two (COVID-19),Restart Grants (COVID-19),"8,000.00",An Individual
14/04/2021,Restart Grant - Strand Two (COVID-19),Restart Grants (COVID-19),"8,000.00",An Individual
14/04/2021,Restart Grant - Strand Two (COVID-19),Restart Grants (COVID-19),"8,000.00",An Individual
14/04/2021,Restart Grant - Strand Two (COVID-19),Restart Grants (COVID-19),"8,000.00",An Individual
14/04/2021,Restart Grant - Strand Two (COVID-19),Restart Grants (COVID-19),"8,000.00",An Individual
14/04/2021,Restart Grant - Strand Two (COVID-19),Restart Grants (COVID-19),"8,000.00",An Individual
14/04/2021,Restart Grant - Strand Two (COVID-19),Restart Grants (COVID-19),"8,000.00",An Individual
14/04/2021,Restart Grant - Strand Two (COVID-19),Restart Grants (COVID-19),"8,000.00",An Individual
14/04/2021,Restart Grant - Strand Two (COVID-19),Restart Grants (COVID-19),"8,000.00",An Individual
14/04/2021,Restart Grant - Strand Two (COVID-19),Restart Grants (COVID-19),"8,000.00",An Individual
14/04/2021,Restart Grant - Strand Two (COVID-19),Restart Grants (COVID-19),"8,000.00",An Individual
02/06/2021,Restart Grant - Strand Two (COVID-19),Restart Grants (COVID-19),"8,000.00",An Individual
14/04/2021,Restart Grant - Strand Two (COVID-19),Restart Grants (COVID-19),"8,000.00",An Individual
14/04/2021,Restart Grant - Strand Two (COVID-19),Restart Grants (COVID-19),"8,000.00",An Individual
14/04/2021,Restart Grant - Strand Two (COVID-19),Restart Grants (COVID-19),"8,000.00",An Individual
14/04/2021,Restart Grant - Strand Two (COVID-19),Restart Grants (COVID-19),"8,000.00",An Individual
14/04/2021,Restart Grant - Strand Two (COVID-19),Restart Grants (COVID-19),"8,000.00",An Individual
14/04/2021,Restart Grant - Strand Two (COVID-19),Restart Grants (COVID-19),"8,000.00",An Individual
14/04/2021,Restart Grant - Strand Two (COVID-19),Restart Grants (COVID-19),"8,000.00",An Individual
14/04/2021,Restart Grant - Strand Two (COVID-19),Restart Grants (COVID-19),"8,000.00",An Individual
14/04/2021,Restart Grant - Strand Two (COVID-19),Restart Grants (COVID-19),"8,000.00",An Individual
02/06/2021,Restart Grant - Strand Two (COVID-19),Restart Grants (COVID-19),"8,000.00",An Individual
14/04/2021,Restart Grant - Strand Two (COVID-19),Restart Grants (COVID-19),"8,000.00",An Individual
14/04/2021,Restart Grant - Strand Two (COVID-19),Restart Grants (COVID-19),"8,000.00",An Individual
14/04/2021,Restart Grant - Strand Two (COVID-19),Restart Grants (COVID-19),"8,000.00",An Individual
14/04/2021,Restart Grant - Strand Two (COVID-19),Restart Grants (COVID-19),"8,000.00",An Individual
14/04/2021,Restart Grant - Strand Two (COVID-19),Restart Grants (COVID-19),"8,000.00",An Individual
14/04/2021,Restart Grant - Strand Two (COVID-19),Restart Grants (COVID-19),"8,000.00",An Individual
30/06/2021,Local Restrictions Support Grants � Discretionary (COVID-19),Local Restrictions Support Grants (COVID-19),"8,097.00",An Individual
30/06/2021,Local Restrictions Support Grants � Discretionary (COVID-19),Local Restrictions Support Grants (COVID-19),"10,000.00",An Individual
23/06/2021,Local Restrictions Support Grants � Discretionary (COVID-19),Local Restrictions Support Grants (COVID-19),"10,000.00",An Individual
30/06/2021,Local Restrictions Support Grants � Discretionary (COVID-19),Local Restrictions Support Grants (COVID-19),"10,000.00",An Individual
30/06/2021,Local Restrictions Support Grants � Discretionary (COVID-19),Local Restrictions Support Grants (COVID-19),"10,000.00",An Individual
30/06/2021,Local Restrictions Support Grants � Discretionary (COVID-19),Local Restrictions Support Grants (COVID-19),"10,000.00",An Individual
05/05/2021,Local Restrictions Support Grants � Discretionary (COVID-19),Local Restrictions Support Grants (COVID-19),"10,000.00",An Individual
19/05/2021,Local Restrictions Support Grants � Discretionary (COVID-19),Local Restrictions Support Grants (COVID-19),"10,000.00",An Individual
09/06/2021,Local Restrictions Support Grants � Discretionary (COVID-19),Local Restrictions Support Grants (COVID-19),"10,000.00",An Individual
12/05/2021,Local Restrictions Support Grants � Discretionary (COVID-19),Local Restrictions Support Grants (COVID-19),"10,000.00",An Individual
30/06/2021,Local Restrictions Support Grants � Discretionary (COVID-19),Local Restrictions Support Grants (COVID-19),"10,000.00",An Individual
05/05/2021,Local Restrictions Support Grants � Discretionary (COVID-19),Local Restrictions Support Grants (COVID-19),"10,000.00",An Individual
21/04/2021,Local Restrictions Support Grants � Discretionary (COVID-19),Local Restrictions Support Grants (COVID-19),"10,000.00",An Individual
02/06/2021,Local Restrictions Support Grants � Discretionary (COVID-19),Local Restrictions Support Grants (COVID-19),"10,000.00",An Individual
16/06/2021,Local Restrictions Support Grants � Discretionary (COVID-19),Local Restrictions Support Grants (COVID-19),"10,000.00",An Individual
16/06/2021,Local Restrictions Support Grants � Discretionary (COVID-19),Local Restrictions Support Grants (COVID-19),"10,000.00",An Individual
23/06/2021,Local Restrictions Support Grants � Discretionary (COVID-19),Local Restrictions Support Grants (COVID-19),"10,000.00",An Individual
07/04/2021,Local Restrictions Support Grants � Discretionary (COVID-19),Local Restrictions Support Grants (COVID-19),"10,000.00",An Individual
02/06/2021,Local Restrictions Support Grants � Discretionary (COVID-19),Local Restrictions Support Grants (COVID-19),"10,000.00",An Individual
19/05/2021,Local Restrictions Support Grants � Discretionary (COVID-19),Local Restrictions Support Grants (COVID-19),"10,000.00",An Individual
02/06/2021,Local Restrictions Support Grants � Discretionary (COVID-19),Local Restrictions Support Grants (COVID-19),"10,000.00",An Individual
19/05/2021,Local Restrictions Support Grants � Discretionary (COVID-19),Local Restrictions Support Grants (COVID-19),"10,000.00",An Individual
16/06/2021,Local Restrictions Support Grants � Discretionary (COVID-19),Local Restrictions Support Grants (COVID-19),"10,000.00",An Individual
23/06/2021,Local Restrictions Support Grants � Discretionary (COVID-19),Local Restrictions Support Grants (COVID-19),"10,000.00",An Individual
05/05/2021,Local Restrictions Support Grants � Discretionary (COVID-19),Local Restrictions Support Grants (COVID-19),"10,000.00",An Individual
05/05/2021,Local Restrictions Support Grants � Discretionary (COVID-19),Local Restrictions Support Grants (COVID-19),"10,000.00",An Individual
02/06/2021,Local Restrictions Support Grants � Discretionary (COVID-19),Local Restrictions Support Grants (COVID-19),"10,000.00",An Individual
05/05/2021,Local Restrictions Support Grants � Discretionary (COVID-19),Local Restrictions Support Grants (COVID-19),"10,000.00",An Individual
30/06/2021,Local Restrictions Support Grants � Discretionary (COVID-19),Local Restrictions Support Grants (COVID-19),"10,000.00",An Individual
23/06/2021,Local Restrictions Support Grants � Discretionary (COVID-19),Local Restrictions Support Grants (COVID-19),"10,000.00",An Individual
21/04/2021,Local Restrictions Support Grants � Discretionary (COVID-19),Local Restrictions Support Grants (COVID-19),"10,000.00",An Individual
28/04/2021,Local Restrictions Support Grants � Discretionary (COVID-19),Local Restrictions Support Grants (COVID-19),"10,000.00",An Individual
05/05/2021,Local Restrictions Support Grants � Discretionary (COVID-19),Local Restrictions Support Grants (COVID-19),"10,000.00",An Individual
09/06/2021,Local Restrictions Support Grants � Discretionary (COVID-19),Local Restrictions Support Grants (COVID-19),"10,000.00",An Individual
07/04/2021,Local Restrictions Support Grants � Discretionary (COVID-19),Local Restrictions Support Grants (COVID-19),"10,000.00",An Individual
16/06/2021,Local Restrictions Support Grants � Discretionary (COVID-19),Local Restrictions Support Grants (COVID-19),"10,000.00",An Individual
09/06/2021,Local Restrictions Support Grants � Discretionary (COVID-19),Local Restrictions Support Grants (COVID-19),"10,000.00",An Individual
30/06/2021,Local Restrictions Support Grants � Discretionary (COVID-19),Local Restrictions Support Grants (COVID-19),"10,000.00",An Individual
30/06/2021,Local Restrictions Support Grants � Discretionary (COVID-19),Local Restrictions Support Grants (COVID-19),"10,000.00",An Individual
02/06/2021,Local Restrictions Support Grants � Discretionary (COVID-19),Local Restrictions Support Grants (COVID-19),"10,000.00",An Individual
16/06/2021,Local Restrictions Support Grants � Discretionary (COVID-19),Local Restrictions Support Grants (COVID-19),"10,000.00",An Individual
05/05/2021,Local Restrictions Support Grants � Discretionary (COVID-19),Local Restrictions Support Grants (COVID-19),"10,000.00",An Individual
28/04/2021,Local Restrictions Support Grants � Discretionary (COVID-19),Local Restrictions Support Grants (COVID-19),"10,000.00",An Individual
19/05/2021,Local Restrictions Support Grants � Discretionary (COVID-19),Local Restrictions Support Grants (COVID-19),"10,000.00",An Individual
23/06/2021,Local Restrictions Support Grants � Discretionary (COVID-19),Local Restrictions Support Grants (COVID-19),"10,000.00",An Individual
12/05/2021,Local Restrictions Support Grants � Discretionary (COVID-19),Local Restrictions Support Grants (COVID-19),"10,000.00",An Individual
30/06/2021,Local Restrictions Support Grants � Discretionary (COVID-19),Local Restrictions Support Grants (COVID-19),"10,000.00",An Individual
16/06/2021,Local Restrictions Support Grants � Discretionary (COVID-19),Local Restrictions Support Grants (COVID-19),"10,000.00",An Individual
14/04/2021,Restart Grant - Strand Two (COVID-19),Restart Grants (COVID-19),"12,000.00",An Individual
14/04/2021,Restart Grant - Strand Two (COVID-19),Restart Grants (COVID-19),"12,000.00",An Individual
02/06/2021,Restart Grant - Strand Two (COVID-19),Restart Grants (COVID-19),"12,000.00",An Individual
14/04/2021,Restart Grant - Strand Two (COVID-19),Restart Grants (COVID-19),"12,000.00",An Individual
14/04/2021,Restart Grant - Strand Two (COVID-19),Restart Grants (COVID-19),"12,000.00",An Individual
14/04/2021,Restart Grant - Strand Two (COVID-19),Restart Grants (COVID-19),"12,000.00",An Individual
14/04/2021,Restart Grant - Strand Two (COVID-19),Restart Grants (COVID-19),"12,000.00",An Individual
14/04/2021,Restart Grant - Strand Two (COVID-19),Restart Grants (COVID-19),"12,000.00",An Individual
14/04/2021,Restart Grant - Strand Two (COVID-19),Restart Grants (COVID-19),"12,000.00",An Individual
14/04/2021,Restart Grant - Strand Two (COVID-19),Restart Grants (COVID-19),"12,000.00",An Individual
14/04/2021,Restart Grant - Strand Two (COVID-19),Restart Grants (COVID-19),"12,000.00",An Individual
14/04/2021,Restart Grant - Strand Two (COVID-19),Restart Grants (COVID-19),"12,000.00",An Individual
23/06/2021,Restart Grant - Strand Two (COVID-19),Restart Grants (COVID-19),"12,000.00",An Individual
14/04/2021,Restart Grant - Strand Two (COVID-19),Restart Grants (COVID-19),"18,000.00",An Individual
14/04/2021,Restart Grant - Strand One (COVID-19),Restart Grants (COVID-19),"2,667.00",An Individual /t/a Whynot Gallery
14/04/2021,Restart Grant - Strand Two (COVID-19),Restart Grants (COVID-19),"8,000.00",An Individual at Mays Beauty
14/04/2021,Restart Grant - Strand Two (COVID-19),Restart Grants (COVID-19),"8,000.00",An Individual t/a 8
14/04/2021,Restart Grant - Strand One (COVID-19),Restart Grants (COVID-19),"2,667.00",An Individual t/a Awardboard
14/04/2021,Local Restrictions Support Grants � Discretionary (COVID-19),Local Restrictions Support Grants (COVID-19),"10,000.00",An Individual t/a Balance Life
14/04/2021,Restart Grant - Strand Two (COVID-19),Restart Grants (COVID-19),"8,000.00",An Individual t/a Barton Turn
14/04/2021,Restart Grant - Strand One (COVID-19),Restart Grants (COVID-19),"2,667.00",An Individual t/a Billy Hunt
14/04/2021,Restart Grant - Strand Two (COVID-19),Restart Grants (COVID-19),"8,000.00",An Individual t/a Blades
14/04/2021,Restart Grant - Strand Two (COVID-19),Restart Grants (COVID-19),"8,000.00",An Individual t/a Brownz
14/04/2021,Restart Grant - Strand Two (COVID-19),Restart Grants (COVID-19),"8,000.00",An Individual t/a Castle Caf�
14/04/2021,Restart Grant - Strand Two (COVID-19),Restart Grants (COVID-19),"8,000.00",An Individual t/a Concept
14/04/2021,Restart Grant - Strand Two (COVID-19),Restart Grants (COVID-19),"12,000.00",An Individual t/a Coopers Tavern
14/04/2021,Restart Grant - Strand Two (COVID-19),Restart Grants (COVID-19),"8,000.00",An Individual t/a Cross Keys
16/06/2021,Local Restrictions Support Grants � Discretionary (COVID-19),Local Restrictions Support Grants (COVID-19),"10,000.00",An Individual t/a Global B&B
14/04/2021,Restart Grant - Strand Two (COVID-19),Restart Grants (COVID-19),"8,000.00",An Individual t/a Hair by Rascals
14/04/2021,Restart Grant - Strand One (COVID-19),Restart Grants (COVID-19),"2,667.00",An Individual t/a Henrys Records
14/04/2021,Restart Grant - Strand Two (COVID-19),Restart Grants (COVID-19),"8,000.00",An Individual t/a HK Creative Services Limited
14/04/2021,Local Restrictions Support Grants � Mandatory Closed (COVID-19),Local Restrictions Support Grants (COVID-19),"1,334.00",An Individual t/a National Forest Llamas
14/04/2021,Local Restrictions Support Grants � Mandatory Closed (COVID-19),Local Restrictions Support Grants (COVID-19),"2,001.00",An Individual t/a National Forest Llamas
14/04/2021,Local Restrictions Support Grants � Mandatory Closed (COVID-19),Local Restrictions Support Grants (COVID-19),"2,096.00",An Individual t/a National Forest Llamas
14/04/2021,Closed Business Lockdown Grants (COVID-19),Closed Business Lockdown Grants (COVID-19),"4,000.00",An Individual t/a National Forest Llamas
02/06/2021,Restart Grant - Strand Two (COVID-19),Restart Grants (COVID-19),"8,000.00",An Individual t/a National Forest Llamas
14/04/2021,Restart Grant - Strand Two (COVID-19),Restart Grants (COVID-19),"8,000.00",An Individual t/a National Paintball Games
09/06/2021,Restart Grant - Strand One (COVID-19),Restart Grants (COVID-19),"2,667.00",An Individual t/a Peter Wykes Upholstery
28/04/2021,Restart Grant - Strand One (COVID-19),Restart Grants (COVID-19),"4,000.00",An Individual t/a Road n Race
14/04/2021,Restart Grant - Strand One (COVID-19),Restart Grants (COVID-19),"2,667.00",An Individual t/a Running Form
12/05/2021,Restart Grant - Strand Two (COVID-19),Restart Grants (COVID-19),"8,000.00",An Individual t/a Shelbys
28/04/2021,Local Restrictions Support Grants � Discretionary (COVID-19),Local Restrictions Support Grants (COVID-19),"10,000.00",An Individual t/a Springs Commercial Cleaning Services
14/04/2021,Restart Grant - Strand Two (COVID-19),Restart Grants (COVID-19),"8,000.00",An Individual t/a The Acorn inn
14/04/2021,Restart Grant - Strand Two (COVID-19),Restart Grants (COVID-19),"8,000.00",An Individual t/a The Bagot Arms
14/04/2021,Restart Grant - Strand One (COVID-19),Restart Grants (COVID-19),"2,667.00",An Individual t/a The Blossom Branch
14/04/2021,Restart Grant - Strand Two (COVID-19),Restart Grants (COVID-19),"8,000.00",An Individual t/a The Derby Inn
14/04/2021,Restart Grant - Strand One (COVID-19),Restart Grants (COVID-19),"4,000.00",An Individual t/a The Furniture King
14/04/2021,Restart Grant - Strand Two (COVID-19),Restart Grants (COVID-19),"8,000.00",An Individual t/a The Gate Inn
14/04/2021,Restart Grant - Strand Two (COVID-19),Restart Grants (COVID-19),"8,000.00",An Individual t/a The Last Heretic
14/04/2021,Restart Grant - Strand Two (COVID-19),Restart Grants (COVID-19),"8,000.00",An Individual t/a The Town Barber
14/04/2021,Restart Grant - Strand Two (COVID-19),Restart Grants (COVID-19),"8,000.00",An Individual t/a Time
14/04/2021,Restart Grant - Strand One (COVID-19),Restart Grants (COVID-19),"2,667.00",An Individual t/a Willisford
14/04/2021,Restart Grant - Strand One (COVID-19),Restart Grants (COVID-19),"2,667.00",An Individual t/a WN Davies
14/04/2021,Restart Grant - Strand One (COVID-19),Restart Grants (COVID-19),"2,667.00",An Individual t/as Mill Outlet
14/04/2021,Restart Grant - Strand Two (COVID-19),Restart Grants (COVID-19),"8,000.00",An Individual t/z Unique
28/04/2021,Local Restrictions Support Grants � Mandatory Closed (COVID-19),Local Restrictions Support Grants (COVID-19),667.00,Angus Mackinnon Ltd
28/04/2021,Local Restrictions Support Grants � Mandatory Closed (COVID-19),Local Restrictions Support Grants (COVID-19),667.00,Angus Mackinnon Ltd
21/04/2021,Local Restrictions Support Grants � Mandatory Closed (COVID-19),Local Restrictions Support Grants (COVID-19),"1,334.00",Angus Mackinnon Ltd
21/04/2021,Local Restrictions Support Grants � Mandatory Closed (COVID-19),Local Restrictions Support Grants (COVID-19),"2,001.00",Angus Mackinnon Ltd
21/04/2021,Local Restrictions Support Grants � Mandatory Closed (COVID-19),Local Restrictions Support Grants (COVID-19),"2,096.00",Angus Mackinnon Ltd
14/04/2021,Restart Grant - Strand One (COVID-19),Restart Grants (COVID-19),"2,667.00",Angus Mackinnon Ltd
02/06/2021,Restart Grant - Strand One (COVID-19),Restart Grants (COVID-19),"2,667.00",Angus Mackinnon Ltd
21/04/2021,Closed Business Lockdown Grants (COVID-19),Closed Business Lockdown Grants (COVID-19),"4,000.00",Angus Mackinnon Ltd
14/04/2021,Restart Grant - Strand One (COVID-19),Restart Grants (COVID-19),"6,000.00",Angus Mackinnon Ltd
07/04/2021,Local Restrictions Support Grants � Mandatory Closed (COVID-19),Local Restrictions Support Grants (COVID-19),"1,334.00",Anna Prays Photography
07/04/2021,Local Restrictions Support Grants � Mandatory Closed (COVID-19),Local Restrictions Support Grants (COVID-19),"2,001.00",Anna Prays Photography
07/04/2021,Local Restrictions Support Grants � Mandatory Closed (COVID-19),Local Restrictions Support Grants (COVID-19),"2,096.00",Anna Prays Photography
14/04/2021,Restart Grant - Strand One (COVID-19),Restart Grants (COVID-19),"2,667.00",Anna Prays Photography
07/04/2021,Closed Business Lockdown Grants (COVID-19),Closed Business Lockdown Grants (COVID-19),"4,000.00",Anna Prays Photography
14/04/2021,Restart Grant - Strand One (COVID-19),Restart Grants (COVID-19),"2,667.00",Annetta Ross Ltd
14/04/2021,Restart Grant - Strand One (COVID-19),Restart Grants (COVID-19),"4,000.00",Annie Maison Limited
28/04/2021,Restart Grant - Strand Two (COVID-19),Restart Grants (COVID-19),"8,000.00",Annie Maison Limited
14/04/2021,Restart Grant - Strand One (COVID-19),Restart Grants (COVID-19),"2,667.00",Anslow Autos Ltd
14/04/2021,Restart Grant - Strand Two (COVID-19),Restart Grants (COVID-19),"8,000.00",Anslow New Village Hall Committee
14/04/2021,Restart Grant - Strand Two (COVID-19),Restart Grants (COVID-19),"8,000.00",Apne India Cuisine Ltd
01/04/2021,Subscriptions,Environmental Health,"2,422.00",APSE
13/05/2021,Materials from Stores,DSO Stores Account,514.95,Arco Limited
28/04/2021,Materials from Stores,DSO Stores Account,998.20,Arco Limited
14/04/2021,Restart Grant - Strand One (COVID-19),Restart Grants (COVID-19),"2,667.00",ARK Furnishers
14/04/2021,Restart Grant - Strand Two (COVID-19),Restart Grants (COVID-19),"12,000.00",Ark Sports and Leisure Ltd
14/05/2021,Other Equipment,Horticultural Resource Centre,650.00,Asgard Cash Registers
20/05/2021,Training Expenses,Police Elections,"2,438.00",Association of Electoral Administrators
14/04/2021,Restart Grant - Strand One (COVID-19),Restart Grants (COVID-19),"2,667.00",Autonext Ltd
14/04/2021,Restart Grant - Strand Two (COVID-19),Restart Grants (COVID-19),"8,000.00",Autumn Pubs Limited
14/04/2021,Restart Grant - Strand Two (COVID-19),Restart Grants (COVID-19),"8,000.00",Baan Thai UK Limited
02/06/2021,Local Restrictions Support Grants � Discretionary (COVID-19),Local Restrictions Support Grants (COVID-19),"5,000.00",Baldwin Transport Ltd
30/06/2021,Restart Grant - Strand One (COVID-19),Restart Grants (COVID-19),"4,000.00",Bambinos and Beyond
14/04/2021,Restart Grant - Strand Two (COVID-19),Restart Grants (COVID-19),"8,000.00",Bar XV Ltd
28/05/2021,Software Licenses & Contracts,Recycling,"3,835.00",Bartec Auto ID Ltd
28/05/2021,Software Licenses & Contracts,Recycling,"19,704.50",Bartec Auto ID Ltd
14/04/2021,Restart Grant - Strand Two (COVID-19),Restart Grants (COVID-19),"18,000.00",Barton Turns Developments Ltd
14/04/2021,Restart Grant - Strand Two (COVID-19),Restart Grants (COVID-19),"8,000.00",Barton Turns Marina
14/04/2021,Restart Grant - Strand Two (COVID-19),Restart Grants (COVID-19),"8,000.00",Barton Under Needwood Bowling & Social Club
02/06/2021,Local Restrictions Support Grants � Discretionary (COVID-19),Local Restrictions Support Grants (COVID-19),"5,000.00",Barton Under Needwood Village Hall
30/06/2021,Local Restrictions Support Grants � Discretionary (COVID-19),Local Restrictions Support Grants (COVID-19),"5,000.00",Barton Village Taxis Ltd
14/04/2021,Restart Grant - Strand Two (COVID-19),Restart Grants (COVID-19),"8,000.00",Be Catered 4 Ltd
14/04/2021,Restart Grant - Strand Two (COVID-19),Restart Grants (COVID-19),"8,000.00",Beachcombers
14/04/2021,Restart Grant - Strand Two (COVID-19),Restart Grants (COVID-19),"8,000.00",Bear Coffee Company Ltd
14/04/2021,Restart Grant - Strand Two (COVID-19),Restart Grants (COVID-19),"8,000.00",Beauty by Laura Jayne
14/04/2021,Restart Grant - Strand Two (COVID-19),Restart Grants (COVID-19),"8,000.00",Beckis Hairdressing
07/04/2021,Local Restrictions Support Grants � Mandatory Closed (COVID-19),Local Restrictions Support Grants (COVID-19),667.00,Beeropolis
07/04/2021,Local Restrictions Support Grants � Mandatory Closed (COVID-19),Local Restrictions Support Grants (COVID-19),667.00,Beeropolis
07/04/2021,Local Restrictions Support Grants � Mandatory Closed (COVID-19),Local Restrictions Support Grants (COVID-19),"1,334.00",Beeropolis
07/04/2021,Local Restrictions Support Grants � Mandatory Closed (COVID-19),Local Restrictions Support Grants (COVID-19),"2,001.00",Beeropolis
07/04/2021,Local Restrictions Support Grants � Mandatory Closed (COVID-19),Local Restrictions Support Grants (COVID-19),"2,096.00",Beeropolis
07/04/2021,Closed Business Lockdown Grants (COVID-19),Closed Business Lockdown Grants (COVID-19),"4,000.00",Beeropolis
14/04/2021,Restart Grant - Strand Two (COVID-19),Restart Grants (COVID-19),"8,000.00",Beeropolis
14/04/2021,Restart Grant - Strand Two (COVID-19),Restart Grants (COVID-19),"8,000.00",Belmont Golf Course Ltd
09/06/2021,Restart Grant - Strand Two (COVID-19),Restart Grants (COVID-19),"8,000.00",Belvedereo Bowls Club
14/04/2021,Restart Grant - Strand One (COVID-19),Restart Grants (COVID-19),"4,000.00",Betel of Britain-Derby
07/04/2021,Local Restrictions Support Grants � Discretionary (COVID-19),Local Restrictions Support Grants (COVID-19),"10,000.00",Betzys Cleaning Services
28/04/2021,Consultants,Legal Services,"4,515.00",Bevan Brittan LLP
21/04/2021,Local Restrictions Support Grants � Mandatory Closed (COVID-19),Local Restrictions Support Grants (COVID-19),"1,334.00",BHF No 1 A/c
28/04/2021,Local Restrictions Support Grants � Mandatory Closed (COVID-19),Local Restrictions Support Grants (COVID-19),"2,000.00",BHF No 1 A/C
21/04/2021,Local Restrictions Support Grants � Mandatory Closed (COVID-19),Local Restrictions Support Grants (COVID-19),"2,001.00",BHF No 1 A/c
21/04/2021,Local Restrictions Support Grants � Mandatory Closed (COVID-19),Local Restrictions Support Grants (COVID-19),"2,096.00",BHF No 1 A/c
02/06/2021,Restart Grant - Strand One (COVID-19),Restart Grants (COVID-19),"2,667.00",BHF No 1 A/c
28/04/2021,Local Restrictions Support Grants � Mandatory Closed (COVID-19),Local Restrictions Support Grants (COVID-19),"3,000.00",BHF No 1 A/C
28/04/2021,Local Restrictions Support Grants � Mandatory Closed (COVID-19),Local Restrictions Support Grants (COVID-19),"3,143.00",BHF No 1 A/C
21/04/2021,Closed Business Lockdown Grants (COVID-19),Closed Business Lockdown Grants (COVID-19),"4,000.00",BHF No 1 A/c
02/06/2021,Restart Grant - Strand One (COVID-19),Restart Grants (COVID-19),"4,000.00",BHF No 1 A/C
28/04/2021,Closed Business Lockdown Grants (COVID-19),Closed Business Lockdown Grants (COVID-19),"6,000.00",BHF No 1 A/C
14/04/2021,Restart Grant - Strand Two (COVID-19),Restart Grants (COVID-19),"8,000.00",Biddulph & Carrington Ltd
12/05/2021,Third Party Payments,Recycling,983.28,Biffa Waste Services Limited
20/05/2021,Third Party Payments,Recycling,"1,683.23",Biffa Waste Services Limited
21/04/2021,Third Party Payments,Recycling,"3,878.18",Biffa Waste Services Limited
07/05/2021,Third Party Payments,Recycling,"4,994.95",Biffa Waste Services Limited
14/05/2021,Third Party Payments,Recycling,"5,616.91",Biffa Waste Services Limited
23/04/2021,Third Party Payments,Recycling,"5,716.26",Biffa Waste Services Limited
26/03/2021,Third Party Payments,Recycling,"5,805.55",Biffa Waste Services Limited
16/04/2021,Third Party Payments,Recycling,"5,980.25",Biffa Waste Services Limited
30/04/2021,Third Party Payments,Recycling,"6,001.96",Biffa Waste Services Limited
09/04/2021,Third Party Payments,Recycling,"7,047.30",Biffa Waste Services Limited
02/04/2021,Third Party Payments,Recycling,"7,177.08",Biffa Waste Services Limited
21/05/2021,Third Party Payments,Recycling,"7,539.42",Biffa Waste Services Limited
28/05/2021,Third Party Payments,Recycling,"8,479.60",Biffa Waste Services Limited
04/06/2021,Third Party Payments,Recycling,"11,639.62",Biffa Waste Services Limited
20/05/2021,Third Party Payments,Recycling,"15,365.04",Biffa Waste Services Limited
17/06/2021,Third Party Payments,Recycling,"41,521.22",Biffa Waste Services Limited
21/04/2021,Third Party Payments,Recycling,"46,929.13",Biffa Waste Services Limited
12/05/2021,Third Party Payments,Recycling,"49,064.45",Biffa Waste Services Limited
14/04/2021,Restart Grant - Strand Two (COVID-19),Restart Grants (COVID-19),"18,000.00",Big Table Group Ltd
14/05/2021,Professional Fees,Enterprise,"8,961.37",Binnies UK Ltd
16/04/2021,Professional Fees,Enterprise,"14,356.75",Binnies UK Ltd
22/04/2021,Software Licenses & Contracts,Programmes and Transformation,"4,200.00",BiP Solutions Ltd
14/04/2021,Local Restrictions Support Grants � Discretionary (COVID-19),Local Restrictions Support Grants (COVID-19),"10,000.00",Birds Machinery Services Ltd t/a BMS Ltd
14/04/2021,Restart Grant - Strand Two (COVID-19),Restart Grants (COVID-19),"18,000.00",Blackcat Bars Burtonltd
14/04/2021,Restart Grant - Strand Two (COVID-19),Restart Grants (COVID-19),"8,000.00",Blithfield and Admaston Village Hall Management Committee
14/04/2021,Restart Grant - Strand Two (COVID-19),Restart Grants (COVID-19),"12,000.00",Blithfield Sailing Club
20/05/2021,Grounds Maintenance,Open Spaces,"1,240.00",Bloomin Gardens and Landscapes Ltd
17/05/2021,Grounds Maintenance,Open Spaces,"3,645.00",Bloomin Gardens and Landscapes Ltd
06/04/2021,Grounds Maintenance,Open Spaces,"3,871.49",Bloomin Gardens and Landscapes Ltd
14/04/2021,Restart Grant - Strand One (COVID-19),Restart Grants (COVID-19),"2,667.00",Blue Water Clothing Ltd
14/04/2021,Restart Grant - Strand Two (COVID-19),Restart Grants (COVID-19),"8,000.00",Blues of Burton
14/04/2021,Restart Grant - Strand One (COVID-19),Restart Grants (COVID-19),"2,667.00",BMG
30/03/2021,Professional Theatre Fees,Brewhouse Arts Centre,"1,500.00",Bob on Arts
30/06/2021,Restart Grant - Strand One (COVID-19),Restart Grants (COVID-19),"2,667.00",Books and Banter
14/04/2021,Restart Grant - Strand Two (COVID-19),Restart Grants (COVID-19),"8,000.00",Bounce Holdingds Ltd
09/06/2021,Restart Grant - Strand Two (COVID-19),Restart Grants (COVID-19),"8,000.00",BPJFC
14/04/2021,Restart Grant - Strand Two (COVID-19),Restart Grants (COVID-19),"12,000.00",Bradley House Club
26/03/2021,Software Licenses & Contracts,Electoral Services,"14,500.00",Bramble Hub Ltd
14/04/2021,Restart Grant - Strand Two (COVID-19),Restart Grants (COVID-19),"8,000.00",Bramshall Parish Hall
14/04/2021,Restart Grant - Strand Two (COVID-19),Restart Grants (COVID-19),"8,000.00",Branston Barnes Ltd
14/04/2021,Restart Grant - Strand Two (COVID-19),Restart Grants (COVID-19),"18,000.00",Branston Golf and Country Club
14/04/2021,Restart Grant - Strand One (COVID-19),Restart Grants (COVID-19),"4,000.00",Branston Motors Range Ltd
14/04/2021,Restart Grant - Strand Two (COVID-19),Restart Grants (COVID-19),"8,000.00",Branston Vilage Hall
30/06/2021,Restart Grant - Strand Two (COVID-19),Restart Grants (COVID-19),"8,000.00",Brassos Barbers
14/04/2021,Restart Grant - Strand One (COVID-19),Restart Grants (COVID-19),"2,667.00",Brearleys
23/06/2021,Restart Grant - Strand Two (COVID-19),Restart Grants (COVID-19),"8,000.00",Brews of the World Ltd
28/04/2021,Local Restrictions Support Grants � Discretionary (COVID-19),Local Restrictions Support Grants (COVID-19),"10,000.00",Brews of the World Ltd
16/04/2021,Car Park Penalty Charge Notice Income,Meadowside Leisure Centre Car Park,"1,020.00",Brian Mole Independent Financial Advisers Ltd
14/04/2021,Restart Grant - Strand One (COVID-19),Restart Grants (COVID-19),"4,000.00",Bridgens
14/04/2021,Restart Grant - Strand Two (COVID-19),Restart Grants (COVID-19),"12,000.00",Britbet
06/04/2021,Telephones,Closed Circuit Cameras,"2,465.70",British Telecommunications
06/04/2021,Telephones,Closed Circuit Cameras,"18,785.05",British Telecommunications
24/02/2021,DFG Contractor Payments,Housing Standards,"1,859.00",Broad Oak Properties Limited
28/04/2021,DFG Contractor Payments,Housing Standards,"2,885.00",Broad Oak Properties Limited
29/04/2021,DFG Contractor Payments,Housing Standards,"4,005.50",Broad Oak Properties Limited
25/03/2021,DFG Contractor Payments,Housing Standards,"5,110.50",Broad Oak Properties Limited
10/03/2021,DFG Contractor Payments,Housing Standards,"5,178.50",Broad Oak Properties Limited
11/05/2021,DFG Contractor Payments,Housing Standards,"5,450.50",Broad Oak Properties Limited
24/02/2021,DFG Contractor Payments,Housing Standards,"9,295.00",Broad Oak Properties Limited
16/04/2021,DFG Contractor Payments,Housing Standards,"10,250.00",Broad Oak Properties Limited
16/04/2021,DFG Contractor Payments,Housing Standards,"19,753.00",Broad Oak Properties Limited
01/06/2021,Flood Compensation Payments,Flood Compensation Payments,"15,000.00",Brookside Cottage Homes Reg Charity 248073
21/04/2021,Local Restrictions Support Grants � Discretionary (COVID-19),Local Restrictions Support Grants (COVID-19),"10,000.00",Broughtons Catering
14/04/2021,Restart Grant - Strand Two (COVID-19),Restart Grants (COVID-19),"8,000.00",Browns Beauty Limited
08/06/2021,Grounds Maintenance,Open Spaces,574.00,Broxap Limited
01/05/2021,Subscriptions,Building Consultancy Chargeable Activities,836.00,BSI Training
22/04/2021,Arts Worker Fees,Arts Development,500.00,Burnley Youth Theatre
14/04/2021,Restart Grant - Strand Two (COVID-19),Restart Grants (COVID-19),"18,000.00",Burton 0820 Ltd
24/06/2021,Rents,Police Elections,700.00,Burton Albion Community Trust
14/04/2021,Restart Grant - Strand Two (COVID-19),Restart Grants (COVID-19),"12,000.00",Burton Albion Community Trust
14/04/2021,Restart Grant - Strand Two (COVID-19),Restart Grants (COVID-19),"18,000.00",Burton Albion Community Trust
14/04/2021,Restart Grant - Strand One (COVID-19),Restart Grants (COVID-19),"4,000.00",Burton Branch RSPCA
14/04/2021,Restart Grant - Strand Two (COVID-19),Restart Grants (COVID-19),"12,000.00",Burton Bridge Brewery Partnership
14/04/2021,Restart Grant - Strand Two (COVID-19),Restart Grants (COVID-19),"8,000.00",Burton Canoe Club Company Ltd
14/04/2021,Restart Grant - Strand Two (COVID-19),Restart Grants (COVID-19),"8,000.00",Burton Caribbean Association
05/05/2021,Local Restrictions Support Grants � Mandatory Closed (COVID-19),Local Restrictions Support Grants (COVID-19),"2,096.00",Burton Carpets
05/05/2021,Restart Grant - Strand One (COVID-19),Restart Grants (COVID-19),"2,667.00",Burton Carpets
14/04/2021,Restart Grant - Strand Two (COVID-19),Restart Grants (COVID-19),"8,000.00",Burton Cricket Club
28/04/2021,Refuse Removal,Street Cleaning,700.00,Burton Environmental Services Ltd
14/04/2021,Restart Grant - Strand Two (COVID-19),Restart Grants (COVID-19),"12,000.00",Burton Gym Ltd
14/04/2021,Restart Grant - Strand Two (COVID-19),Restart Grants (COVID-19),"12,000.00",Burton Gym Ltd
14/04/2021,Restart Grant - Strand One (COVID-19),Restart Grants (COVID-19),"2,667.00",Burton Hospitals League of Friends
14/04/2021,Restart Grant - Strand Two (COVID-19),Restart Grants (COVID-19),"8,000.00",Burton Kickboxing Academy
14/04/2021,Restart Grant - Strand One (COVID-19),Restart Grants (COVID-19),"2,667.00",Burton Phones Ltd
14/04/2021,Restart Grant - Strand Two (COVID-19),Restart Grants (COVID-19),"12,000.00",Burton Ritz Ltd
14/04/2021,Restart Grant - Strand Two (COVID-19),Restart Grants (COVID-19),"8,000.00",Burton Sea Cadets
14/04/2021,Restart Grant - Strand Two (COVID-19),Restart Grants (COVID-19),"8,000.00",Burton Tennis & Squash Club
14/04/2021,Restart Grant - Strand One (COVID-19),Restart Grants (COVID-19),"4,000.00",Burton Trailer Centre Ltd
19/04/2021,Commuted Sum Expenditure,Housing Options,"6,666.75",Burton upon Trent & District YMCA
21/04/2021,General Grants,Housing Options,"10,000.00",Burton upon Trent & District YMCA
19/04/2021,General Grants,Housing Options,"10,750.00",Burton upon Trent & District YMCA
14/04/2021,Restart Grant - Strand One (COVID-19),Restart Grants (COVID-19),"4,000.00",Burton upon Trent & District YMCA Taskforce
14/04/2021,Restart Grant - Strand Two (COVID-19),Restart Grants (COVID-19),"8,000.00",Burton Upon Trent Constitutrional Club
14/04/2021,Restart Grant - Strand Two (COVID-19),Restart Grants (COVID-19),"12,000.00",Burton Upon Trent District Scouts Treasurers Acount
14/04/2021,Restart Grant - Strand Two (COVID-19),Restart Grants (COVID-19),"12,000.00",C B Taverns Ltd
09/05/2021,Haulage of Ballot Boxes/Polling Booths,Police Elections,"2,700.00",C W Tree Services
11/05/2021,Donations,Mayors Fund,"6,163.87",C.R.E.S.T
14/04/2021,Restart Grant - Strand Two (COVID-19),Restart Grants (COVID-19),"8,000.00",Cabaret Theatre School
14/04/2021,Restart Grant - Strand Two (COVID-19),Restart Grants (COVID-19),"12,000.00",Caf� Emaan Ltd
09/06/2021,Restart Grant - Strand Two (COVID-19),Restart Grants (COVID-19),"8,000.00",Caffe Centro Ltd
14/04/2021,Restart Grant - Strand Two (COVID-19),Restart Grants (COVID-19),"8,000.00",Calwich Under Canvas
27/05/2021,Hire of Equipment,Central Reprographics,562.77,Canon UK Ltd
31/01/2021,Hire of Equipment,Central Reprographics,578.85,Canon UK Ltd
29/04/2021,Hire of Equipment,Central Reprographics,846.89,Canon UK Ltd
29/04/2021,Hire of Equipment,Central Reprographics,"4,624.19",Canon UK Ltd
30/03/2021,Consultants,Housing Benefits Admin,"1,300.00",Capita Business Services Ltd
12/04/2021,Consultants,Housing Benefits Admin,"1,390.00",Capita Business Services Ltd
12/04/2021,Consultants,Business Rate Collection,"1,390.00",Capita Business Services Ltd
12/04/2021,Consultants,Council Tax Collection,"1,390.00",Capita Business Services Ltd
15/04/2021,Software Licenses & Contracts,Housing Benefits Admin,"2,973.30",Capita Business Services Ltd
09/06/2021,Consultants,Housing Benefits Admin,"5,500.00",Capita Business Services Ltd
09/03/2021,Software Licenses & Contracts,Council Tax Collection,"29,192.52",Capita Business Services Ltd
14/04/2021,Restart Grant - Strand One (COVID-19),Restart Grants (COVID-19),"2,667.00",Carats (Burton) Ltd
30/06/2021,Restart Grant - Strand Two (COVID-19),Restart Grants (COVID-19),"8,000.00",Carlas
14/04/2021,Restart Grant - Strand One (COVID-19),Restart Grants (COVID-19),"2,667.00",Carole�s Cards and Gifts
14/04/2021,Restart Grant - Strand One (COVID-19),Restart Grants (COVID-19),"2,667.00",Carpet City (Burton) Ltd
10/06/2021,Temporary Staff Costs,Development Control,810.00,Carrington West Ltd
26/05/2021,Temporary Staff Costs,Planning Policy,891.84,Carrington West Ltd
15/04/2021,Temporary Staff Costs,Planning Policy,927.84,Carrington West Ltd
02/06/2021,Temporary Staff Costs,Development Control,999.00,Carrington West Ltd
10/06/2021,Temporary Staff Costs,Development Control,"1,012.50",Carrington West Ltd
06/05/2021,Temporary Staff Costs,Planning Policy,"1,112.16",Carrington West Ltd
15/04/2021,Temporary Staff Costs,Planning Policy,"1,272.00",Carrington West Ltd
26/05/2021,Temporary Staff Costs,Planning Policy,"1,364.16",Carrington West Ltd
26/05/2021,Temporary Staff Costs,Planning Policy,"1,395.84",Carrington West Ltd
22/04/2021,Temporary Staff Costs,Open Spaces,"1,428.00",Carrington West Ltd
15/04/2021,Temporary Staff Costs,Planning Policy,"1,440.00",Carrington West Ltd
16/06/2021,Temporary Staff Costs,Planning Policy,"1,440.00",Carrington West Ltd
19/05/2021,Temporary Staff Costs,Open Spaces,"1,503.84",Carrington West Ltd
16/06/2021,Temporary Staff Costs,Planning Policy,"1,536.00",Carrington West Ltd
31/03/2021,Temporary Staff Costs,Open Spaces,"1,568.16",Carrington West Ltd
14/04/2021,Restart Grant - Strand One (COVID-19),Restart Grants (COVID-19),"2,667.00",Cars of Marlow Ltd
14/04/2021,Restart Grant - Strand Two (COVID-19),Restart Grants (COVID-19),"8,000.00",Carver Road Community Centre
14/04/2021,Restart Grant - Strand Two (COVID-19),Restart Grants (COVID-19),"12,000.00",Cashino Gaming Ltd
14/04/2021,Restart Grant - Strand Two (COVID-19),Restart Grants (COVID-19),"8,000.00",Cask and Pottle
14/04/2021,Restart Grant - Strand Two (COVID-19),Restart Grants (COVID-19),"12,000.00",Cassandras (2005) Ltd
21/04/2021,Maintenance Contracts,Burton Town Hall Civic Building,792.00,Catering Maintenance LLP
14/04/2021,Restart Grant - Strand Two (COVID-19),Restart Grants (COVID-19),"8,000.00",Catwalk Beauty Academy Ltd
14/04/2021,Restart Grant - Strand Two (COVID-19),Restart Grants (COVID-19),"12,000.00",Central Coffee Ltd
14/04/2021,Restart Grant - Strand Two (COVID-19),Restart Grants (COVID-19),"18,000.00",Central Coffee Ltd
14/04/2021,Restart Grant - Strand One (COVID-19),Restart Grants (COVID-19),"4,000.00",Central Floors
27/05/2021,Direct Purchases,DSO Stores Account,"29,505.00",Central Fuel Oils
08/04/2021,Abandoned Vehicles,Enforcement Section,620.00,CGM Recovery
02/03/2021,Abandoned Vehicles,Enforcement Section,645.00,CGM Recovery
12/05/2021,Abandoned Vehicles,Enforcement Section,700.00,CGM Recovery
12/06/2021,Abandoned Vehicles,Enforcement Section,880.00,CGM Recovery
14/04/2021,Restart Grant - Strand One (COVID-19),Restart Grants (COVID-19),"4,000.00",Chamjoe Trading Ltd
14/04/2021,Restart Grant - Strand One (COVID-19),Restart Grants (COVID-19),"2,667.00",Charles Martin Watch Company
14/04/2021,Restart Grant - Strand One (COVID-19),Restart Grants (COVID-19),"4,000.00",Chattin Ltd
02/06/2021,Local Restrictions Support Grants � Discretionary (COVID-19),Local Restrictions Support Grants (COVID-19),"5,000.00",Cherrington Cleaners Ltd
14/04/2021,Restart Grant - Strand One (COVID-19),Restart Grants (COVID-19),"4,000.00",Chris Goodhead Photographic Limited
14/04/2021,Restart Grant - Strand Two (COVID-19),Restart Grants (COVID-19),"8,000.00",Church Farm
21/04/2021,Books and Publications,Financial Management Unit,860.00,CIPFA Business Ltd
18/02/2021,Public Participation & Consultation,Programmes and Transformation,"1,595.00",CIPFA Business Ltd
01/03/2021,Subscriptions,Financial Management Unit,"2,995.00",CIPFA Business Ltd
15/04/2021,Subscriptions,Financial Management Unit,"3,760.00",CIPFA Business Ltd
12/04/2021,Printing and Stationery,Neighbourhood Planning Referendum,990.97,Civica Election Services Limited
12/04/2021,Printing and Stationery,Council Elections,"1,774.45",Civica Election Services Limited
20/04/2021,Printing and Stationery,Electoral Services,"2,286.16",Civica Election Services Limited
08/04/2021,Printing and Stationery,Police Elections,"6,732.02",Civica Election Services Limited
08/04/2021,Printing and Stationery,Police Elections,"33,660.08",Civica Election Services Limited
25/02/2020,Software Licenses & Contracts,ICT,"3,245.20",Civica Services Ltd
14/04/2021,Restart Grant - Strand Two (COVID-19),Restart Grants (COVID-19),"8,000.00",Claudias Limited
14/04/2021,Restart Grant - Strand Two (COVID-19),Restart Grants (COVID-19),"8,000.00",Claypotlounge Limited
19/05/2021,Local Restrictions Support Grants � Discretionary (COVID-19),Local Restrictions Support Grants (COVID-19),"10,000.00",Clearpath UK Limited
14/04/2021,Restart Grant - Strand Two (COVID-19),Restart Grants (COVID-19),"8,000.00",Coach House
02/06/2021,Local Restrictions Support Grants � Discretionary (COVID-19),Local Restrictions Support Grants (COVID-19),"10,000.00",Colorscan Imaging Ltd
11/04/2021,Temporary Staff Costs,Street Cleaning,653.23,Comensura Ltd
20/04/2021,Temporary Staff Costs,Street Cleaning,687.63,Comensura Ltd
06/06/2021,Temporary Staff Costs,Street Cleaning,701.81,Comensura Ltd
11/05/2021,Temporary Staff Costs,Compliance and Enforcement Funding (COVID-19),837.06,Comensura Ltd
01/06/2021,Temporary Staff Costs,Compliance and Enforcement Funding (COVID-19),914.07,Comensura Ltd
25/04/2021,Temporary Staff Costs,Compliance and Enforcement Funding (COVID-19),917.82,Comensura Ltd
16/05/2021,Temporary Staff Costs,Compliance and Enforcement Funding (COVID-19),931.28,Comensura Ltd
06/06/2021,Temporary Staff Costs,Compliance and Enforcement Funding (COVID-19),931.28,Comensura Ltd
01/06/2021,Temporary Staff Costs,Refuse Collection,986.05,Comensura Ltd
11/05/2021,Temporary Staff Costs,Street Cleaning,"1,050.84",Comensura Ltd
01/06/2021,Temporary Staff Costs,Recycling,"1,050.88",Comensura Ltd
20/04/2021,Temporary Staff Costs,Compliance and Enforcement Funding (COVID-19),"1,056.61",Comensura Ltd
28/03/2021,Temporary Staff Costs,Compliance and Enforcement Funding (COVID-19),"1,183.38",Comensura Ltd
04/04/2021,Temporary Staff Costs,Compliance and Enforcement Funding (COVID-19),"1,392.56",Comensura Ltd
23/05/2021,Temporary Staff Costs,Street Cleaning,"1,432.95",Comensura Ltd
11/04/2021,Temporary Staff Costs,Compliance and Enforcement Funding (COVID-19),"1,786.54",Comensura Ltd
25/04/2021,Temporary Staff Costs,Refuse Collection,"1,971.81",Comensura Ltd
25/04/2021,Temporary Staff Costs,Recycling,"1,986.26",Comensura Ltd
16/05/2021,Temporary Staff Costs,Refuse Collection,"2,352.17",Comensura Ltd
20/04/2021,Temporary Staff Costs,Recycling,"3,267.99",Comensura Ltd
20/04/2021,Temporary Staff Costs,Refuse Collection,"3,407.30",Comensura Ltd
16/05/2021,Temporary Staff Costs,Recycling,"3,532.23",Comensura Ltd
28/03/2021,Temporary Staff Costs,Recycling,"3,867.50",Comensura Ltd
11/04/2021,Temporary Staff Costs,Recycling,"4,734.28",Comensura Ltd
28/03/2021,Temporary Staff Costs,Refuse Collection,"5,634.04",Comensura Ltd
23/05/2021,Temporary Staff Costs,Refuse Collection,"5,988.20",Comensura Ltd
11/05/2021,Temporary Staff Costs,Refuse Collection,"6,079.26",Comensura Ltd
11/05/2021,Temporary Staff Costs,Recycling,"7,077.66",Comensura Ltd
23/05/2021,Temporary Staff Costs,Recycling,"7,170.64",Comensura Ltd
11/04/2021,Temporary Staff Costs,Refuse Collection,"7,193.97",Comensura Ltd
06/06/2021,Temporary Staff Costs,Refuse Collection,"8,027.88",Comensura Ltd
06/06/2021,Temporary Staff Costs,Recycling,"9,669.86",Comensura Ltd
14/04/2021,Local Restrictions Support Grants � Discretionary (COVID-19),Local Restrictions Support Grants (COVID-19),"10,000.00",Compare Travel Essentials
14/04/2021,Restart Grant - Strand One (COVID-19),Restart Grants (COVID-19),"2,667.00",Computer Lifeline Ltd
14/04/2021,Restart Grant - Strand One (COVID-19),Restart Grants (COVID-19),"2,667.00",Computers n Stuff Ltd
14/04/2021,Restart Grant - Strand Two (COVID-19),Restart Grants (COVID-19),"8,000.00",Conal Hairdressing
14/04/2021,Restart Grant - Strand Two (COVID-19),Restart Grants (COVID-19),"8,000.00",Confessions Burton Ltd
14/04/2021,Restart Grant - Strand One (COVID-19),Restart Grants (COVID-19),"4,000.00",Connektred Ltd
14/04/2021,Restart Grant - Strand Two (COVID-19),Restart Grants (COVID-19),"8,000.00",Core 300 Burton Ltd
15/04/2021,Consultants,Legal Services,"1,250.00",Cornerstone Barristers
30/03/2021,Subscriptions,Licensing,"1,500.00",Cornerstone Barristers
02/06/2021,Local Restrictions Support Grants � Discretionary (COVID-19),Local Restrictions Support Grants (COVID-19),"5,000.00",Corporate Travel Plus Ltd
14/04/2021,Local Restrictions Support Grants � Discretionary (COVID-19),Local Restrictions Support Grants (COVID-19),"10,000.00",Corporate Travel Plus Ltd
14/04/2021,Restart Grant - Strand One (COVID-19),Restart Grants (COVID-19),"6,000.00",Coyte Furnishings Ltd
14/04/2021,Restart Grant - Strand One (COVID-19),Restart Grants (COVID-19),"4,000.00",Coytes Capets Ltd
24/05/2021,Consumables & Media Supplies,Brewhouse Arts Centre,823.40,CPC
16/04/2021,Provision of Wheelie Bins,Refuse Collection,"11,212.50",Craemer UK Limited
15/04/2021,Provision of Wheelie Bins,Recycling,"12,792.00",Craemer UK Limited
15/04/2021,Provision of Wheelie Bins,Recycling,"13,696.80",Craemer UK Limited
19/05/2021,Local Restrictions Support Grants � Discretionary (COVID-19),Local Restrictions Support Grants (COVID-19),"10,000.00",C-Rail Technical Consulting Ltd
14/04/2021,Restart Grant - Strand One (COVID-19),Restart Grants (COVID-19),"2,667.00",Creative Vape Ltd t/a Vapebox
14/04/2021,Restart Grant - Strand One (COVID-19),Restart Grants (COVID-19),"4,000.00",Csm Furnishings Ltd
14/04/2021,Local Restrictions Support Grants � Mandatory Closed (COVID-19),Local Restrictions Support Grants (COVID-19),"2,000.00",Cubico UK Ltd
14/04/2021,Local Restrictions Support Grants � Mandatory Closed (COVID-19),Local Restrictions Support Grants (COVID-19),"3,000.00",Cubico UK Ltd
14/04/2021,Local Restrictions Support Grants � Mandatory Closed (COVID-19),Local Restrictions Support Grants (COVID-19),"3,143.00",Cubico UK Ltd
14/04/2021,Closed Business Lockdown Grants (COVID-19),Closed Business Lockdown Grants (COVID-19),"6,000.00",Cubico UK Ltd
04/05/2021,DFG Contractor Payments,Housing Standards,735.04,Currys PC World Business
23/04/2021,Hardware Contracts,ICT,"2,502.48",Curvature Services (UK) Ltd
14/04/2021,Restart Grant - Strand One (COVID-19),Restart Grants (COVID-19),"4,000.00",D & S (Mids) Limited
31/03/2021,Grounds Maintenance,Open Spaces,500.00,D Mccarthy Bros (Lichfield) Ltd
13/04/2021,Grounds Maintenance,Open Spaces,500.00,D Mccarthy Bros (Lichfield) Ltd
24/05/2021,Grounds Maintenance,Open Spaces,700.00,D Mccarthy Bros (Lichfield) Ltd
24/05/2021,Grounds Maintenance,Open Spaces,950.00,D Mccarthy Bros (Lichfield) Ltd
29/04/2021,Grounds Maintenance,Open Spaces,"1,600.00",D Mccarthy Bros (Lichfield) Ltd
07/05/2021,Grounds Maintenance,Open Spaces,"2,700.00",D Mccarthy Bros (Lichfield) Ltd
22/05/2021,Safer Public Spaces (Covid-19),Re-Opening the High Streets (COVID-19),"1,800.00",D S K Engineering Services
14/04/2021,Restart Grant - Strand One (COVID-19),Restart Grants (COVID-19),"2,667.00",Daisy Chain (Uttoxeter) Ltd
14/04/2021,Restart Grant - Strand One (COVID-19),Restart Grants (COVID-19),"2,667.00",Daisychain Benevolent Fund
31/03/2021,Other Equipment,Police Elections,"2,154.00",Daytona Visual Marketing Ltd
14/04/2021,Restart Grant - Strand One (COVID-19),Restart Grants (COVID-19),"4,000.00",De Rijk Limited
14/04/2021,Restart Grant - Strand One (COVID-19),Restart Grants (COVID-19),"2,667.00",D�cor Floors Ltd
24/06/2021,Rents,Police Elections,525.00,Denstone Village Hall Committee
14/04/2021,Restart Grant - Strand Two (COVID-19),Restart Grants (COVID-19),"8,000.00",Denstone Village Hall Committee
06/05/2021,Dangerous Structures,Building Consultancy Chargeable Activities,800.00,Derbyshire Building Control Partnership
12/05/2021,Local Restrictions Support Grants � Discretionary (COVID-19),Local Restrictions Support Grants (COVID-19),"10,000.00",DHM Brewery Services Ltd
14/04/2021,Local Restrictions Support Grants � Discretionary (COVID-19),Local Restrictions Support Grants (COVID-19),"10,000.00",Dial Direct UK Ltd
16/12/2020,DFG Contractor Payments,Housing Standards,"4,473.75",Direct Healthcare Group
14/04/2021,Restart Grant - Strand One (COVID-19),Restart Grants (COVID-19),"2,667.00",DISCCO (Stoke on Trent) Ltd
21/04/2021,Local Restrictions Support Grants � Mandatory Closed (COVID-19),Local Restrictions Support Grants (COVID-19),"1,000.00",Disco Bar Uttoxeter
21/04/2021,Local Restrictions Support Grants � Mandatory Closed (COVID-19),Local Restrictions Support Grants (COVID-19),"1,000.00",Disco Bar Uttoxeter
21/04/2021,Local Restrictions Support Grants � Mandatory Closed (COVID-19),Local Restrictions Support Grants (COVID-19),"2,000.00",Disco Bar Uttoxeter
21/04/2021,Local Restrictions Support Grants � Mandatory Closed (COVID-19),Local Restrictions Support Grants (COVID-19),"3,000.00",Disco Bar Uttoxeter
21/04/2021,Local Restrictions Support Grants � Mandatory Closed (COVID-19),Local Restrictions Support Grants (COVID-19),"3,143.00",Disco Bar Uttoxeter
21/04/2021,Closed Business Lockdown Grants (COVID-19),Closed Business Lockdown Grants (COVID-19),"6,000.00",Disco Bar Uttoxeter
02/06/2021,Restart Grant - Strand Two (COVID-19),Restart Grants (COVID-19),"12,000.00",Disco Bar Uttoxeter
21/04/2021,Subscriptions,Chief Executive,"1,791.00",District Councils Network
05/03/2021,Subscriptions,Building Consultancy Chargeable Activities,"2,123.23",District Surveyors Association Limited t/a LABC
14/04/2021,Restart Grant - Strand Two (COVID-19),Restart Grants (COVID-19),"8,000.00",Divine (Midlands) Ltd
14/04/2021,Restart Grant - Strand Two (COVID-19),Restart Grants (COVID-19),"12,000.00",Dog and Partridge Marchington
14/04/2021,Restart Grant - Strand Two (COVID-19),Restart Grants (COVID-19),"12,000.00",Dorbiere Limited
14/04/2021,Restart Grant - Strand Two (COVID-19),Restart Grants (COVID-19),"12,000.00",Dorbiere Limited
05/05/2021,System Maintenance,ICT,"1,325.00",Dotted Eyes Ltd
14/04/2021,Restart Grant - Strand Two (COVID-19),Restart Grants (COVID-19),"8,000.00",Draycott in the Clay Village Hall
21/04/2021,Local Restrictions Support Grants � Discretionary (COVID-19),Local Restrictions Support Grants (COVID-19),"10,000.00",DrivenMedia Ltd
14/04/2021,Restart Grant - Strand Two (COVID-19),Restart Grants (COVID-19),"12,000.00",Duck & Ferret Limited
14/04/2021,Restart Grant - Strand Two (COVID-19),Restart Grants (COVID-19),"8,000.00",Dunstall Cricket Club
14/04/2021,Restart Grant - Strand One (COVID-19),Restart Grants (COVID-19),"2,667.00",DVM Enterprises Ltd
14/04/2021,Restart Grant - Strand Two (COVID-19),Restart Grants (COVID-19),"12,000.00",E Gold Holdings Ltd
27/05/2021,Electricity,Millers Lane Depot,842.19,e.on
21/04/2021,Electricity,Open Spaces,"1,068.03",e.on
29/04/2021,Electricity,Millers Lane Depot,"1,122.62",e.on
26/03/2021,Electricity,Millers Lane Depot,"1,220.30",e.on
02/04/2021,Car Parks Maintenance,Open Spaces,"13,006.07",e.on
21/05/2021,Car Parks Maintenance,Open Spaces,"2,872.90",E.on Energy Solutions Ltd
09/06/2021,General Grants,Health & Leisure Grants,"7,400.00",East Staffs Sports Council
14/04/2021,Restart Grant - Strand One (COVID-19),Restart Grants (COVID-19),"2,667.00",ECIG Emporium
14/04/2021,Restart Grant - Strand Two (COVID-19),Restart Grants (COVID-19),"8,000.00",Edgington Enterprises Ltd
14/04/2021,Restart Grant - Strand Two (COVID-19),Restart Grants (COVID-19),"8,000.00",Ego Hair Design
02/06/2021,Local Restrictions Support Grants � Discretionary (COVID-19),Local Restrictions Support Grants (COVID-19),"5,000.00",EGO Technology Ltd
19/05/2021,Local Restrictions Support Grants � Discretionary (COVID-19),Local Restrictions Support Grants (COVID-19),"10,000.00",EGO Technology Ltd
14/05/2021,Contributions to Other Bodies,Police Elections,"10,000.00",Election Claims Unit
30/06/2021,Local Restrictions Support Grants � Discretionary (COVID-19),Local Restrictions Support Grants (COVID-19),"10,000.00",Electro Global Ltd
14/04/2021,Restart Grant - Strand One (COVID-19),Restart Grants (COVID-19),"4,000.00",Elegance Tailoring
14/04/2021,Restart Grant - Strand One (COVID-19),Restart Grants (COVID-19),"6,000.00",Eleganze Limited
14/04/2021,Restart Grant - Strand One (COVID-19),Restart Grants (COVID-19),"2,667.00",Elite Auto Restore Ltd
21/04/2021,Local Restrictions Support Grants � Discretionary (COVID-19),Local Restrictions Support Grants (COVID-19),"10,000.00",Elite Dance
03/06/2021,Repairs & Maintenance to Buildings,Facilities Management,"1,322.00",Elite Roofing & Cladding Ltd
03/06/2021,Repairs & Maintenance to Buildings,Facilities Management,"1,598.00",Elite Roofing & Cladding Ltd
03/06/2021,Car Parks Maintenance,Open Spaces,"2,816.00",Elite Roofing & Cladding Ltd
14/04/2021,Restart Grant - Strand One (COVID-19),Restart Grants (COVID-19),"2,667.00",Elite Windows (Burton)  Ltd
28/04/2021,Local Restrictions Support Grants � Mandatory Closed (COVID-19),Local Restrictions Support Grants (COVID-19),"2,096.00",Ellastone & District Bowls Club
02/06/2021,Restart Grant - Strand Two (COVID-19),Restart Grants (COVID-19),"8,000.00",Ellastone & District Bowls Club
14/04/2021,Restart Grant - Strand Two (COVID-19),Restart Grants (COVID-19),"8,000.00",Ellastone Parish Hall
30/06/2021,Local Restrictions Support Grants � Discretionary (COVID-19),Local Restrictions Support Grants (COVID-19),"5,000.00",Enhance Medical Aesthetic Clinic Ltd
05/06/2021,Consultants,Environmental Health,750.00,Enviroconsult Limited
19/05/2021,Subscriptions,Environmental Health,"1,530.00",Envitech Europe Ltd
14/04/2021,Local Restrictions Support Grants � Discretionary (COVID-19),Local Restrictions Support Grants (COVID-19),"10,000.00",Equilibrium
30/06/2021,Local Restrictions Support Grants � Discretionary (COVID-19),Local Restrictions Support Grants (COVID-19),"10,000.00",ESA Valeting Centre Ltd
14/04/2021,Restart Grant - Strand Two (COVID-19),Restart Grants (COVID-19),"8,000.00",Escape Hair Design Ltd
14/04/2021,Restart Grant - Strand Two (COVID-19),Restart Grants (COVID-19),"8,000.00",Escape Time Burton Ltd
16/06/2021,Other Equipment,Environmental Health,"2,899.00",ESU1 Limited
28/04/2021,Local Restrictions Support Grants � Mandatory Closed (COVID-19),Local Restrictions Support Grants (COVID-19),667.00,Every House Coffee Shop Ltd
28/04/2021,Local Restrictions Support Grants � Mandatory Closed (COVID-19),Local Restrictions Support Grants (COVID-19),667.00,Every House Coffee Shop Ltd
28/04/2021,Local Restrictions Support Grants � Mandatory Closed (COVID-19),Local Restrictions Support Grants (COVID-19),"2,001.00",Every House Coffee Shop Ltd
28/04/2021,Local Restrictions Support Grants � Mandatory Closed (COVID-19),Local Restrictions Support Grants (COVID-19),"2,096.00",Every House Coffee Shop Ltd
28/04/2021,Closed Business Lockdown Grants (COVID-19),Closed Business Lockdown Grants (COVID-19),"4,000.00",Every House Coffee Shop Ltd
14/04/2021,Restart Grant - Strand One (COVID-19),Restart Grants (COVID-19),"4,000.00",Every House Interiors Lrd
28/04/2021,Local Restrictions Support Grants � Discretionary (COVID-19),Local Restrictions Support Grants (COVID-19),"10,000.00",Excloosive Ltd
14/04/2021,Restart Grant - Strand One (COVID-19),Restart Grants (COVID-19),"2,667.00",Exclusive Classic Cars Ltd
28/04/2021,Local Restrictions Support Grants � Discretionary (COVID-19),Local Restrictions Support Grants (COVID-19),"10,000.00",Executive Alpine Taxis Burton Ltd
14/04/2021,Restart Grant - Strand Two (COVID-19),Restart Grants (COVID-19),"8,000.00",Exquisite
14/04/2021,Restart Grant - Strand One (COVID-19),Restart Grants (COVID-19),"4,000.00",F Hinds/Chapelle Branches Account
02/06/2021,Restart Grant - Strand Two (COVID-19),Restart Grants (COVID-19),"8,000.00",Faciem Ltd
23/06/2021,Local Restrictions Support Grants � Discretionary (COVID-19),Local Restrictions Support Grants (COVID-19),"10,000.00",Falcon Cars & Taxis Ltd
02/06/2021,Local Restrictions Support Grants � Discretionary (COVID-19),Local Restrictions Support Grants (COVID-19),"10,000.00",Fasttrack Resources Ltd
14/04/2021,Restart Grant - Strand One (COVID-19),Restart Grants (COVID-19),"2,667.00",Fat Cats
14/04/2021,Restart Grant - Strand Two (COVID-19),Restart Grants (COVID-19),"12,000.00",Favourite Thai Ltd
21/04/2021,Local Restrictions Support Grants � Discretionary (COVID-19),Local Restrictions Support Grants (COVID-19),"10,000.00",FCM Associates Ltd
14/04/2021,Restart Grant - Strand Two (COVID-19),Restart Grants (COVID-19),"8,000.00",Feathers & Oak Ltd
14/04/2021,Restart Grant - Strand Two (COVID-19),Restart Grants (COVID-19),"12,000.00",Febo Enterprises Ltd
14/04/2021,Restart Grant - Strand Two (COVID-19),Restart Grants (COVID-19),"12,000.00",Febo Enterprises Ltd
14/04/2021,Restart Grant - Strand Two (COVID-19),Restart Grants (COVID-19),"12,000.00",Febo Enterprises Ltd
07/04/2021,Local Restrictions Support Grants � Mandatory Closed (COVID-19),Local Restrictions Support Grants (COVID-19),667.00,Fine Wine Investments
07/04/2021,Local Restrictions Support Grants � Mandatory Closed (COVID-19),Local Restrictions Support Grants (COVID-19),667.00,Fine Wine Investments
07/04/2021,Local Restrictions Support Grants � Mandatory Closed (COVID-19),Local Restrictions Support Grants (COVID-19),"1,334.00",Fine Wine Investments
07/04/2021,Local Restrictions Support Grants � Mandatory Closed (COVID-19),Local Restrictions Support Grants (COVID-19),"2,001.00",Fine Wine Investments
07/04/2021,Local Restrictions Support Grants � Mandatory Closed (COVID-19),Local Restrictions Support Grants (COVID-19),"2,096.00",Fine Wine Investments
07/04/2021,Closed Business Lockdown Grants (COVID-19),Closed Business Lockdown Grants (COVID-19),"4,000.00",Fine Wine Investments
14/04/2021,Restart Grant - Strand Two (COVID-19),Restart Grants (COVID-19),"8,000.00",Fine Wine Investments
02/06/2021,Local Restrictions Support Grants � Discretionary (COVID-19),Local Restrictions Support Grants (COVID-19),"10,000.00",First Choice Wholesale Foods Ltd
14/04/2021,Restart Grant - Strand One (COVID-19),Restart Grants (COVID-19),"4,000.00",Fishermania Ltd
14/04/2021,Restart Grant - Strand Two (COVID-19),Restart Grants (COVID-19),"8,000.00",Floriosa Ltd
01/03/2021,Safer Public Spaces (Covid-19),Re-Opening the High Streets (COVID-19),"2,100.00",Fool�s Paradise Ltd
14/04/2021,Restart Grant - Strand Two (COVID-19),Restart Grants (COVID-19),"8,000.00",Fownes Taverns
14/04/2021,Restart Grant - Strand Two (COVID-19),Restart Grants (COVID-19),"8,000.00",Fraxinus
14/04/2021,Restart Grant - Strand Two (COVID-19),Restart Grants (COVID-19),"8,000.00",Frazer Robert Hairdressing
28/04/2021,Local Restrictions Support Grants � Discretionary (COVID-19),Local Restrictions Support Grants (COVID-19),"10,000.00",Freedom Brewery Ltd
14/04/2021,Restart Grant - Strand One (COVID-19),Restart Grants (COVID-19),"4,000.00",Freida Ltd
14/04/2021,Restart Grant - Strand One (COVID-19),Restart Grants (COVID-19),"4,000.00",Friary Shoes Limited
11/06/2021,Consultants,Refuse Collection,"2,940.00",Frith Resource Management Ltd
14/04/2021,Restart Grant - Strand Two (COVID-19),Restart Grants (COVID-19),"8,000.00",Fulcrum Consultancy (UK) Ltd
14/04/2021,Restart Grant - Strand Two (COVID-19),Restart Grants (COVID-19),"8,000.00",Fundamental Fitness Ltd
14/04/2021,Restart Grant - Strand One (COVID-19),Restart Grants (COVID-19),"4,000.00",Furniture Monkey Ltd
14/04/2021,Restart Grant - Strand Two (COVID-19),Restart Grants (COVID-19),"8,000.00",G T Fitness Group Ltd
31/03/2021,Contract Payments,Asset Management,"22,346.36",G Taylor & Son Ltd
14/04/2021,Restart Grant - Strand One (COVID-19),Restart Grants (COVID-19),"2,667.00",G&N Bespoke Furniture Ltd
12/05/2021,Temporary Staff Costs,Business Rate Collection,778.31,G2 Recruitment Solutions
19/05/2021,Temporary Staff Costs,Business Rate Collection,"1,110.00",G2 Recruitment Solutions
16/06/2021,Temporary Staff Costs,Business Rate Collection,"1,110.00",G2 Recruitment Solutions
25/06/2021,Temporary Staff Costs,Business Rate Collection,"1,110.30",G2 Recruitment Solutions
02/06/2021,Temporary Staff Costs,Business Rate Collection,"1,110.30",G2 Recruitment Solutions
14/04/2021,Restart Grant - Strand One (COVID-19),Restart Grants (COVID-19),"4,000.00",Gallerythree Ltd
14/04/2021,Restart Grant - Strand One (COVID-19),Restart Grants (COVID-19),"4,000.00",Ganley Leisure Ltd
14/04/2021,Restart Grant - Strand Two (COVID-19),Restart Grants (COVID-19),"8,000.00",Gardner Hair and Barber Co Ltd
16/06/2021,Local Restrictions Support Grants � Discretionary (COVID-19),Local Restrictions Support Grants (COVID-19),"10,000.00",Gaskell Safety
01/04/2021,Software Licenses & Contracts,Debtors,"6,534.04",Gemini Consultants Ltd
02/06/2021,Restart Grant - Strand One (COVID-19),Restart Grants (COVID-19),"6,000.00",Genus UK Ltd
23/06/2021,Local Restrictions Support Grants � Discretionary (COVID-19),Local Restrictions Support Grants (COVID-19),"10,000.00",Gev Chapman & Son Ltd
14/04/2021,Restart Grant - Strand Two (COVID-19),Restart Grants (COVID-19),"12,000.00",GHH LLP
14/04/2021,Restart Grant - Strand Two (COVID-19),Restart Grants (COVID-19),"8,000.00",Girlguiding UK (Burton on Trent Div)
26/03/2021,Vehicle Maintenance Costs,Trade Waste Recycling,506.00,Go Plant Limited
14/05/2021,Vehicle Maintenance Costs,Recycling,507.20,Go Plant Limited
26/03/2021,Vehicle Maintenance Costs,Refuse Collection,528.00,Go Plant Limited
26/03/2021,Vehicle Maintenance Costs,Street Cleaning,532.17,Go Plant Limited
14/05/2021,Vehicle Maintenance Costs,Street Cleaning,550.96,Go Plant Limited
14/05/2021,Vehicle Maintenance Costs,Recycling,650.62,Go Plant Limited
01/05/2021,Vehicle Maintenance Costs,Street Cleaning,664.50,Go Plant Limited
01/05/2021,Vehicle Maintenance Costs,Street Cleaning,664.50,Go Plant Limited
01/06/2021,Vehicle Maintenance Costs,Street Cleaning,664.50,Go Plant Limited
01/06/2021,Vehicle Maintenance Costs,Street Cleaning,664.50,Go Plant Limited
01/04/2021,Vehicle Maintenance Costs,Street Cleaning,664.50,Go Plant Limited
01/06/2021,Vehicle Maintenance Costs,Street Cleaning,664.50,Go Plant Limited
01/05/2021,Vehicle Maintenance Costs,Street Cleaning,664.50,Go Plant Limited
01/04/2021,Vehicle Maintenance Costs,Street Cleaning,664.50,Go Plant Limited
01/04/2021,Vehicle Maintenance Costs,Street Cleaning,664.50,Go Plant Limited
26/03/2021,Vehicle Maintenance Costs,Recycling,681.61,Go Plant Limited
01/05/2021,Vehicle Maintenance Costs,Street Cleaning,749.16,Go Plant Limited
01/05/2021,Vehicle Maintenance Costs,Street Cleaning,749.16,Go Plant Limited
01/06/2021,Vehicle Maintenance Costs,Street Cleaning,749.16,Go Plant Limited
01/04/2021,Vehicle Maintenance Costs,Street Cleaning,749.16,Go Plant Limited
01/04/2021,Vehicle Maintenance Costs,Street Cleaning,749.16,Go Plant Limited
01/06/2021,Vehicle Maintenance Costs,Street Cleaning,749.16,Go Plant Limited
14/05/2021,Vehicle Maintenance Costs,Recycling,874.98,Go Plant Limited
26/03/2021,Vehicle Maintenance Costs,Street Cleaning,914.39,Go Plant Limited
14/05/2021,Vehicle Maintenance Costs,Recycling,948.02,Go Plant Limited
14/05/2021,Vehicle Maintenance Costs,Trade Waste Recycling,"1,009.80",Go Plant Limited
14/05/2021,Vehicle Maintenance Costs,Recycling,"1,062.08",Go Plant Limited
14/05/2021,Vehicle Maintenance Costs,Recycling,"1,290.30",Go Plant Limited
14/05/2021,Vehicle Maintenance Costs,Recycling,"1,441.89",Go Plant Limited
14/05/2021,Vehicle Maintenance Costs,Recycling,"1,478.10",Go Plant Limited
01/06/2021,Vehicle Maintenance Costs,Refuse Collection,"1,874.58",Go Plant Limited
01/04/2021,Vehicle Maintenance Costs,Refuse Collection,"1,874.58",Go Plant Limited
01/05/2021,Vehicle Maintenance Costs,Refuse Collection,"1,874.58",Go Plant Limited
01/06/2021,Vehicle Maintenance Costs,Street Cleaning,"1,874.58",Go Plant Limited
01/06/2021,Vehicle Maintenance Costs,Street Cleaning,"1,874.58",Go Plant Limited
01/06/2021,Vehicle Maintenance Costs,Street Cleaning,"1,874.58",Go Plant Limited
01/04/2021,Vehicle Maintenance Costs,Street Cleaning,"1,874.58",Go Plant Limited
01/05/2021,Vehicle Maintenance Costs,Street Cleaning,"1,874.58",Go Plant Limited
01/04/2021,Vehicle Maintenance Costs,Street Cleaning,"1,874.58",Go Plant Limited
01/05/2021,Vehicle Maintenance Costs,Street Cleaning,"1,874.58",Go Plant Limited
01/04/2021,Vehicle Maintenance Costs,Street Cleaning,"1,874.58",Go Plant Limited
01/05/2021,Vehicle Maintenance Costs,Street Cleaning,"1,874.58",Go Plant Limited
01/05/2021,Vehicle Maintenance Costs,Street Cleaning,"2,441.00",Go Plant Limited
01/06/2021,Vehicle Maintenance Costs,Street Cleaning,"2,441.00",Go Plant Limited
01/05/2021,Vehicle Maintenance Costs,Street Cleaning,"2,441.00",Go Plant Limited
01/06/2021,Vehicle Maintenance Costs,Street Cleaning,"2,441.00",Go Plant Limited
01/04/2021,Vehicle Maintenance Costs,Street Cleaning,"2,441.00",Go Plant Limited
01/04/2021,Vehicle Maintenance Costs,Street Cleaning,"2,441.00",Go Plant Limited
01/05/2021,Vehicle Maintenance Costs,Refuse Collection,"2,725.58",Go Plant Limited
01/06/2021,Vehicle Maintenance Costs,Refuse Collection,"2,725.58",Go Plant Limited
01/04/2021,Vehicle Maintenance Costs,Refuse Collection,"2,725.58",Go Plant Limited
01/04/2021,Vehicle Maintenance Costs,Recycling,"3,438.33",Go Plant Limited
01/05/2021,Vehicle Maintenance Costs,Recycling,"3,438.33",Go Plant Limited
01/06/2021,Vehicle Maintenance Costs,Recycling,"3,438.33",Go Plant Limited
01/06/2021,Vehicle Maintenance Costs,Recycling,"3,438.33",Go Plant Limited
01/04/2021,Vehicle Maintenance Costs,Recycling,"3,438.33",Go Plant Limited
01/05/2021,Vehicle Maintenance Costs,Recycling,"3,438.33",Go Plant Limited
01/05/2021,Vehicle Maintenance Costs,Recycling,"3,438.33",Go Plant Limited
01/04/2021,Vehicle Maintenance Costs,Recycling,"3,438.33",Go Plant Limited
01/06/2021,Vehicle Maintenance Costs,Recycling,"3,438.33",Go Plant Limited
01/06/2021,Vehicle Maintenance Costs,Refuse Collection,"3,438.33",Go Plant Limited
01/06/2021,Vehicle Maintenance Costs,Refuse Collection,"3,438.33",Go Plant Limited
01/06/2021,Vehicle Maintenance Costs,Refuse Collection,"3,438.33",Go Plant Limited
01/06/2021,Vehicle Maintenance Costs,Refuse Collection,"3,438.33",Go Plant Limited
01/05/2021,Vehicle Maintenance Costs,Refuse Collection,"3,438.33",Go Plant Limited
01/05/2021,Vehicle Maintenance Costs,Refuse Collection,"3,438.33",Go Plant Limited
01/05/2021,Vehicle Maintenance Costs,Refuse Collection,"3,438.33",Go Plant Limited
01/04/2021,Vehicle Maintenance Costs,Refuse Collection,"3,438.33",Go Plant Limited
01/04/2021,Vehicle Maintenance Costs,Refuse Collection,"3,438.33",Go Plant Limited
01/04/2021,Vehicle Maintenance Costs,Refuse Collection,"3,438.33",Go Plant Limited
01/05/2021,Vehicle Maintenance Costs,Refuse Collection,"3,438.33",Go Plant Limited
01/04/2021,Vehicle Maintenance Costs,Refuse Collection,"3,438.33",Go Plant Limited
01/05/2021,Vehicle Maintenance Costs,Trade Waste Recycling,"3,438.33",Go Plant Limited
01/04/2021,Vehicle Maintenance Costs,Trade Waste Recycling,"3,438.33",Go Plant Limited
01/06/2021,Vehicle Maintenance Costs,Trade Waste Recycling,"3,438.33",Go Plant Limited
01/04/2021,Vehicle Maintenance Costs,Recycling,"3,597.50",Go Plant Limited
01/05/2021,Vehicle Maintenance Costs,Recycling,"3,597.50",Go Plant Limited
01/06/2021,Vehicle Maintenance Costs,Recycling,"3,597.50",Go Plant Limited
01/06/2021,Vehicle Maintenance Costs,Recycling,"4,286.33",Go Plant Limited
01/06/2021,Vehicle Maintenance Costs,Recycling,"4,286.33",Go Plant Limited
01/05/2021,Vehicle Maintenance Costs,Recycling,"4,286.33",Go Plant Limited
01/06/2021,Vehicle Maintenance Costs,Recycling,"4,286.33",Go Plant Limited
01/06/2021,Vehicle Maintenance Costs,Recycling,"4,286.33",Go Plant Limited
01/06/2021,Vehicle Maintenance Costs,Recycling,"4,286.33",Go Plant Limited
01/04/2021,Vehicle Maintenance Costs,Recycling,"4,286.33",Go Plant Limited
01/05/2021,Vehicle Maintenance Costs,Recycling,"4,286.33",Go Plant Limited
01/04/2021,Vehicle Maintenance Costs,Recycling,"4,286.33",Go Plant Limited
01/04/2021,Vehicle Maintenance Costs,Recycling,"4,286.33",Go Plant Limited
01/05/2021,Vehicle Maintenance Costs,Recycling,"4,286.33",Go Plant Limited
01/05/2021,Vehicle Maintenance Costs,Recycling,"4,286.33",Go Plant Limited
01/04/2021,Vehicle Maintenance Costs,Recycling,"4,286.33",Go Plant Limited
01/05/2021,Vehicle Maintenance Costs,Recycling,"4,286.33",Go Plant Limited
01/04/2021,Vehicle Maintenance Costs,Recycling,"4,286.33",Go Plant Limited
01/05/2021,Vehicle Maintenance Costs,Recycling,"4,440.08",Go Plant Limited
01/06/2021,Vehicle Maintenance Costs,Recycling,"4,440.08",Go Plant Limited
01/04/2021,Vehicle Maintenance Costs,Recycling,"4,440.08",Go Plant Limited
22/01/2021,Vehicle Maintenance Costs,Street Cleaning,"8,020.65",Go Plant Limited
22/01/2021,Vehicle Maintenance Costs,Recycling,"12,965.10",Go Plant Limited
14/04/2021,Restart Grant - Strand One (COVID-19),Restart Grants (COVID-19),"4,000.00",Gold Giraffe Enterprises Ltd
14/04/2021,Restart Grant - Strand Two (COVID-19),Restart Grants (COVID-19),"8,000.00",Goodall & Maskell Ltd
26/04/2021,Estates Surveyors Fees,Asset Management,"5,750.00",Goodwins Surveyors Ltd
14/04/2021,Restart Grant - Strand Two (COVID-19),Restart Grants (COVID-19),"8,000.00",Gorkhatutbury Ltd
14/04/2021,Restart Grant - Strand One (COVID-19),Restart Grants (COVID-19),"6,000.00",GR & MM Blackledge PLC
14/04/2021,Restart Grant - Strand One (COVID-19),Restart Grants (COVID-19),"4,000.00",Grab & Go Alfrsco Ltd
12/05/2021,Commuted Sum Expenditure,Housing Options,"5,000.00",Grafton Research Services Ltd
12/05/2021,Commuted Sum Expenditure,Housing Options,"5,000.00",Grafton Research Services Ltd
12/05/2021,Commuted Sum Expenditure,Housing Options,"5,000.00",Grafton Research Services Ltd
12/05/2021,Commuted Sum Expenditure,Housing Options,"5,000.00",Grafton Research Services Ltd
12/05/2021,Commuted Sum Expenditure,Housing Options,"5,000.00",Grafton Research Services Ltd
14/04/2021,Restart Grant - Strand Two (COVID-19),Restart Grants (COVID-19),"8,000.00",Granary Court Ltd
06/04/2021,ICT Departmental Purchases,ICT,674.00,Grange IT Ltd
14/04/2021,Restart Grant - Strand Two (COVID-19),Restart Grants (COVID-19),"8,000.00",Grange Lawn Tennis Club
11/06/2021,External Audit Fees,External Audit,"9,403.00",Grant Thornton UK LLP
21/04/2021,Local Restrictions Support Grants � Discretionary (COVID-19),Local Restrictions Support Grants (COVID-19),"10,000.00",Greatrex Buying Services Ltd
14/04/2021,Restart Grant - Strand Two (COVID-19),Restart Grants (COVID-19),"8,000.00",Greelys Ltd
14/04/2021,Restart Grant - Strand Two (COVID-19),Restart Grants (COVID-19),"8,000.00",Guys & Dolls
14/04/2021,Restart Grant - Strand Two (COVID-19),Restart Grants (COVID-19),"12,000.00",Gym (Burton) Ltd
14/04/2021,Restart Grant - Strand Two (COVID-19),Restart Grants (COVID-19),"8,000.00",H & D Nails
14/04/2021,Restart Grant - Strand One (COVID-19),Restart Grants (COVID-19),"2,667.00",H S Vape Ltd
14/04/2021,Restart Grant - Strand Two (COVID-19),Restart Grants (COVID-19),"8,000.00",H.T.Le Limited
14/04/2021,Restart Grant - Strand Two (COVID-19),Restart Grants (COVID-19),"8,000.00",Hair @ 38 Ltd
14/04/2021,Restart Grant - Strand Two (COVID-19),Restart Grants (COVID-19),"8,000.00",Hair By Sally Marie Ltd
14/04/2021,Restart Grant - Strand Two (COVID-19),Restart Grants (COVID-19),"8,000.00",Hairea51 Ltd
14/04/2021,Restart Grant - Strand Two (COVID-19),Restart Grants (COVID-19),"8,000.00",Hairline Staffs Ltd
14/04/2021,Restart Grant - Strand Two (COVID-19),Restart Grants (COVID-19),"8,000.00",Hairloom
14/04/2021,Restart Grant - Strand Two (COVID-19),Restart Grants (COVID-19),"8,000.00",Hanbury Memorial Hall Fund
14/04/2021,Restart Grant - Strand Two (COVID-19),Restart Grants (COVID-19),"8,000.00",Hanbury Wedding Company Limited
04/03/2021,DFG Contractor Payments,Housing Standards,"4,300.00",Handicare Accessibility Ltd
30/06/2021,Local Restrictions Support Grants � Discretionary (COVID-19),Local Restrictions Support Grants (COVID-19),"10,000.00",Hannah Hanso Brow Specialist
14/04/2021,Restart Grant - Strand Two (COVID-19),Restart Grants (COVID-19),"12,000.00",Happy Nails PN Ltd
09/04/2021,Grounds Maintenance,Open Spaces,870.00,Hardy Signs Ltd
31/03/2021,Safer Public Spaces (Covid-19),Re-Opening the High Streets (COVID-19),"2,075.00",Hardy Signs Ltd
16/02/2021,DFG Contractor Payments,Housing Standards,736.00,Harvey & Clark Ltd
17/05/2021,DFG Contractor Payments,Housing Standards,"1,236.10",Harvey & Clark Ltd
31/03/2021,DFG Contractor Payments,Housing Standards,"1,638.12",Harvey & Clark Ltd
31/03/2021,DFG Contractor Payments,Housing Standards,"7,005.80",Harvey & Clark Ltd
31/03/2021,DFG Contractor Payments,Housing Standards,"9,236.80",Harvey & Clark Ltd
17/05/2021,DFG Contractor Payments,Housing Standards,"10,604.60",Harvey & Clark Ltd
14/04/2021,Restart Grant - Strand Two (COVID-19),Restart Grants (COVID-19),"8,000.00",HarveyJ Vinatage Tea Emporium Ltd
14/04/2021,Restart Grant - Strand One (COVID-19),Restart Grants (COVID-19),"2,667.00",HASA 123 Ltd
01/05/2021,Subscriptions,Development Control,"2,500.00",Haymarket Media Group Ltd
28/04/2021,Local Restrictions Support Grants � Mandatory Closed (COVID-19),Local Restrictions Support Grants (COVID-19),"2,000.00",Hays Travel Limited
28/04/2021,Local Restrictions Support Grants � Mandatory Closed (COVID-19),Local Restrictions Support Grants (COVID-19),"3,000.00",Hays Travel Limited
28/04/2021,Closed Business Lockdown Grants (COVID-19),Closed Business Lockdown Grants (COVID-19),"6,000.00",Hays Travel Limited
14/04/2021,Restart Grant - Strand One (COVID-19),Restart Grants (COVID-19),"2,667.00",Hayslope Garage Ltd
14/04/2021,Restart Grant - Strand One (COVID-19),Restart Grants (COVID-19),"6,000.00",Headrock Retail Ltd
01/06/2021,Medical Examinations,Human Resources,591.50,Healthwork Ltd
01/04/2021,Medical Examinations,Human Resources,591.50,Healthwork Ltd
01/05/2021,Medical Examinations,Human Resources,591.50,Healthwork Ltd
14/04/2021,Restart Grant - Strand Two (COVID-19),Restart Grants (COVID-19),"8,000.00",Heart of Siam Ltd
14/04/2021,Restart Grant - Strand Two (COVID-19),Restart Grants (COVID-19),"12,000.00",Helen�s Bakehouse & Tearoom
28/04/2021,Local Restrictions Support Grants � Mandatory Closed (COVID-19),Local Restrictions Support Grants (COVID-19),667.00,Hen Hut Ltd
28/04/2021,Local Restrictions Support Grants � Mandatory Closed (COVID-19),Local Restrictions Support Grants (COVID-19),667.00,Hen Hut Ltd
28/04/2021,Local Restrictions Support Grants � Mandatory Closed (COVID-19),Local Restrictions Support Grants (COVID-19),"1,334.00",Hen Hut Ltd
28/04/2021,Local Restrictions Support Grants � Mandatory Closed (COVID-19),Local Restrictions Support Grants (COVID-19),"2,001.00",Hen Hut Ltd
28/04/2021,Local Restrictions Support Grants � Mandatory Closed (COVID-19),Local Restrictions Support Grants (COVID-19),"2,096.00",Hen Hut Ltd
28/04/2021,Closed Business Lockdown Grants (COVID-19),Closed Business Lockdown Grants (COVID-19),"4,000.00",Hen Hut Ltd
02/06/2021,Restart Grant - Strand Two (COVID-19),Restart Grants (COVID-19),"8,000.00",Hen Hut Ltd
14/04/2021,Restart Grant - Strand Two (COVID-19),Restart Grants (COVID-19),"8,000.00",Henhurst & District Recreation Club
14/04/2021,Restart Grant - Strand One (COVID-19),Restart Grants (COVID-19),"2,667.00",Henry Rose Ltd
09/06/2021,Local Restrictions Support Grants � Discretionary (COVID-19),Local Restrictions Support Grants (COVID-19),"10,000.00",Hens for Hire Ltd
14/04/2021,Restart Grant - Strand One (COVID-19),Restart Grants (COVID-19),"4,000.00",Herron Windows (UK) Ltd
14/04/2021,Restart Grant - Strand Two (COVID-19),Restart Grants (COVID-19),"8,000.00",Hibrow Cosmetic Clinic
14/04/2021,Restart Grant - Strand Two (COVID-19),Restart Grants (COVID-19),"8,000.00",Hide Hair Ltd
14/04/2021,Restart Grant - Strand Two (COVID-19),Restart Grants (COVID-19),"8,000.00",High View Cottage
14/04/2021,Restart Grant - Strand One (COVID-19),Restart Grants (COVID-19),"2,667.00",Highridge Computers Ltd
14/04/2021,Restart Grant - Strand Two (COVID-19),Restart Grants (COVID-19),"12,000.00",HKC Fast Food Ltd
30/06/2021,Local Restrictions Support Grants � Discretionary (COVID-19),Local Restrictions Support Grants (COVID-19),"5,000.00",HMBW Charity
14/04/2021,Restart Grant - Strand Two (COVID-19),Restart Grants (COVID-19),"18,000.00",Hoar Cross Ltd
28/04/2021,Restart Grant - Strand Two (COVID-19),Restart Grants (COVID-19),"8,000.00",Hohm Coffee & Bar Ltd
14/04/2021,Restart Grant - Strand Two (COVID-19),Restart Grants (COVID-19),"8,000.00",Holland Sports Club Ltd
14/04/2021,Restart Grant - Strand Two (COVID-19),Restart Grants (COVID-19),"8,000.00",Holly Moggs Beauty
14/04/2021,Restart Grant - Strand One (COVID-19),Restart Grants (COVID-19),"2,667.00",Home of Floors
14/04/2021,Restart Grant - Strand Two (COVID-19),Restart Grants (COVID-19),"8,000.00",Horse & Dove Ltd
07/04/2021,Local Restrictions Support Grants � Mandatory Closed (COVID-19),Local Restrictions Support Grants (COVID-19),535.71,Hospitality & Capital Management Ltd
07/04/2021,Local Restrictions Support Grants � Mandatory Closed (COVID-19),Local Restrictions Support Grants (COVID-19),"1,500.00",Hospitality & Capital Management Ltd
07/04/2021,Local Restrictions Support Grants � Mandatory Closed (COVID-19),Local Restrictions Support Grants (COVID-19),"1,500.00",Hospitality & Capital Management Ltd
07/04/2021,Local Restrictions Support Grants � Mandatory Closed (COVID-19),Local Restrictions Support Grants (COVID-19),"3,000.00",Hospitality & Capital Management Ltd
07/04/2021,Local Restrictions Support Grants � Mandatory Closed (COVID-19),Local Restrictions Support Grants (COVID-19),"4,500.00",Hospitality & Capital Management Ltd
07/04/2021,Local Restrictions Support Grants � Mandatory Closed (COVID-19),Local Restrictions Support Grants (COVID-19),"4,714.00",Hospitality & Capital Management Ltd
07/04/2021,Closed Business Lockdown Grants (COVID-19),Closed Business Lockdown Grants (COVID-19),"9,000.00",Hospitality & Capital Management Ltd
14/04/2021,Restart Grant - Strand Two (COVID-19),Restart Grants (COVID-19),"18,000.00",Hospitality & Capital Management Ltd
14/04/2021,Restart Grant - Strand Two (COVID-19),Restart Grants (COVID-19),"8,000.00",Icepale Ltd
29/03/2021,Car Parks Maintenance,Open Spaces,629.05,Idverde Limited
12/04/2021,Contracted Grounds Maintenance,Cemeteries,"1,213.83",Idverde Limited
29/03/2021,Contracted Grounds Maintenance,Open Spaces,"1,418.06",Idverde Limited
29/03/2021,Contracted Grounds Maintenance,Open Spaces,"2,253.87",Idverde Limited
01/06/2021,Contracted Grounds Maintenance,Open Spaces,"2,851.44",Idverde Limited
12/04/2021,Contracted Grounds Maintenance,Open Spaces,"2,851.44",Idverde Limited
29/03/2021,Grounds Maintenance,Land Drainage,"2,881.60",Idverde Limited
01/06/2021,Contracted Grounds Maintenance,Open Spaces,"4,652.78",Idverde Limited
29/03/2021,Contracted Grounds Maintenance,Open Spaces,"5,025.49",Idverde Limited
01/06/2021,Contracted Grounds Maintenance,Open Spaces,"6,750.47",Idverde Limited
29/03/2021,Contracted Grounds Maintenance,Open Spaces,"7,213.18",Idverde Limited
01/06/2021,Contracted Grounds Maintenance,Open Spaces,"7,630.83",Idverde Limited
01/06/2021,Contracted Grounds Maintenance,Cemeteries,"9,587.62",Idverde Limited
01/06/2021,Contracted Grounds Maintenance,Cemeteries,"9,966.83",Idverde Limited
01/06/2021,Contracted Grounds Maintenance,Open Spaces,"59,608.43",Idverde Limited
01/06/2021,Contracted Grounds Maintenance,Open Spaces,"87,022.15",Idverde Limited
18/05/2021,Overs and Shorts,Income Management,764.00,IGUK Astra Ltd
30/04/2021,Software Licenses & Contracts,Legal Services,"2,025.00",Iken Business Ltd
31/03/2021,Maintenance Contracts,Facilities Management,"1,260.00",Impact Environmental Pest Prevention Ltd
24/05/2021,Direct Purchases,DSO Stores Account,"1,722.96",Imperial Polythene Products Ltd
10/05/2021,Direct Purchases,Trade Waste Recycling,"1,908.48",Imperial Polythene Products Ltd
10/05/2021,Direct Purchases,Recycling,"3,445.92",Imperial Polythene Products Ltd
10/05/2021,Direct Purchases,Street Cleaning,"3,445.92",Imperial Polythene Products Ltd
07/04/2021,Local Restrictions Support Grants � Mandatory Closed (COVID-19),Local Restrictions Support Grants (COVID-19),"1,334.00",Impulse Lingerie Ltd
07/04/2021,Local Restrictions Support Grants � Mandatory Closed (COVID-19),Local Restrictions Support Grants (COVID-19),"2,001.00",Impulse Lingerie Ltd
07/04/2021,Local Restrictions Support Grants � Mandatory Closed (COVID-19),Local Restrictions Support Grants (COVID-19),"2,096.00",Impulse Lingerie Ltd
14/04/2021,Restart Grant - Strand One (COVID-19),Restart Grants (COVID-19),"2,667.00",Impulse Lingerie Ltd
07/04/2021,Closed Business Lockdown Grants (COVID-19),Closed Business Lockdown Grants (COVID-19),"4,000.00",Impulse Lingerie Ltd
23/06/2021,Restart Grant - Strand Two (COVID-19),Restart Grants (COVID-19),"8,000.00",Indian Spice ST14 Ltd
14/04/2021,Restart Grant - Strand Two (COVID-19),Restart Grants (COVID-19),"8,000.00",Infinitii Ltd t/a Infinitii
12/04/2021,Consultants,Business Rate Collection,806.25,Inform CPI Ltd
24/03/2021,Consultants,Business Rate Collection,"1,200.00",Inform CPI Ltd
24/03/2021,Consultants,Business Rate Collection,"1,653.75",Inform CPI Ltd
26/05/2021,Consultants,Business Rate Collection,"2,441.25",Inform CPI Ltd
12/05/2021,Consultants,Business Rate Collection,"2,606.25",Inform CPI Ltd
03/06/2021,Consultants,Business Rate Collection,"5,118.75",Inform CPI Ltd
09/06/2021,Consultants,Business Rate Collection,"5,193.75",Inform CPI Ltd
31/03/2021,Consultants,Business Rate Collection,"5,606.25",Inform CPI Ltd
21/04/2021,Consultants,Business Rate Collection,"21,825.00",Inform CPI Ltd
16/04/2021,Consumables & Media Supplies,Brewhouse Arts Centre,674.11,Insight Direct (UK) Limited
28/05/2021,ICT Departmental Purchases,ICT,735.00,Insight Direct (UK) Limited
14/04/2021,Restart Grant - Strand Two (COVID-19),Restart Grants (COVID-19),"8,000.00",Intercoffeur
14/04/2021,Restart Grant - Strand Two (COVID-19),Restart Grants (COVID-19),"8,000.00",Isey & Co Limited
14/04/2021,Restart Grant - Strand Two (COVID-19),Restart Grants (COVID-19),"8,000.00",J & N at Cab Limited
14/04/2021,Restart Grant - Strand Two (COVID-19),Restart Grants (COVID-19),"8,000.00",J S Gardner Ltd
14/04/2021,Restart Grant - Strand One (COVID-19),Restart Grants (COVID-19),"2,667.00",J S Simnett Photographers
01/06/2021,Rents,Open Spaces,"2,500.00",J T Leavesley Limited
29/03/2021,"Seeds, Plants and Shrubs",Horticultural Resource Centre,502.50,James Coles & Sons (Nurseries)
18/02/2021,"Seeds, Plants and Shrubs",Horticultural Resource Centre,539.50,James Coles & Sons (Nurseries)
02/02/2021,Contracted Grounds Maintenance,Open Spaces,"2,999.00",James Coles & Sons (Nurseries)
14/04/2021,Restart Grant - Strand One (COVID-19),Restart Grants (COVID-19),"6,000.00",Jeff Bains Ltd
14/04/2021,Restart Grant - Strand One (COVID-19),Restart Grants (COVID-19),"2,667.00",Jewellery Specialist Ltd
30/06/2021,Local Restrictions Support Grants � Discretionary (COVID-19),Local Restrictions Support Grants (COVID-19),"10,000.00",Jinnie IT Solutions
21/04/2021,Local Restrictions Support Grants � Discretionary (COVID-19),Local Restrictions Support Grants (COVID-19),"10,000.00",JKN Woodcraft & Furnishings Ltd
30/06/2021,Restart Grant - Strand One (COVID-19),Restart Grants (COVID-19),"2,667.00",JKN Woodcraft and Furnishings Ltd
14/04/2021,Restart Grant - Strand One (COVID-19),Restart Grants (COVID-19),"2,667.00",JMP2000Ltd
30/03/2021,Software Licenses & Contracts,Development Control,"1,399.00",John E Wright & Co Ltd
14/04/2021,Restart Grant - Strand One (COVID-19),Restart Grants (COVID-19),"4,000.00",John Partridge & Co Ltd
07/04/2021,Local Restrictions Support Grants � Mandatory Closed (COVID-19),Local Restrictions Support Grants (COVID-19),535.71,John Pye & Sons Limited Office Account
07/04/2021,Local Restrictions Support Grants � Mandatory Closed (COVID-19),Local Restrictions Support Grants (COVID-19),"3,000.00",John Pye & Sons Limited Office Account
07/04/2021,Local Restrictions Support Grants � Mandatory Closed (COVID-19),Local Restrictions Support Grants (COVID-19),"4,500.00",John Pye & Sons Limited Office Account
07/04/2021,Local Restrictions Support Grants � Mandatory Closed (COVID-19),Local Restrictions Support Grants (COVID-19),"4,714.00",John Pye & Sons Limited Office Account
14/04/2021,Restart Grant - Strand One (COVID-19),Restart Grants (COVID-19),"6,000.00",John Pye & Sons Limited Office Account
07/04/2021,Closed Business Lockdown Grants (COVID-19),Closed Business Lockdown Grants (COVID-19),"9,000.00",John Pye & Sons Limited Office Account
10/05/2021,Accommodation Costs - B & B/Hotels,Next Steps Accommodation Programme (NSAP),500.00,Johnsons Accomodation Ltd
14/04/2021,Restart Grant - Strand One (COVID-19),Restart Grants (COVID-19),"2,667.00",Johnsons the Floris
14/04/2021,Restart Grant - Strand One (COVID-19),Restart Grants (COVID-19),"2,667.00",Journeys a la Carte Ltd
02/06/2021,Local Restrictions Support Grants � Discretionary (COVID-19),Local Restrictions Support Grants (COVID-19),"10,000.00",JPSL Technical Services
30/06/2021,Local Restrictions Support Grants � Mandatory Closed (COVID-19),Local Restrictions Support Grants (COVID-19),"2,096.00",JS Consultancy
30/06/2021,Restart Grant - Strand Two (COVID-19),Restart Grants (COVID-19),"8,000.00",JS Consultancy
02/06/2021,Local Restrictions Support Grants � Discretionary (COVID-19),Local Restrictions Support Grants (COVID-19),"10,000.00",JSC International Ltd
14/04/2021,Restart Grant - Strand Two (COVID-19),Restart Grants (COVID-19),"8,000.00",Jules Hair Salon
14/04/2021,Restart Grant - Strand Two (COVID-19),Restart Grants (COVID-19),"8,000.00",JW Holdings
02/06/2021,Local Restrictions Support Grants � Discretionary (COVID-19),Local Restrictions Support Grants (COVID-19),"5,000.00",K & B Meats Ltd
05/05/2021,Local Restrictions Support Grants � Discretionary (COVID-19),Local Restrictions Support Grants (COVID-19),"10,000.00",K & B Meats Ltd
13/05/2021,DFG Contractor Payments,Housing Standards,"1,683.20",KAB Construct and Develop Ltd
07/04/2021,DFG Contractor Payments,Housing Standards,"9,072.30",KAB Construct and Develop Ltd
14/04/2021,Restart Grant - Strand Two (COVID-19),Restart Grants (COVID-19),"18,000.00",Karali Leisure Ltd
14/04/2021,Restart Grant - Strand Two (COVID-19),Restart Grants (COVID-19),"8,000.00",KBT Burton Ltd
14/04/2021,Restart Grant - Strand One (COVID-19),Restart Grants (COVID-19),"2,667.00",Kera Robson Photography
14/04/2021,Restart Grant - Strand One (COVID-19),Restart Grants (COVID-19),"6,000.00",KGB Fashions Ltd
02/06/2021,Restart Grant - Strand Two (COVID-19),Restart Grants (COVID-19),"12,000.00",Kiku Burton Ltd
28/05/2021,Legal Costs,Development Control,600.00,Kings Chambers
11/06/2021,Legal Costs,Development Control,"12,000.00",Kings Chambers
14/04/2021,Restart Grant - Strand Two (COVID-19),Restart Grants (COVID-19),"8,000.00",Kingstone Village Hall
14/04/2021,Restart Grant - Strand One (COVID-19),Restart Grants (COVID-19),"2,667.00",KLS Wholesale Trading Ltd
14/04/2021,Restart Grant - Strand One (COVID-19),Restart Grants (COVID-19),"2,667.00",KLS Wholesale Trading Ltd
21/05/2021,Rents,Coopers Square Car Park - Surface,"3,000.00",Knight Frank LLP
14/04/2021,Restart Grant - Strand Two (COVID-19),Restart Grants (COVID-19),"8,000.00",Kohinoor Uttoxeter Ltd
23/02/2021,Subscriptions,Financial Management Unit,"6,180.00",L G Futures
28/04/2021,Restart Grant - Strand One (COVID-19),Restart Grants (COVID-19),"2,667.00",L.D.C
07/04/2021,Subscriptions,Housing Benefits Admin,"1,350.00",LA Directories Ltd
14/04/2021,Restart Grant - Strand Two (COVID-19),Restart Grants (COVID-19),"12,000.00",Ladies Gymn UK Ltd
19/05/2021,Restart Grant - Strand Two (COVID-19),Restart Grants (COVID-19),"8,000.00",Lahori Grill
12/05/2021,Overs and Shorts,Income Management,"22,771.61",Lanxess Ltd
26/04/2021,Professional Support,Financial Management Unit,"2,050.00",LAVAT Consulting Ltd t/a PSTAX
14/04/2021,Restart Grant - Strand One (COVID-19),Restart Grants (COVID-19),"2,667.00",Lavin Printers Ltd
14/04/2021,Local Restrictions Support Grants � Mandatory Closed (COVID-19),Local Restrictions Support Grants (COVID-19),"1,334.00",Leigh Village Hall
14/04/2021,Local Restrictions Support Grants � Mandatory Closed (COVID-19),Local Restrictions Support Grants (COVID-19),"2,001.00",Leigh Village Hall
14/04/2021,Local Restrictions Support Grants � Mandatory Closed (COVID-19),Local Restrictions Support Grants (COVID-19),"2,096.00",Leigh Village Hall
14/04/2021,Closed Business Lockdown Grants (COVID-19),Closed Business Lockdown Grants (COVID-19),"4,000.00",Leigh Village Hall
02/06/2021,Restart Grant - Strand Two (COVID-19),Restart Grants (COVID-19),"8,000.00",Leigh Village Hall
14/04/2021,Restart Grant - Strand One (COVID-19),Restart Grants (COVID-19),"2,667.00",Lets Party & Lets Dance Ltd
14/04/2021,Restart Grant - Strand One (COVID-19),Restart Grants (COVID-19),"2,667.00",Lilies Florist Ltd
07/04/2021,Consultants,Capital Financing Costs,"11,750.00",Link Asset Services
14/04/2021,Restart Grant - Strand One (COVID-19),Restart Grants (COVID-19),"2,667.00",Little Gems Photography
02/06/2021,Local Restrictions Support Grants � Discretionary (COVID-19),Local Restrictions Support Grants (COVID-19),"5,000.00",Living Heritage Event Hire Services Ltd
09/04/2021,Subscriptions,Chief Executive,"10,872.18",Local Government Association
14/04/2021,Restart Grant - Strand Two (COVID-19),Restart Grants (COVID-19),"8,000.00",Lower Micklin Farm
14/04/2021,Restart Grant - Strand One (COVID-19),Restart Grants (COVID-19),"2,667.00",Lush Occasions
14/04/2021,Restart Grant - Strand Two (COVID-19),Restart Grants (COVID-19),"8,000.00",Lydias Hair & Beauty Rooms
14/04/2021,Restart Grant - Strand One (COVID-19),Restart Grants (COVID-19),"2,667.00",Lyn Ashworth Ltd
21/01/2021,DFG Contractor Payments,Housing Standards,"2,938.95",Lynch Healthcare Group
12/03/2021,DFG Contractor Payments,Housing Standards,"3,087.86",Lynch Healthcare Group
30/04/2021,Printing and Stationery,Police Elections,877.39,Lyreco UK Ltd
14/04/2021,Restart Grant - Strand Two (COVID-19),Restart Grants (COVID-19),"12,000.00",M L Pub Co
28/04/2021,Local Restrictions Support Grants � Mandatory Closed (COVID-19),Local Restrictions Support Grants (COVID-19),"3,143.00",M&Co Trading Ltd
02/06/2021,Restart Grant - Strand One (COVID-19),Restart Grants (COVID-19),"4,000.00",M&Co Trading Ltd
14/04/2021,Restart Grant - Strand Two (COVID-19),Restart Grants (COVID-19),"8,000.00",Mac�s Cafe. (An Individual t/a)
14/04/2021,Restart Grant - Strand Two (COVID-19),Restart Grants (COVID-19),"8,000.00",Made in Thailand Ltd
14/04/2021,Local Restrictions Support Grants � Mandatory Closed (COVID-19),Local Restrictions Support Grants (COVID-19),"1,334.00",Magnet Ltd
14/04/2021,Local Restrictions Support Grants � Mandatory Closed (COVID-19),Local Restrictions Support Grants (COVID-19),"2,001.00",Magnet Ltd
14/04/2021,Local Restrictions Support Grants � Mandatory Closed (COVID-19),Local Restrictions Support Grants (COVID-19),"2,096.00",Magnet Ltd
02/06/2021,Restart Grant - Strand One (COVID-19),Restart Grants (COVID-19),"2,667.00",Magnet Ltd
14/04/2021,Closed Business Lockdown Grants (COVID-19),Closed Business Lockdown Grants (COVID-19),"4,000.00",Magnet Ltd
06/04/2021,Contributions to Other Bodies,Arts Grant Aid Scheme,"4,000.00",Making Trails
14/04/2021,Restart Grant - Strand Two (COVID-19),Restart Grants (COVID-19),"12,000.00",Manor Gold Club (Kingstone) Ltd
14/04/2021,Restart Grant - Strand Two (COVID-19),Restart Grants (COVID-19),"8,000.00",Manzil Gold Ltd
14/04/2021,Restart Grant - Strand Two (COVID-19),Restart Grants (COVID-19),"8,000.00",Marchington Village Hall
23/06/2021,Restart Grant - Strand Two (COVID-19),Restart Grants (COVID-19),"8,000.00",Marchington Woodlands Village Hall
14/04/2021,Restart Grant - Strand Two (COVID-19),Restart Grants (COVID-19),"8,000.00",Marios Cafe
14/04/2021,Restart Grant - Strand Two (COVID-19),Restart Grants (COVID-19),"8,000.00",Marios HQ
28/04/2021,Restart Grant - Strand One (COVID-19),Restart Grants (COVID-19),"2,667.00",Market Place Shoe Repairs Ltd
14/04/2021,Restart Grant - Strand One (COVID-19),Restart Grants (COVID-19),"4,000.00",Market Place Travel Ltd
14/04/2021,Restart Grant - Strand Two (COVID-19),Restart Grants (COVID-19),"8,000.00",Marsh Farm
27/05/2021,Catering Supplies,Brewhouse Cafe/Bar,670.73,Marston�s PLC
21/04/2021,Local Restrictions Support Grants � Discretionary (COVID-19),Local Restrictions Support Grants (COVID-19),"10,000.00",Mason Consultants Ltd
14/04/2021,Restart Grant - Strand Two (COVID-19),Restart Grants (COVID-19),"12,000.00",MASW Limited
14/04/2021,Local Restrictions Support Grants � Mandatory Closed (COVID-19),Local Restrictions Support Grants (COVID-19),535.71,Matalan Retail Ltd Overheads
14/04/2021,Local Restrictions Support Grants � Mandatory Closed (COVID-19),Local Restrictions Support Grants (COVID-19),"3,000.00",Matalan Retail Ltd Overheads
14/04/2021,Local Restrictions Support Grants � Mandatory Closed (COVID-19),Local Restrictions Support Grants (COVID-19),"4,500.00",Matalan Retail Ltd Overheads
14/04/2021,Local Restrictions Support Grants � Mandatory Closed (COVID-19),Local Restrictions Support Grants (COVID-19),"4,714.00",Matalan Retail Ltd Overheads
02/06/2021,Restart Grant - Strand One (COVID-19),Restart Grants (COVID-19),"6,000.00",Matalan Retail Ltd Overheads
14/04/2021,Closed Business Lockdown Grants (COVID-19),Closed Business Lockdown Grants (COVID-19),"9,000.00",Matalan Retail Ltd Overheads
14/04/2021,Restart Grant - Strand One (COVID-19),Restart Grants (COVID-19),"2,667.00",Max Spielmann Ltd
14/04/2021,Restart Grant - Strand One (COVID-19),Restart Grants (COVID-19),"2,667.00",Max Spielmann Ltd
14/04/2021,Restart Grant - Strand Two (COVID-19),Restart Grants (COVID-19),"8,000.00",Mayfield Memorial Hall Committee
14/04/2021,Restart Grant - Strand Two (COVID-19),Restart Grants (COVID-19),"8,000.00",Mayfield Recreational Association
09/06/2021,Restart Grant - Strand Two (COVID-19),Restart Grants (COVID-19),"8,000.00",Mcintyre Pub Management Ltd
14/04/2021,Restart Grant - Strand Two (COVID-19),Restart Grants (COVID-19),"18,000.00",McLean Restaurants
14/04/2021,Restart Grant - Strand Two (COVID-19),Restart Grants (COVID-19),"18,000.00",McLean Restaurants
14/04/2021,Restart Grant - Strand Two (COVID-19),Restart Grants (COVID-19),"18,000.00",McLean Restaurants Ltd
14/04/2021,Restart Grant - Strand Two (COVID-19),Restart Grants (COVID-19),"18,000.00",Mecca Bingo Ltd
30/06/2021,Restart Grant - Strand One (COVID-19),Restart Grants (COVID-19),"2,667.00",MEH interiors Ltd
14/04/2021,Restart Grant - Strand Two (COVID-19),Restart Grants (COVID-19),"12,000.00",MerciaFit Ltd t/a CrossFit Mercia
01/06/2021,Repairs and Maintenance of Car Park Ticket Machines,Car Parks - General,"1,507.50",Metric Group Limited
01/03/2021,Repairs and Maintenance of Car Park Ticket Machines,Car Parks - General,"1,507.50",Metric Group Limited
01/06/2021,Repairs and Maintenance of Car Park Ticket Machines,Car Parks - General,"1,536.00",Metric Group Limited
01/03/2021,Repairs and Maintenance of Car Park Ticket Machines,Car Parks - General,"1,536.00",Metric Group Limited
14/04/2021,Restart Grant - Strand Two (COVID-19),Restart Grants (COVID-19),"18,000.00",Mia Hoar Cross Ltd
14/04/2021,Restart Grant - Strand Two (COVID-19),Restart Grants (COVID-19),"8,000.00",Miah Spice Ltd
14/04/2021,Restart Grant - Strand Two (COVID-19),Restart Grants (COVID-19),"8,000.00",Michaela Breen Hairdressing
28/04/2021,Local Restrictions Support Grants � Discretionary (COVID-19),Local Restrictions Support Grants (COVID-19),"10,000.00",Mick Williams Ltd
14/04/2021,Restart Grant - Strand One (COVID-19),Restart Grants (COVID-19),"4,000.00",Midco Toys Ltd
16/06/2021,Local Restrictions Support Grants � Discretionary (COVID-19),Local Restrictions Support Grants (COVID-19),"10,000.00",Midland Executive Cars
19/05/2021,Local Restrictions Support Grants � Discretionary (COVID-19),Local Restrictions Support Grants (COVID-19),"10,000.00",Midland Stoves Ltd
02/06/2021,Local Restrictions Support Grants � Discretionary (COVID-19),Local Restrictions Support Grants (COVID-19),"10,000.00",Midlands School for Performing Arts & Media Ltd
28/04/2021,Local Restrictions Support Grants � Mandatory Closed (COVID-19),Local Restrictions Support Grants (COVID-19),"1,334.00",Midlands Sports & Prestige
28/04/2021,Local Restrictions Support Grants � Mandatory Closed (COVID-19),Local Restrictions Support Grants (COVID-19),"1,334.00",Midlands Sports & Prestige
28/04/2021,Local Restrictions Support Grants � Mandatory Closed (COVID-19),Local Restrictions Support Grants (COVID-19),"2,001.00",Midlands Sports & Prestige
28/04/2021,Local Restrictions Support Grants � Mandatory Closed (COVID-19),Local Restrictions Support Grants (COVID-19),"2,001.00",Midlands Sports & Prestige
28/04/2021,Local Restrictions Support Grants � Mandatory Closed (COVID-19),Local Restrictions Support Grants (COVID-19),"2,096.00",Midlands Sports & Prestige
28/04/2021,Local Restrictions Support Grants � Mandatory Closed (COVID-19),Local Restrictions Support Grants (COVID-19),"2,096.00",Midlands Sports & Prestige
14/04/2021,Restart Grant - Strand One (COVID-19),Restart Grants (COVID-19),"2,667.00",Midlands Sports & Prestige
02/06/2021,Restart Grant - Strand One (COVID-19),Restart Grants (COVID-19),"2,667.00",Midlands Sports & Prestige
02/06/2021,Restart Grant - Strand One (COVID-19),Restart Grants (COVID-19),"2,667.00",Midlands Sports & Prestige
28/04/2021,Closed Business Lockdown Grants (COVID-19),Closed Business Lockdown Grants (COVID-19),"4,000.00",Midlands Sports & Prestige
28/04/2021,Closed Business Lockdown Grants (COVID-19),Closed Business Lockdown Grants (COVID-19),"4,000.00",Midlands Sports & Prestige
21/04/2021,Local Restrictions Support Grants � Discretionary (COVID-19),Local Restrictions Support Grants (COVID-19),"10,000.00",Miles Dosher Ltd
14/04/2021,Restart Grant - Strand Two (COVID-19),Restart Grants (COVID-19),"8,000.00",Milestone Gyms Ltd
14/04/2021,Restart Grant - Strand Two (COVID-19),Restart Grants (COVID-19),"8,000.00",Mimi Spa Ltd
21/04/2021,Local Restrictions Support Grants � Discretionary (COVID-19),Local Restrictions Support Grants (COVID-19),"10,000.00",Miniland Ltd
14/04/2021,Restart Grant - Strand One (COVID-19),Restart Grants (COVID-19),"2,667.00",Mobilestyle UK Trading Ltd
14/04/2021,Restart Grant - Strand Two (COVID-19),Restart Grants (COVID-19),"8,000.00",Monroe Hair
09/05/2021,Temporary Staff Costs,Council Tax Collection,796.50,Morgan Hunt UK Ltd
06/06/2021,Temporary Staff Costs,Council Tax Collection,796.50,Morgan Hunt UK Ltd
11/04/2021,Temporary Staff Costs,Council Tax Collection,803.25,Morgan Hunt UK Ltd
11/04/2021,Temporary Staff Costs,Council Tax Collection,810.00,Morgan Hunt UK Ltd
09/05/2021,Temporary Staff Costs,Business Rate Collection,812.16,Morgan Hunt UK Ltd
06/06/2021,Temporary Staff Costs,Business Rate Collection,850.50,Morgan Hunt UK Ltd
23/05/2021,Temporary Staff Costs,Business Rate Collection,931.77,Morgan Hunt UK Ltd
11/04/2021,Temporary Staff Costs,Business Rate Collection,947.38,Morgan Hunt UK Ltd
30/05/2021,Temporary Staff Costs,Business Rate Collection,983.34,Morgan Hunt UK Ltd
16/05/2021,Temporary Staff Costs,Business Rate Collection,994.41,Morgan Hunt UK Ltd
18/04/2021,Temporary Staff Costs,Council Tax Collection,999.00,Morgan Hunt UK Ltd
02/05/2021,Temporary Staff Costs,Council Tax Collection,999.00,Morgan Hunt UK Ltd
30/05/2021,Temporary Staff Costs,Council Tax Collection,999.00,Morgan Hunt UK Ltd
13/06/2021,Temporary Staff Costs,Council Tax Collection,999.00,Morgan Hunt UK Ltd
16/05/2021,Temporary Staff Costs,Council Tax Collection,999.00,Morgan Hunt UK Ltd
02/05/2021,Temporary Staff Costs,Council Tax Collection,999.00,Morgan Hunt UK Ltd
23/05/2021,Temporary Staff Costs,Council Tax Collection,999.00,Morgan Hunt UK Ltd
13/06/2021,Temporary Staff Costs,Business Rate Collection,"1,014.66",Morgan Hunt UK Ltd
02/05/2021,Temporary Staff Costs,Business Rate Collection,"1,019.25",Morgan Hunt UK Ltd
09/05/2021,Temporary Staff Costs,Business Rate Collection,"1,213.02",Morgan Hunt UK Ltd
04/04/2021,Temporary Staff Costs,Business Rate Collection,"1,322.75",Morgan Hunt UK Ltd
06/06/2021,Temporary Staff Costs,Business Rate Collection,"1,334.96",Morgan Hunt UK Ltd
25/04/2021,Temporary Staff Costs,Council Tax Collection,"1,532.32",Morgan Hunt UK Ltd
23/05/2021,Temporary Staff Costs,Council Tax Collection,"1,538.32",Morgan Hunt UK Ltd
13/06/2021,Temporary Staff Costs,Business Rate Collection,"1,544.70",Morgan Hunt UK Ltd
18/04/2021,Temporary Staff Costs,Business Rate Collection,"1,547.70",Morgan Hunt UK Ltd
28/03/2021,Temporary Staff Costs,Business Rate Collection,"1,575.46",Morgan Hunt UK Ltd
30/05/2021,Temporary Staff Costs,Business Rate Collection,"1,575.84",Morgan Hunt UK Ltd
16/05/2021,Temporary Staff Costs,Business Rate Collection,"1,579.22",Morgan Hunt UK Ltd
02/05/2021,Temporary Staff Costs,Business Rate Collection,"1,582.22",Morgan Hunt UK Ltd
14/04/2021,Restart Grant - Strand Two (COVID-19),Restart Grants (COVID-19),"8,000.00",Murooj Salon Ltd t/a Murooj Hair and Beauty
14/04/2021,Local Restrictions Support Grants � Mandatory Closed (COVID-19),Local Restrictions Support Grants (COVID-19),"1,334.00",MX Factory Parts Ltd
14/04/2021,Local Restrictions Support Grants � Mandatory Closed (COVID-19),Local Restrictions Support Grants (COVID-19),"2,001.00",MX Factory Parts Ltd
14/04/2021,Local Restrictions Support Grants � Mandatory Closed (COVID-19),Local Restrictions Support Grants (COVID-19),"2,096.00",MX Factory Parts Ltd
02/06/2021,Restart Grant - Strand One (COVID-19),Restart Grants (COVID-19),"2,667.00",MX Factory Parts Ltd
14/04/2021,Closed Business Lockdown Grants (COVID-19),Closed Business Lockdown Grants (COVID-19),"4,000.00",MX Factory Parts Ltd
14/04/2021,Restart Grant - Strand One (COVID-19),Restart Grants (COVID-19),"2,667.00",My Uniform
14/04/2021,Restart Grant - Strand Two (COVID-19),Restart Grants (COVID-19),"8,000.00",Nabb Lane Woods Ltd
01/04/2021,Subscriptions,Burton Retail Market,738.00,NABMA
30/04/2021,Temporary Staff Costs,Housing Benefits Admin,"1,360.00",NEC Software Solutions UK Ltd
31/03/2021,Temporary Staff Costs,Housing Benefits Admin,"1,520.00",NEC Software Solutions UK Ltd
28/05/2021,Temporary Staff Costs,Housing Benefits Admin,"1,600.00",NEC Software Solutions UK Ltd
09/06/2021,Restart Grant - Strand One (COVID-19),Restart Grants (COVID-19),"4,000.00",Needwood Vale Ltd
14/04/2021,Restart Grant - Strand One (COVID-19),Restart Grants (COVID-19),"2,667.00",New Umar Jewellers Ltd
14/04/2021,Restart Grant - Strand One (COVID-19),Restart Grants (COVID-19),"2,667.00",Newstart
14/04/2021,Restart Grant - Strand One (COVID-19),Restart Grants (COVID-19),"2,667.00",Newstart
14/04/2021,Restart Grant - Strand One (COVID-19),Restart Grants (COVID-19),"2,667.00",Newstart
06/04/2021,Repairs & Maintenance to Buildings,Burton Town Hall Civic Building,989.99,Nisbets PLC
14/04/2021,Restart Grant - Strand One (COVID-19),Restart Grants (COVID-19),"2,667.00",No.42 Interiors Limited
01/04/2021,Kenneling & Other Expenses,Pest Control & Animal Welfare,621.00,Noah�s Ark Environmental Services Ltd
31/03/2021,Direct Purchases,Millers Lane Depot,635.07,Nobisco Limited
31/03/2021,Cleaning & Domestic Equipment,Police Elections,897.60,Nobisco Limited
30/04/2021,Direct Purchases,Millers Lane Depot,"1,030.45",Nobisco Limited
28/04/2021,ICT Departmental Purchases,ICT,765.94,Nominet UK
14/04/2021,Restart Grant - Strand Two (COVID-19),Restart Grants (COVID-19),"8,000.00",Nouveau Nails Ltd
09/04/2021,Hardware Contracts,ICT,"10,875.90",Nowcomm Ltd
14/04/2021,Restart Grant - Strand Two (COVID-19),Restart Grants (COVID-19),"12,000.00",NSKD Ltd
26/04/2021,Direct Purchases,DSO Stores Account,"28,369.85",NWF Fuels Ltd
14/04/2021,Restart Grant - Strand Two (COVID-19),Restart Grants (COVID-19),"12,000.00",O�Connor Gateway
23/06/2021,Restart Grant - Strand Two (COVID-19),Restart Grants (COVID-19),"8,000.00",Oakamoor Caf�
01/05/2021,DFG Occupational Therapists,Housing Standards,570.00,Occupational Therapy & Training Ltd
14/04/2021,Restart Grant - Strand One (COVID-19),Restart Grants (COVID-19),"6,000.00",Office Recycling Solutions Ltd
14/04/2021,Restart Grant - Strand One (COVID-19),Restart Grants (COVID-19),"2,667.00",Old Chapel Antiques
05/05/2021,General Grants,Oldfields Sports Centre,"6,000.00",Oldfields Sports & Social Club No. 2 Account
14/04/2021,Restart Grant - Strand Two (COVID-19),Restart Grants (COVID-19),"8,000.00",Oldfields Sports and Social Club
14/04/2021,Restart Grant - Strand Two (COVID-19),Restart Grants (COVID-19),"8,000.00",Oldroyd Guest House (2009) Ltd
14/04/2021,Restart Grant - Strand One (COVID-19),Restart Grants (COVID-19),"2,667.00",OLED Phones Ltd
14/04/2021,Restart Grant - Strand Two (COVID-19),Restart Grants (COVID-19),"8,000.00",Olive Tree Guest House Limited
14/04/2021,Restart Grant - Strand Two (COVID-19),Restart Grants (COVID-19),"8,000.00",Opulence Beauty Ltd
14/04/2021,Restart Grant - Strand Two (COVID-19),Restart Grants (COVID-19),"8,000.00",Orchard Barn & Anvil Cottage
09/06/2021,Restart Grant - Strand Two (COVID-19),Restart Grants (COVID-19),"8,000.00",Orchard House Patisserie
19/05/2021,Local Restrictions Support Grants � Discretionary (COVID-19),Local Restrictions Support Grants (COVID-19),"10,000.00",Out of the Box Events Ltd
14/04/2021,Restart Grant - Strand One (COVID-19),Restart Grants (COVID-19),"6,000.00",Outlook Menswear Ltd
14/04/2021,Restart Grant - Strand One (COVID-19),Restart Grants (COVID-19),"2,667.00",Outwood Motors Ltd
12/05/2021,Local Restrictions Support Grants � Discretionary (COVID-19),Local Restrictions Support Grants (COVID-19),"10,000.00",OYT Hair
14/04/2021,Restart Grant - Strand One (COVID-19),Restart Grants (COVID-19),"2,667.00",Pacevolve Ltd
14/04/2021,Restart Grant - Strand One (COVID-19),Restart Grants (COVID-19),"2,667.00",Paint Finish Ltd
14/04/2021,Restart Grant - Strand Two (COVID-19),Restart Grants (COVID-19),"8,000.00",Panakeia Indian Rocester Ltd
14/04/2021,Restart Grant - Strand Two (COVID-19),Restart Grants (COVID-19),"8,000.00",Park Life Leisure Limited
02/06/2021,Local Restrictions Support Grants � Discretionary (COVID-19),Local Restrictions Support Grants (COVID-19),"15,000.00",Parker & Son (Printers)
14/04/2021,Restart Grant - Strand One (COVID-19),Restart Grants (COVID-19),"2,667.00",Party on the Precinct Ltd
14/04/2021,Restart Grant - Strand Two (COVID-19),Restart Grants (COVID-19),"12,000.00",Pascal at the Old Vicarage Limited
14/04/2021,Restart Grant - Strand Two (COVID-19),Restart Grants (COVID-19),"8,000.00",Pauls Caf� Ltd
31/05/2021,Repairs and Maintenance of Car Park Ticket Machines,Car Parks - General,589.23,PayByPhone Limited
14/04/2021,Restart Grant - Strand Two (COVID-19),Restart Grants (COVID-19),"12,000.00",PBM Inspection Services Ltd- Number 2 Account
09/06/2021,Local Restrictions Support Grants � Discretionary (COVID-19),Local Restrictions Support Grants (COVID-19),"10,000.00",PCVR Burton on Trent Ltd
14/04/2021,Restart Grant - Strand One (COVID-19),Restart Grants (COVID-19),"4,000.00",PDSA Retail
19/05/2021,Local Restrictions Support Grants � Discretionary (COVID-19),Local Restrictions Support Grants (COVID-19),"10,000.00",PDX Consulting Ltd
14/04/2021,Restart Grant - Strand Two (COVID-19),Restart Grants (COVID-19),"8,000.00",Peake�s Retreats
28/04/2021,Restart Grant - Strand One (COVID-19),Restart Grants (COVID-19),"6,000.00",Penmark Cards Ltd
30/04/2021,Consultants,Legal Services,"8,000.00",Penningtons Manches Cooper LLP
14/04/2021,Restart Grant - Strand One (COVID-19),Restart Grants (COVID-19),"2,667.00",Penny�s Posh Boutique Ltd
14/04/2021,Restart Grant - Strand Two (COVID-19),Restart Grants (COVID-19),"8,000.00",Perfect2be1
14/04/2021,Restart Grant - Strand One (COVID-19),Restart Grants (COVID-19),"4,000.00",Pete Oakley Music
11/06/2021,Departmental Postages,Council Tax Collection,559.71,PHD Mail Ltd
30/04/2021,Departmental Postages,Council Tax Collection,570.96,PHD Mail Ltd
17/05/2021,Departmental Postages,Council Tax Collection,618.77,PHD Mail Ltd
31/03/2021,Departmental Postages,Council Tax Collection,639.72,PHD Mail Ltd
31/03/2021,Printing and Stationery,Council Tax Collection,755.59,PHD Mail Ltd
07/05/2021,Departmental Postages,Council Tax Collection,892.35,PHD Mail Ltd
15/04/2021,Departmental Postages,Council Tax Collection,"1,609.88",PHD Mail Ltd
23/04/2021,Maintenance Contracts,Facilities Management,503.24,PHS Group PLC
23/04/2021,Waste & Litter Disposal,Burton Retail Market,521.30,PHS Group PLC
24/05/2021,Maintenance Contracts,Public Conveniences,"2,781.22",PHS Group PLC
14/04/2021,Restart Grant - Strand Two (COVID-19),Restart Grants (COVID-19),"8,000.00",Pickle Pot
14/04/2021,Restart Grant - Strand Two (COVID-19),Restart Grants (COVID-19),"8,000.00",Pickled Ginger Pub Co Ltd
14/04/2021,Restart Grant - Strand Two (COVID-19),Restart Grants (COVID-19),"12,000.00",Pinocchios Limited
28/04/2021,Restart Grant - Strand Two (COVID-19),Restart Grants (COVID-19),"8,000.00",Pitstop Barber
05/03/2021,Other Equipment,Housing Options,883.00,Planet C Ltd
14/04/2021,Restart Grant - Strand One (COVID-19),Restart Grants (COVID-19),"2,667.00",Platinum Car Care Ltd
28/05/2021,Recruitment Costs,Environmental Health,800.00,Point Thirteen Media Ltd
14/04/2021,Restart Grant - Strand Two (COVID-19),Restart Grants (COVID-19),"8,000.00",Polly Hodge Hair and Beauty Ltd
14/04/2021,Restart Grant - Strand Two (COVID-19),Restart Grants (COVID-19),"8,000.00",Poppies Hairdressing
14/04/2021,Restart Grant - Strand Two (COVID-19),Restart Grants (COVID-19),"18,000.00",Postern Leisure Ltd
05/05/2021,Local Restrictions Support Grants � Discretionary (COVID-19),Local Restrictions Support Grants (COVID-19),"10,000.00",Precision Stocktaking Ltd
05/06/2021,Rents,Millers Lane Depot,"6,562.50",Preston Securities Limited
05/03/2021,Rents,Millers Lane Depot,"6,562.50",Preston Securities Limited
14/04/2021,Restart Grant - Strand Two (COVID-19),Restart Grants (COVID-19),"8,000.00",Priory Centre Stretton
15/04/2021,DFG Contractor Payments,Housing Standards,"1,408.89",Prism UK Medical Ltd
31/05/2021,Consultants,Cemeteries,"2,930.00",Professional Sportsturf Design (North West) Ltd
07/04/2021,Local Restrictions Support Grants � Discretionary (COVID-19),Local Restrictions Support Grants (COVID-19),"10,000.00",PS Ltd t/a The Heritage Brewing Co
14/04/2021,Restart Grant - Strand Two (COVID-19),Restart Grants (COVID-19),"8,000.00",Pub Partnership Acquisitions Ltd
23/04/2021,Analysts Fees,Environmental Health,550.00,Public Analyst Scientific Services Limited
14/05/2021,Analysts Fees,Environmental Health,"1,368.00",Public Analyst Scientific Services Limited
22/04/2021,Franking Machine Postages,Central Reprographics,"5,000.00",Purchase Power
14/04/2021,Restart Grant - Strand Two (COVID-19),Restart Grants (COVID-19),"8,000.00",Pure Gould Ltd
21/04/2021,Local Restrictions Support Grants � Mandatory Closed (COVID-19),Local Restrictions Support Grants (COVID-19),535.71,Purepay Retail Limited
21/04/2021,Local Restrictions Support Grants � Mandatory Closed (COVID-19),Local Restrictions Support Grants (COVID-19),"4,500.00",Purepay Retail Limited
21/04/2021,Local Restrictions Support Grants � Mandatory Closed (COVID-19),Local Restrictions Support Grants (COVID-19),"4,714.00",Purepay Retail Limited
02/06/2021,Restart Grant - Strand One (COVID-19),Restart Grants (COVID-19),"6,000.00",Purepay Retail Limited
21/04/2021,Closed Business Lockdown Grants (COVID-19),Closed Business Lockdown Grants (COVID-19),"9,000.00",Purepay Retail Limited
14/04/2021,Restart Grant - Strand Two (COVID-19),Restart Grants (COVID-19),"8,000.00",Purpose of PR Ltd
23/06/2021,Restart Grant - Strand Two (COVID-19),Restart Grants (COVID-19),"8,000.00",Pyrotex Fireworx Ltd
30/06/2021,Restart Grant - Strand Two (COVID-19),Restart Grants (COVID-19),"12,000.00",Queen Street Neighbourhood Resource Centre
05/05/2021,Local Restrictions Support Grants � Discretionary (COVID-19),Local Restrictions Support Grants (COVID-19),"10,000.00",R P Trading
14/04/2021,Restart Grant - Strand Two (COVID-19),Restart Grants (COVID-19),"8,000.00",R+K Beauty
09/06/2021,Local Restrictions Support Grants � Mandatory Closed (COVID-19),Local Restrictions Support Grants (COVID-19),"3,143.00",RAL Ltd
09/06/2021,Restart Grant - Strand Two (COVID-19),Restart Grants (COVID-19),"12,000.00",RAL Ltd
14/04/2021,Restart Grant - Strand Two (COVID-19),Restart Grants (COVID-19),"8,000.00",Rangemore Club
14/04/2021,Restart Grant - Strand One (COVID-19),Restart Grants (COVID-19),"2,667.00",Ray Marketing
28/04/2021,Restart Grant - Strand One (COVID-19),Restart Grants (COVID-19),"4,000.00",RDM Direct Limited
28/04/2021,Restart Grant - Strand One (COVID-19),Restart Grants (COVID-19),"4,000.00",RDM Direct Limited
28/03/2021,Advertising,Development Control,507.64,Reach Publishing Services Ltd
23/05/2021,Advertising,Development Control,507.76,Reach Publishing Services Ltd
04/04/2021,Advertising,Development Control,507.76,Reach Publishing Services Ltd
30/05/2021,Advertising,Development Control,507.76,Reach Publishing Services Ltd
06/06/2021,Advertising,Development Control,553.91,Reach Publishing Services Ltd
14/04/2021,Restart Grant - Strand Two (COVID-19),Restart Grants (COVID-19),"18,000.00",Real Brewing Pub Company
14/04/2021,Restart Grant - Strand Two (COVID-19),Restart Grants (COVID-19),"12,000.00",Red Ladybird Leisure Ltd
14/04/2021,Restart Grant - Strand Two (COVID-19),Restart Grants (COVID-19),"8,000.00",Red Lion (WHG) Ltd
14/04/2021,Restart Grant - Strand Two (COVID-19),Restart Grants (COVID-19),"18,000.00",REDML Hotel Ltd
12/05/2021,Local Restrictions Support Grants � Discretionary (COVID-19),Local Restrictions Support Grants (COVID-19),"10,000.00",Reel Publishing & Media Ltd
17/05/2021,Direct Purchases,Recycling,"1,536.00",Reflex Print & Design
02/06/2021,Local Restrictions Support Grants � Discretionary (COVID-19),Local Restrictions Support Grants (COVID-19),"5,000.00",Regency Products Burton Ltd
21/04/2021,Local Restrictions Support Grants � Discretionary (COVID-19),Local Restrictions Support Grants (COVID-19),"10,000.00",Regency Products Burton Ltd
14/04/2021,Restart Grant - Strand One (COVID-19),Restart Grants (COVID-19),"4,000.00",Remona
09/06/2021,Restart Grant - Strand One (COVID-19),Restart Grants (COVID-19),"2,667.00",Remote Key Specialist
02/06/2021,Local Restrictions Support Grants � Discretionary (COVID-19),Local Restrictions Support Grants (COVID-19),"5,000.00",Response Multimedia
14/04/2021,Restart Grant - Strand Two (COVID-19),Restart Grants (COVID-19),"8,000.00",Revival Hair & Beauty Ltd
14/04/2021,Restart Grant - Strand One (COVID-19),Restart Grants (COVID-19),"4,000.00",Revolve Clothing Ltd
14/04/2021,Restart Grant - Strand Two (COVID-19),Restart Grants (COVID-19),"8,000.00",RGL Salons Ltd
28/04/2021,Restart Grant - Strand One (COVID-19),Restart Grants (COVID-19),"2,667.00",Rice and Sons Ltd t/The Key Shop
14/04/2021,Restart Grant - Strand Two (COVID-19),Restart Grants (COVID-19),"8,000.00",Rivaj Restaurant
14/04/2021,Restart Grant - Strand One (COVID-19),Restart Grants (COVID-19),"4,000.00",Riverside Car Sales Ltd
14/04/2021,Restart Grant - Strand One (COVID-19),Restart Grants (COVID-19),"4,000.00",Riverside Car Sales Ltd
14/04/2021,Restart Grant - Strand Two (COVID-19),Restart Grants (COVID-19),"8,000.00",Roaming Robots Ltd
14/04/2021,Restart Grant - Strand Two (COVID-19),Restart Grants (COVID-19),"8,000.00",Rocester Football Club Ltd
14/04/2021,Restart Grant - Strand Two (COVID-19),Restart Grants (COVID-19),"8,000.00",Rolleston Club
14/04/2021,Restart Grant - Strand Two (COVID-19),Restart Grants (COVID-19),"8,000.00",Rolleston Scout Group
14/04/2021,Restart Grant - Strand One (COVID-19),Restart Grants (COVID-19),"4,000.00",Roman Originals PLC
14/04/2021,Restart Grant - Strand Two (COVID-19),Restart Grants (COVID-19),"12,000.00",Roseacre Pub Company Ltd
14/04/2021,Restart Grant - Strand Two (COVID-19),Restart Grants (COVID-19),"12,000.00",Rosemary Stinchcombe Coach and Horses
14/04/2021,Restart Grant - Strand Two (COVID-19),Restart Grants (COVID-19),"8,000.00",Rough Hayes Community Centre
11/05/2021,Departmental Postages,Police Elections,"1,368.78",Royal Mail Group Ltd
24/05/2021,Departmental Postages,Electoral Services,"1,666.34",Royal Mail Group Ltd
28/05/2021,Departmental Postages,Police Elections,"2,161.44",Royal Mail Group Ltd
04/05/2021,Departmental Postages,Police Elections,"2,661.30",Royal Mail Group Ltd
27/04/2021,Departmental Postages,Police Elections,"4,184.78",Royal Mail Group Ltd
14/04/2021,Restart Grant - Strand Two (COVID-19),Restart Grants (COVID-19),"8,000.00",Rrolleston Cricket Club
14/04/2021,Restart Grant - Strand One (COVID-19),Restart Grants (COVID-19),"2,667.00",RS Car Care Limited
14/04/2021,Restart Grant - Strand One (COVID-19),Restart Grants (COVID-19),"2,667.00",RSR Retail Ltd
14/04/2021,Local Restrictions Support Grants � Discretionary (COVID-19),Local Restrictions Support Grants (COVID-19),"10,000.00",Ruskin Cain Financial Srvices
14/04/2021,Restart Grant - Strand One (COVID-19),Restart Grants (COVID-19),"4,000.00",Ryman Limited
14/04/2021,Restart Grant - Strand One (COVID-19),Restart Grants (COVID-19),"4,000.00",Ryman Limited
14/04/2021,Restart Grant - Strand One (COVID-19),Restart Grants (COVID-19),"2,667.00",S V M Jewelery Ltd
14/04/2021,Restart Grant - Strand Two (COVID-19),Restart Grants (COVID-19),"8,000.00",Sabaidee Thai Massage Ltd
20/05/2021,Grounds Maintenance,Open Spaces,"3,220.00",Safeplay Surfacing Ltd
20/05/2021,Grounds Maintenance,Open Spaces,"12,880.00",Safeplay Surfacing Ltd
14/04/2021,Restart Grant - Strand Two (COVID-19),Restart Grants (COVID-19),"8,000.00",Salam Catering Ltd
03/06/2021,Estates Surveyors Fees,Asset Management,500.00,Salloway Property Consultants
01/04/2021,Estates Surveyors Fees,Asset Management,500.00,Salloway Property Consultants
01/04/2021,Estates Surveyors Fees,Asset Management,750.00,Salloway Property Consultants
04/06/2021,Estates Surveyors Fees,Asset Management,"1,200.00",Salloway Property Consultants
14/04/2021,Restart Grant - Strand Two (COVID-19),Restart Grants (COVID-19),"8,000.00",Salon 14 Ltd
14/04/2021,Restart Grant - Strand Two (COVID-19),Restart Grants (COVID-19),"8,000.00",Salon 53a
05/05/2021,Local Restrictions Support Grants � Discretionary (COVID-19),Local Restrictions Support Grants (COVID-19),"10,000.00",Samuel Black Ltd
14/04/2021,Restart Grant - Strand One (COVID-19),Restart Grants (COVID-19),"6,000.00",Sapphire n Beauty Ltd
28/04/2021,Repairs & Maintenance to Buildings,Facilities Management,630.00,SAS Water Ltd
31/03/2021,Repairs & Maintenance to Buildings,Facilities Management,630.00,SAS Water Ltd
10/05/2021,Repairs & Maintenance to Buildings,Facilities Management,630.00,SAS Water Ltd
28/04/2021,Repairs & Maintenance to Buildings,Facilities Management,990.00,SAS Water Ltd
14/04/2021,Local Restrictions Support Grants � Discretionary (COVID-19),Local Restrictions Support Grants (COVID-19),"10,000.00",Sasha Hair & Beauty Ltd
23/05/2021,Other Equipment,Police Elections,773.60,Scorpion Event Solutions Ltd.
23/05/2021,Other Equipment,Police Elections,"3,868.00",Scorpion Event Solutions Ltd.
28/04/2021,Local Restrictions Support Grants � Discretionary (COVID-19),Local Restrictions Support Grants (COVID-19),"10,000.00",Seasoned Ltd
14/05/2021,Software Licenses & Contracts,ICT,"2,775.00",Sec-1 Ltd
14/04/2021,Restart Grant - Strand One (COVID-19),Restart Grants (COVID-19),"2,667.00",Secret Garden Limited
30/04/2021,Cash Collection Security Services,Car Parks - General,618.00,Security Plus + Limited
30/04/2021,Cash Collection Security Services,Car Parks - General,"3,059.10",Security Plus + Limited
31/03/2021,Cash Collection Security Services,Car Parks - General,"3,083.82",Security Plus + Limited
12/05/2021,Local Restrictions Support Grants � Discretionary (COVID-19),Local Restrictions Support Grants (COVID-19),"10,000.00",Seventy Three Design Ltd
09/06/2021,Local Restrictions Support Grants � Discretionary (COVID-19),Local Restrictions Support Grants (COVID-19),"10,000.00",Seymour Solutions Ltd
11/05/2021,Other Equipment,Closed Circuit Cameras,"4,775.00",SGW Safety & Security Limited
14/04/2021,Restart Grant - Strand Two (COVID-19),Restart Grants (COVID-19),"8,000.00",Shobnall Sports Ltd
14/04/2021,Restart Grant - Strand Two (COVID-19),Restart Grants (COVID-19),"12,000.00",Siam Investment Ltd
12/05/2021,Local Restrictions Support Grants � Mandatory Closed (COVID-19),Local Restrictions Support Grants (COVID-19),535.71,Signet Trading Limited
12/05/2021,Local Restrictions Support Grants � Mandatory Closed (COVID-19),Local Restrictions Support Grants (COVID-19),"2,000.00",Signet Trading Limited
12/05/2021,Local Restrictions Support Grants � Mandatory Closed (COVID-19),Local Restrictions Support Grants (COVID-19),"3,000.00",Signet Trading Limited
12/05/2021,Local Restrictions Support Grants � Mandatory Closed (COVID-19),Local Restrictions Support Grants (COVID-19),"3,000.00",Signet Trading Limited
12/05/2021,Local Restrictions Support Grants � Mandatory Closed (COVID-19),Local Restrictions Support Grants (COVID-19),"3,143.00",Signet Trading Limited
02/06/2021,Restart Grant - Strand One (COVID-19),Restart Grants (COVID-19),"4,000.00",Signet Trading Limited
12/05/2021,Local Restrictions Support Grants � Mandatory Closed (COVID-19),Local Restrictions Support Grants (COVID-19),"4,500.00",Signet Trading Limited
12/05/2021,Local Restrictions Support Grants � Mandatory Closed (COVID-19),Local Restrictions Support Grants (COVID-19),"4,714.00",Signet Trading Limited
02/06/2021,Restart Grant - Strand One (COVID-19),Restart Grants (COVID-19),"6,000.00",Signet Trading Limited
14/04/2021,Restart Grant - Strand Two (COVID-19),Restart Grants (COVID-19),"8,000.00",SJP Cosmetics
14/04/2021,Restart Grant - Strand Two (COVID-19),Restart Grants (COVID-19),"8,000.00",Slick
14/04/2021,Local Restrictions Support Grants � Mandatory Closed (COVID-19),Local Restrictions Support Grants (COVID-19),535.71,SLK Community Leisure Charitable Trust
14/04/2021,Local Restrictions Support Grants � Mandatory Closed (COVID-19),Local Restrictions Support Grants (COVID-19),"3,000.00",SLK Community Leisure Charitable Trust
14/04/2021,Local Restrictions Support Grants � Mandatory Closed (COVID-19),Local Restrictions Support Grants (COVID-19),"4,500.00",SLK Community Leisure Charitable Trust
14/04/2021,Local Restrictions Support Grants � Mandatory Closed (COVID-19),Local Restrictions Support Grants (COVID-19),"4,714.00",SLK Community Leisure Charitable Trust
14/04/2021,Closed Business Lockdown Grants (COVID-19),Closed Business Lockdown Grants (COVID-19),"9,000.00",SLK Community Leisure Charitable Trust
02/06/2021,Restart Grant - Strand Two (COVID-19),Restart Grants (COVID-19),"18,000.00",SLK Community Leisure Charitable Trust
14/04/2021,Local Restrictions Support Grants � Mandatory Closed (COVID-19),Local Restrictions Support Grants (COVID-19),535.71,SLM Community Leisure Charitable Trust
14/04/2021,Local Restrictions Support Grants � Mandatory Closed (COVID-19),Local Restrictions Support Grants (COVID-19),"3,000.00",SLM Community Leisure Charitable Trust
14/04/2021,Local Restrictions Support Grants � Mandatory Closed (COVID-19),Local Restrictions Support Grants (COVID-19),"4,500.00",SLM Community Leisure Charitable Trust
14/04/2021,Local Restrictions Support Grants � Mandatory Closed (COVID-19),Local Restrictions Support Grants (COVID-19),"4,714.00",SLM Community Leisure Charitable Trust
14/04/2021,Closed Business Lockdown Grants (COVID-19),Closed Business Lockdown Grants (COVID-19),"9,000.00",SLM Community Leisure Charitable Trust
02/06/2021,Restart Grant - Strand Two (COVID-19),Restart Grants (COVID-19),"18,000.00",SLM Community Leisure Charitable Trust
14/04/2021,Restart Grant - Strand One (COVID-19),Restart Grants (COVID-19),"2,667.00",Smart Bookings Limited
14/04/2021,Restart Grant - Strand One (COVID-19),Restart Grants (COVID-19),"4,000.00",Smiggle UK Ltd
14/04/2021,Restart Grant - Strand One (COVID-19),Restart Grants (COVID-19),"2,667.00",Smithfield Carpets Ltd
31/05/2021,Software Licenses & Contracts,Programmes and Transformation,699.00,Snaps Surveys Ltd
14/04/2021,Restart Grant - Strand Two (COVID-19),Restart Grants (COVID-19),"12,000.00",Solid Facilites Management Ltd
02/06/2021,Local Restrictions Support Grants � Discretionary (COVID-19),Local Restrictions Support Grants (COVID-19),"15,000.00",Solmar Villas Ltd
21/04/2021,Maintenance Contracts,Brewhouse Arts Centre,594.00,Solutions on Stage
14/04/2021,Restart Grant - Strand One (COVID-19),Restart Grants (COVID-19),"2,667.00",Soundlighting UK Ltd
09/04/2021,Water Services,Facilities Management,598.43,Source for Business
14/04/2021,Restart Grant - Strand Two (COVID-19),Restart Grants (COVID-19),"8,000.00",South Stapenhill Social Club
24/05/2021,Gas,Miscellaneous Properties,590.15,Southern Electric
14/04/2021,Restart Grant - Strand Two (COVID-19),Restart Grants (COVID-19),"12,000.00",Sparena The New Generation Ltd
14/04/2021,Restart Grant - Strand Two (COVID-19),Restart Grants (COVID-19),"8,000.00",Spin Box Burton
19/05/2021,Local Restrictions Support Grants � Mandatory Closed (COVID-19),Local Restrictions Support Grants (COVID-19),"2,096.00",Spires Accommodation Ltd
19/05/2021,Local Restrictions Support Grants � Mandatory Closed (COVID-19),Local Restrictions Support Grants (COVID-19),"2,096.00",Spires Accommodation Ltd
19/05/2021,Local Restrictions Support Grants � Mandatory Closed (COVID-19),Local Restrictions Support Grants (COVID-19),"2,096.00",Spires Accommodation Ltd
19/05/2021,Local Restrictions Support Grants � Mandatory Closed (COVID-19),Local Restrictions Support Grants (COVID-19),"2,096.00",Spires Accommodation Ltd
19/05/2021,Local Restrictions Support Grants � Mandatory Closed (COVID-19),Local Restrictions Support Grants (COVID-19),"2,096.00",Spires Accommodation Ltd
19/05/2021,Restart Grant - Strand Two (COVID-19),Restart Grants (COVID-19),"8,000.00",Spires Accommodation Ltd
19/05/2021,Restart Grant - Strand Two (COVID-19),Restart Grants (COVID-19),"8,000.00",Spires Accommodation Ltd
19/05/2021,Restart Grant - Strand Two (COVID-19),Restart Grants (COVID-19),"8,000.00",Spires Accommodation Ltd
19/05/2021,Restart Grant - Strand Two (COVID-19),Restart Grants (COVID-19),"8,000.00",Spires Accommodation Ltd
19/05/2021,Restart Grant - Strand Two (COVID-19),Restart Grants (COVID-19),"8,000.00",Spires Accommodation Ltd
19/05/2021,Local Restrictions Support Grants � Discretionary (COVID-19),Local Restrictions Support Grants (COVID-19),"8,907.21",Spires Accommodation Ltd
19/05/2021,Local Restrictions Support Grants � Discretionary (COVID-19),Local Restrictions Support Grants (COVID-19),"8,907.21",Spires Accommodation Ltd
19/05/2021,Local Restrictions Support Grants � Discretionary (COVID-19),Local Restrictions Support Grants (COVID-19),"8,907.21",Spires Accommodation Ltd
19/05/2021,Local Restrictions Support Grants � Discretionary (COVID-19),Local Restrictions Support Grants (COVID-19),"8,907.21",Spires Accommodation Ltd
19/05/2021,Local Restrictions Support Grants � Discretionary (COVID-19),Local Restrictions Support Grants (COVID-19),"8,907.21",Spires Accommodation Ltd
31/03/2021,Parking Charges Income,Uttoxeter Leisure Centre Car Park,"1,605.83",Sports & Leisure Management Ltd
31/03/2021,Parking Charges Income,Meadowside Leisure Centre Car Park,"4,505.34",Sports & Leisure Management Ltd
19/05/2021,Third Party Payments,Leisure Management,"29,301.00",Sports & Leisure Management Ltd
19/05/2021,Third Party Payments,Leisure Management,"38,265.00",Sports & Leisure Management Ltd
20/04/2021,Third Party Payments,Leisure Management,"53,622.83",Sports & Leisure Management Ltd
09/03/2021,Third Party Payments,Leisure Management,"55,672.33",Sports & Leisure Management Ltd
09/11/2020,Repairs & Maintenance to Buildings,Leisure Management,"159,611.70",Sports & Leisure Management Ltd
14/04/2021,Restart Grant - Strand One (COVID-19),Restart Grants (COVID-19),"2,667.00",Spotless Hand Carwash Ltd
14/04/2021,Restart Grant - Strand One (COVID-19),Restart Grants (COVID-19),"4,000.00",Springfield of Burton Limited
14/04/2021,Restart Grant - Strand One (COVID-19),Restart Grants (COVID-19),"4,000.00",St Giles Hospice Shops Limited
14/04/2021,Restart Grant - Strand One (COVID-19),Restart Grants (COVID-19),"4,000.00",St Giles Hospice Shops Limited
14/04/2021,Restart Grant - Strand Two (COVID-19),Restart Grants (COVID-19),"8,000.00",Stafford District Scout Council-Wardens
21/05/2021,Search and Investigation Fees,Land Charges,730.25,Staffordshire County Council
27/04/2021,Search and Investigation Fees,Land Charges,"1,439.75",Staffordshire County Council
27/01/2021,Legal Costs,Development Control,"1,815.50",Staffordshire County Council
21/05/2021,Search and Investigation Fees,Land Charges,"2,653.75",Staffordshire County Council
05/05/2021,Search and Investigation Fees,Land Charges,"2,879.75",Staffordshire County Council
04/03/2021,IT Links to Remote Sites,ICT,"2,969.44",Staffordshire County Council
30/03/2021,Superannuation Payments,Pension Payments,"3,686.66",Staffordshire County Council
22/03/2021,Contract Payments,Town Centre Regeneration,"4,998.00",Staffordshire County Council
06/04/2021,Third Party Payments,Trade Waste Recycling,"8,288.73",Staffordshire County Council
22/03/2021,Contract Payments,Town Centre Regeneration,"103,412.51",Staffordshire County Council
02/06/2021,Local Restrictions Support Grants � Discretionary (COVID-19),Local Restrictions Support Grants (COVID-19),"10,000.00",Staffordshire County Scout Council
23/04/2021,General Grants,Emergency Planning,"9,963.60",Staffordshire Fire & Rescue Service
24/06/2021,Rents,Police Elections,533.85,Staffordshire University Academies Trust
21/04/2021,Contributions to Other Bodies,Planning Policy,"2,000.00",Staffordshire Wildlife Trust
14/04/2021,Restart Grant - Strand Two (COVID-19),Restart Grants (COVID-19),"12,000.00",Staffordshire Winter Sports Club Ltd
14/04/2021,Restart Grant - Strand Two (COVID-19),Restart Grants (COVID-19),"18,000.00",Staffordshire Winter Sports Club Ltd
16/06/2021,Local Restrictions Support Grants � Discretionary (COVID-19),Local Restrictions Support Grants (COVID-19),"10,000.00",Stagecoach Uttoxeter
14/04/2021,Restart Grant - Strand Two (COVID-19),Restart Grants (COVID-19),"8,000.00",Stanton Village Hall Charity
14/04/2021,Restart Grant - Strand Two (COVID-19),Restart Grants (COVID-19),"8,000.00",Stapenhill Institute
30/04/2021,Parish LCTS Grant,Corporate Items,905.00,Stapenhill Parish Council
30/04/2021,Parish Precept Payments,Parish Council Precepts,"8,924.83",Stapenhill Parish Council
14/04/2021,Restart Grant - Strand One (COVID-19),Restart Grants (COVID-19),"4,000.00",Star
16/06/2021,Local Restrictions Support Grants � Discretionary (COVID-19),Local Restrictions Support Grants (COVID-19),"10,000.00",Steven Bradshaw Photography Ltd
14/04/2021,Restart Grant - Strand Two (COVID-19),Restart Grants (COVID-19),"12,000.00",Stowford Pub Company Ltd
14/04/2021,Restart Grant - Strand Two (COVID-19),Restart Grants (COVID-19),"8,000.00",Stramshall Village Hall Registered Charity
14/04/2021,Restart Grant - Strand Two (COVID-19),Restart Grants (COVID-19),"8,000.00",Stretton Bowls Club
14/04/2021,Restart Grant - Strand Two (COVID-19),Restart Grants (COVID-19),"8,000.00",Stretton Social Club Ltd
14/04/2021,Restart Grant - Strand Two (COVID-19),Restart Grants (COVID-19),"8,000.00",Sudbury & District Rifle Club
14/04/2021,Restart Grant - Strand One (COVID-19),Restart Grants (COVID-19),"2,667.00",Sumaaya Fabrics
14/04/2021,Restart Grant - Strand Two (COVID-19),Restart Grants (COVID-19),"8,000.00",Summerhouse Bakery
14/04/2021,Restart Grant - Strand Two (COVID-19),Restart Grants (COVID-19),"8,000.00",Summerhouse Cake and Tea Shop Limited
14/04/2021,Restart Grant - Strand Two (COVID-19),Restart Grants (COVID-19),"8,000.00",Summerhouse Kitchen Limited
01/05/2021,Safer Public Spaces (Covid-19),Re-Opening the High Streets (COVID-19),"2,850.00",Sunflower Media Ltd
14/04/2021,Restart Grant - Strand Two (COVID-19),Restart Grants (COVID-19),"8,000.00",Sunkissed Beauty Ltd
14/04/2021,Restart Grant - Strand Two (COVID-19),Restart Grants (COVID-19),"8,000.00",Sunny Dees Tanning Studio
28/04/2021,Restart Grant - Strand One (COVID-19),Restart Grants (COVID-19),"4,000.00",Sunrise Records and Entertainment Ltd
14/04/2021,Restart Grant - Strand Two (COVID-19),Restart Grants (COVID-19),"8,000.00",Supers of Birmingham Ltd
14/04/2021,Restart Grant - Strand Two (COVID-19),Restart Grants (COVID-19),"8,000.00",Survival School Ltd
14/04/2021,Restart Grant - Strand One (COVID-19),Restart Grants (COVID-19),"6,000.00",Sutton Park Motor Company Ltd
09/06/2021,Local Restrictions Support Grants � Discretionary (COVID-19),Local Restrictions Support Grants (COVID-19),"10,000.00",Suz Driving
14/04/2021,Restart Grant - Strand One (COVID-19),Restart Grants (COVID-19),"2,667.00",SVM Jewellery Ltd
28/04/2021,Local Restrictions Support Grants � Mandatory Closed (COVID-19),Local Restrictions Support Grants (COVID-19),"2,096.00",Sweet Spot Burton Limited
28/04/2021,Restart Grant - Strand Two (COVID-19),Restart Grants (COVID-19),"8,000.00",Sweet Spot Burton Ltd
14/04/2021,Restart Grant - Strand Two (COVID-19),Restart Grants (COVID-19),"18,000.00",Sylvester Fun Gym Ltd
21/04/2021,Local Restrictions Support Grants � Mandatory Closed (COVID-19),Local Restrictions Support Grants (COVID-19),535.71,T C Harrison Group Ltd t/a T C Harrison
21/04/2021,Local Restrictions Support Grants � Mandatory Closed (COVID-19),Local Restrictions Support Grants (COVID-19),"3,000.00",T C Harrison Group Ltd t/a T C Harrison
21/04/2021,Local Restrictions Support Grants � Mandatory Closed (COVID-19),Local Restrictions Support Grants (COVID-19),"4,500.00",T C Harrison Group Ltd t/a T C Harrison
21/04/2021,Local Restrictions Support Grants � Mandatory Closed (COVID-19),Local Restrictions Support Grants (COVID-19),"4,714.00",T C Harrison Group Ltd t/a T C Harrison
02/06/2021,Restart Grant - Strand One (COVID-19),Restart Grants (COVID-19),"6,000.00",T C Harrison Group Ltd t/a T C Harrison
21/04/2021,Closed Business Lockdown Grants (COVID-19),Closed Business Lockdown Grants (COVID-19),"9,000.00",T C Harrison Group Ltd t/a T C Harrison
14/04/2021,Restart Grant - Strand Two (COVID-19),Restart Grants (COVID-19),"8,000.00",T P Associates/The Hair and Beauty Boutique
14/04/2021,Restart Grant - Strand Two (COVID-19),Restart Grants (COVID-19),"8,000.00",T&M CW Limited
14/04/2021,Restart Grant - Strand Two (COVID-19),Restart Grants (COVID-19),"18,000.00",Tabella House Cafes Ltd
14/04/2021,Restart Grant - Strand One (COVID-19),Restart Grants (COVID-19),"2,667.00",Tag Sports & Promotional Clothing Ltd
01/04/2021,Enforcement Initiatives,Enforcement Section,"1,600.00",Tameside MBC
21/04/2021,Consultants,Development Control,"1,774.50",Tamworth Borough Council
14/04/2021,Restart Grant - Strand One (COVID-19),Restart Grants (COVID-19),"2,667.00",Target Conservatories & Windows Ltd
28/04/2021,Local Restrictions Support Grants � Mandatory Closed (COVID-19),Local Restrictions Support Grants (COVID-19),535.71,Tatenhill Aviation Ltd
28/04/2021,Local Restrictions Support Grants � Mandatory Closed (COVID-19),Local Restrictions Support Grants (COVID-19),"3,000.00",Tatenhill Aviation Ltd
28/04/2021,Local Restrictions Support Grants � Mandatory Closed (COVID-19),Local Restrictions Support Grants (COVID-19),"4,500.00",Tatenhill Aviation Ltd
28/04/2021,Local Restrictions Support Grants � Mandatory Closed (COVID-19),Local Restrictions Support Grants (COVID-19),"4,714.00",Tatenhill Aviation Ltd
28/04/2021,Closed Business Lockdown Grants (COVID-19),Closed Business Lockdown Grants (COVID-19),"9,000.00",Tatenhill Aviation Ltd
02/06/2021,Restart Grant - Strand Two (COVID-19),Restart Grants (COVID-19),"18,000.00",Tatenhill Aviation Ltd
14/04/2021,Restart Grant - Strand Two (COVID-19),Restart Grants (COVID-19),"8,000.00",Tatenhill Thanksgiving & Memorial Hall
14/04/2021,Restart Grant - Strand Two (COVID-19),Restart Grants (COVID-19),"8,000.00",Teapot Caf� Limited
27/04/2021,Direct Purchases,DSO Stores Account,720.00,Tennants Distribution Ltd
07/04/2021,Local Restrictions Support Grants � Mandatory Closed (COVID-19),Local Restrictions Support Grants (COVID-19),"2,000.00",The Air Ambulance Service Trading Limited
07/04/2021,Local Restrictions Support Grants � Mandatory Closed (COVID-19),Local Restrictions Support Grants (COVID-19),"3,000.00",The Air Ambulance Service Trading Limited
07/04/2021,Local Restrictions Support Grants � Mandatory Closed (COVID-19),Local Restrictions Support Grants (COVID-19),"3,143.00",The Air Ambulance Service Trading Limited
14/04/2021,Restart Grant - Strand One (COVID-19),Restart Grants (COVID-19),"4,000.00",The Air Ambulance Service Trading Limited
07/04/2021,Closed Business Lockdown Grants (COVID-19),Closed Business Lockdown Grants (COVID-19),"6,000.00",The Air Ambulance Service Trading Limited
14/04/2021,Restart Grant - Strand One (COVID-19),Restart Grants (COVID-19),"2,667.00",The Alphabet Gift Shop Ltd
14/04/2021,Restart Grant - Strand Two (COVID-19),Restart Grants (COVID-19),"12,000.00",The Alphabet Gift Shop Ltd
14/04/2021,Restart Grant - Strand Two (COVID-19),Restart Grants (COVID-19),"12,000.00",The Anchor Inn (Burton) Ltd
14/04/2021,Restart Grant - Strand Two (COVID-19),Restart Grants (COVID-19),"12,000.00",The Apple Tree
14/04/2021,Restart Grant - Strand Two (COVID-19),Restart Grants (COVID-19),"8,000.00",The Barley Mow
14/04/2021,Restart Grant - Strand Two (COVID-19),Restart Grants (COVID-19),"12,000.00",The Barn
14/04/2021,Restart Grant - Strand Two (COVID-19),Restart Grants (COVID-19),"8,000.00",The Beauty Botique Barton Ltd
14/04/2021,Restart Grant - Strand Two (COVID-19),Restart Grants (COVID-19),"12,000.00",The Bell Inn
14/04/2021,Restart Grant - Strand Two (COVID-19),Restart Grants (COVID-19),"18,000.00",The Boars Head Hotel Ltd
14/04/2021,Restart Grant - Strand One (COVID-19),Restart Grants (COVID-19),"2,667.00",The Bridal Rooms Ltd
14/04/2021,Restart Grant - Strand One (COVID-19),Restart Grants (COVID-19),"2,667.00",The Brotherhood Curios Ltd
14/04/2021,Restart Grant - Strand Two (COVID-19),Restart Grants (COVID-19),"8,000.00",The Bulls Head
14/04/2021,Restart Grant - Strand One (COVID-19),Restart Grants (COVID-19),"2,667.00",The Car Buyer UK
14/04/2021,Restart Grant - Strand One (COVID-19),Restart Grants (COVID-19),"2,667.00",The Card & Gift Gallery Ltd
14/04/2021,Restart Grant - Strand One (COVID-19),Restart Grants (COVID-19),"4,000.00",The Carpet Stop Derby Ltd
14/04/2021,Restart Grant - Strand One (COVID-19),Restart Grants (COVID-19),"2,667.00",The Cash Genie Limited
14/04/2021,Restart Grant - Strand Two (COVID-19),Restart Grants (COVID-19),"8,000.00",The Cellar Door
14/04/2021,Restart Grant - Strand Two (COVID-19),Restart Grants (COVID-19),"12,000.00",The Claymills Pumping Engines Trust Ltd
28/04/2021,Restart Grant - Strand One (COVID-19),Restart Grants (COVID-19),"2,667.00",The Cobbler (Cotagon Centre) Ltd
14/04/2021,Restart Grant - Strand Two (COVID-19),Restart Grants (COVID-19),"12,000.00",The Cock Inn (Hanbury) Ltd
14/04/2021,Restart Grant - Strand Two (COVID-19),Restart Grants (COVID-19),"18,000.00",The Crossing Burton Ltd
14/04/2021,Restart Grant - Strand Two (COVID-19),Restart Grants (COVID-19),"12,000.00",The Devonshire Arms Burton Ltd
14/04/2021,Restart Grant - Strand Two (COVID-19),Restart Grants (COVID-19),"12,000.00",The Dial Resturant Ltd
16/06/2021,Local Restrictions Support Grants � Discretionary (COVID-19),Local Restrictions Support Grants (COVID-19),"10,000.00",The Different Place Ltd
14/04/2021,Restart Grant - Strand Two (COVID-19),Restart Grants (COVID-19),"18,000.00",The Duncombe Arms Ltd
14/04/2021,Restart Grant - Strand Two (COVID-19),Restart Grants (COVID-19),"8,000.00",The Farmers Arms Leigh Ltd
14/04/2021,Restart Grant - Strand One (COVID-19),Restart Grants (COVID-19),"4,000.00",The Fashion Parade Ltd
14/04/2021,Restart Grant - Strand One (COVID-19),Restart Grants (COVID-19),"4,000.00",The Feel Good Group
28/04/2021,Restart Grant - Strand Two (COVID-19),Restart Grants (COVID-19),"8,000.00",The Feel Good Group
14/04/2021,Restart Grant - Strand One (COVID-19),Restart Grants (COVID-19),"2,667.00",The Florist & Wholesaler Ltd
11/05/2021,Consultants,Housing Benefits Admin,700.00,The Foodbank Cookbook Unlimited
09/06/2021,Consultants,Housing Benefits Admin,700.00,The Foodbank Cookbook Unlimited
09/06/2021,Consultants,Housing Benefits Admin,700.00,The Foodbank Cookbook Unlimited
23/04/2021,Consultants,Housing Benefits Admin,"1,050.00",The Foodbank Cookbook Unlimited
05/05/2021,Local Restrictions Support Grants � Discretionary (COVID-19),Local Restrictions Support Grants (COVID-19),"10,000.00",The Globe Group CIC
14/04/2021,Restart Grant - Strand Two (COVID-19),Restart Grants (COVID-19),"12,000.00",The Golden Cup
14/04/2021,Restart Grant - Strand Two (COVID-19),Restart Grants (COVID-19),"8,000.00",The Granary
14/04/2021,Restart Grant - Strand Two (COVID-19),Restart Grants (COVID-19),"8,000.00",The Great Northern Public House
14/04/2021,Restart Grant - Strand Two (COVID-19),Restart Grants (COVID-19),"8,000.00",The Guild Hair and Beauty
21/04/2021,Local Restrictions Support Grants � Mandatory Closed (COVID-19),Local Restrictions Support Grants (COVID-19),535.71,The Gym Limited
21/04/2021,Local Restrictions Support Grants � Mandatory Closed (COVID-19),Local Restrictions Support Grants (COVID-19),"3,000.00",The Gym Limited
21/04/2021,Local Restrictions Support Grants � Mandatory Closed (COVID-19),Local Restrictions Support Grants (COVID-19),"4,500.00",The Gym Limited
21/04/2021,Local Restrictions Support Grants � Mandatory Closed (COVID-19),Local Restrictions Support Grants (COVID-19),"4,714.00",The Gym Limited
21/04/2021,Closed Business Lockdown Grants (COVID-19),Closed Business Lockdown Grants (COVID-19),"9,000.00",The Gym Limited
02/06/2021,Restart Grant - Strand Two (COVID-19),Restart Grants (COVID-19),"18,000.00",The Gym Limited
14/04/2021,Restart Grant - Strand Two (COVID-19),Restart Grants (COVID-19),"8,000.00",The Hanbury Arms
14/04/2021,Restart Grant - Strand Two (COVID-19),Restart Grants (COVID-19),"8,000.00",The Hideaway Burton Ltd
04/06/2021,Burton Place Service Contract,Burton Place Car Park,"5,205.39",The Hollins Murray Group Limited
12/05/2021,Local Restrictions Support Grants � Discretionary (COVID-19),Local Restrictions Support Grants (COVID-19),"10,000.00",The Honeypot Coffeeshop Ltd
14/04/2021,Restart Grant - Strand One (COVID-19),Restart Grants (COVID-19),"2,667.00",The Kandy Factory Ltd
12/05/2021,Contributions to Other Bodies,Police Elections,"5,000.00",The Labour Party
14/04/2021,Restart Grant - Strand One (COVID-19),Restart Grants (COVID-19),"2,667.00",The Lobby
14/04/2021,Restart Grant - Strand Two (COVID-19),Restart Grants (COVID-19),"8,000.00",The Loft at Mays Beauty
07/04/2021,Local Restrictions Support Grants � Mandatory Closed (COVID-19),Local Restrictions Support Grants (COVID-19),"2,000.00",The Mellow Dramatics
07/04/2021,Local Restrictions Support Grants � Mandatory Closed (COVID-19),Local Restrictions Support Grants (COVID-19),"3,000.00",The Mellow Dramatics
07/04/2021,Local Restrictions Support Grants � Mandatory Closed (COVID-19),Local Restrictions Support Grants (COVID-19),"3,143.00",The Mellow Dramatics
07/04/2021,Closed Business Lockdown Grants (COVID-19),Closed Business Lockdown Grants (COVID-19),"6,000.00",The Mellow Dramatics
14/04/2021,Restart Grant - Strand Two (COVID-19),Restart Grants (COVID-19),"12,000.00",The Mellow Dramatics
14/04/2021,Restart Grant - Strand Two (COVID-19),Restart Grants (COVID-19),"8,000.00",The Mens Room
14/04/2021,Restart Grant - Strand Two (COVID-19),Restart Grants (COVID-19),"8,000.00",The Messy Hare Gallery
14/04/2021,Restart Grant - Strand Two (COVID-19),Restart Grants (COVID-19),"12,000.00",The Monks Bridge
12/05/2021,Local Restrictions Support Grants � Discretionary (COVID-19),Local Restrictions Support Grants (COVID-19),"10,000.00",The Mug Tug Ltd
14/04/2021,Restart Grant - Strand Two (COVID-19),Restart Grants (COVID-19),"8,000.00",The Needwood Jubilee Hall Committee
23/06/2021,Restart Grant - Strand One (COVID-19),Restart Grants (COVID-19),"2,667.00",The Network House (IT Services) Ltd
02/06/2021,Local Restrictions Support Grants � Discretionary (COVID-19),Local Restrictions Support Grants (COVID-19),"10,000.00",The Network House (IT Services) Ltd
09/06/2021,Restart Grant - Strand Two (COVID-19),Restart Grants (COVID-19),"12,000.00",The Old Bramshall Ltd
09/06/2021,Temporary Staff Costs,Stronger Towns Fund (Interim Head of Regeneration),"1,897.50",The Oyster Partnership Ltd
21/06/2021,Temporary Staff Costs,Stronger Towns Fund (Interim Head of Regeneration),"1,897.50",The Oyster Partnership Ltd
26/05/2021,Temporary Staff Costs,Stronger Towns Fund (Interim Head of Regeneration),"1,897.50",The Oyster Partnership Ltd
26/05/2021,Temporary Staff Costs,Stronger Towns Fund (Interim Head of Regeneration),"1,897.50",The Oyster Partnership Ltd
14/04/2021,Restart Grant - Strand Two (COVID-19),Restart Grants (COVID-19),"8,000.00",The Partners
14/04/2021,Restart Grant - Strand Two (COVID-19),Restart Grants (COVID-19),"8,000.00",The Partners
09/04/2021,Play Equipment,Open Spaces,"3,357.50",The Play Inspection Company Ltd
14/04/2021,Restart Grant - Strand Two (COVID-19),Restart Grants (COVID-19),"8,000.00",The Post Bar & Lounge Ltd
14/04/2021,Restart Grant - Strand Two (COVID-19),Restart Grants (COVID-19),"12,000.00",The Red Carpet Cinema Ltd
14/04/2021,Restart Grant - Strand Two (COVID-19),Restart Grants (COVID-19),"8,000.00",The Roebuck (Draycott) Ltd
14/04/2021,Restart Grant - Strand One (COVID-19),Restart Grants (COVID-19),"2,667.00",The Rustee Skate Shack
14/04/2021,Restart Grant - Strand Two (COVID-19),Restart Grants (COVID-19),"8,000.00",The Sanctuary H&B Ltd
14/04/2021,Restart Grant - Strand Two (COVID-19),Restart Grants (COVID-19),"12,000.00",The Saxon Pub Company
14/04/2021,Restart Grant - Strand Two (COVID-19),Restart Grants (COVID-19),"8,000.00",The Shrew (Staffordshire) Ltd
14/04/2021,Restart Grant - Strand Two (COVID-19),Restart Grants (COVID-19),"8,000.00",The Steeplechase UTT
14/04/2021,Restart Grant - Strand Two (COVID-19),Restart Grants (COVID-19),"8,000.00",The Sweat Bank Ltd
14/04/2021,Restart Grant - Strand One (COVID-19),Restart Grants (COVID-19),"4,000.00",The Trading Station Long Eaton Ltd
14/04/2021,Restart Grant - Strand Two (COVID-19),Restart Grants (COVID-19),"12,000.00",The Uttoexter Golf Club
14/04/2021,Restart Grant - Strand Two (COVID-19),Restart Grants (COVID-19),"12,000.00",The Washlands Sports Club Ltd
14/04/2021,Restart Grant - Strand One (COVID-19),Restart Grants (COVID-19),"2,667.00",The Watch Hospital Ltd
14/04/2021,Local Restrictions Support Grants � Mandatory Closed (COVID-19),Local Restrictions Support Grants (COVID-19),535.71,The White Hart at Uttoxeter Limited
14/04/2021,Local Restrictions Support Grants � Mandatory Closed (COVID-19),Local Restrictions Support Grants (COVID-19),"1,500.00",The White Hart at Uttoxeter Limited
14/04/2021,Local Restrictions Support Grants � Mandatory Closed (COVID-19),Local Restrictions Support Grants (COVID-19),"1,500.00",The White Hart at Uttoxeter Limited
14/04/2021,Local Restrictions Support Grants � Mandatory Closed (COVID-19),Local Restrictions Support Grants (COVID-19),"3,000.00",The White Hart at Uttoxeter Limited
14/04/2021,Local Restrictions Support Grants � Mandatory Closed (COVID-19),Local Restrictions Support Grants (COVID-19),"4,500.00",The White Hart at Uttoxeter Limited
14/04/2021,Local Restrictions Support Grants � Mandatory Closed (COVID-19),Local Restrictions Support Grants (COVID-19),"4,714.00",The White Hart at Uttoxeter Limited
14/04/2021,Closed Business Lockdown Grants (COVID-19),Closed Business Lockdown Grants (COVID-19),"9,000.00",The White Hart at Uttoxeter Limited
02/06/2021,Restart Grant - Strand Two (COVID-19),Restart Grants (COVID-19),"18,000.00",The White Hart at Uttoxeter Limited
14/04/2021,Restart Grant - Strand Two (COVID-19),Restart Grants (COVID-19),"8,000.00",The Willow Holiday Let
28/04/2021,Restart Grant - Strand Two (COVID-19),Restart Grants (COVID-19),"18,000.00",The Winery Ltd
19/04/2021,Other Homeless Prevention,Housing Options,656.94,Theam Security Ltd
19/04/2021,Other Homeless Prevention,Housing Options,681.28,Theam Security Ltd
31/05/2021,Other Homeless Prevention,Housing Options,886.20,Theam Security Ltd
01/04/2021,Subscriptions,Legal Services,"12,681.00",Thomson Reuters (Professional) UK Ltd
07/04/2021,Professional Theatre Fees,Brewhouse Arts Centre,590.00,Tickets.com Ltd
23/04/2021,Consumables & Media Supplies,Brewhouse Arts Centre,"1,140.00",Tickets.com Ltd
07/04/2021,Miscellaneous Licenses,Brewhouse Arts Centre,"1,750.00",Tickets.com Ltd
14/04/2021,Restart Grant - Strand Two (COVID-19),Restart Grants (COVID-19),"8,000.00",Tiger Jack Ltd
28/04/2021,Restart Grant - Strand One (COVID-19),Restart Grants (COVID-19),"2,667.00",Timpson Ltd
28/04/2021,Restart Grant - Strand One (COVID-19),Restart Grants (COVID-19),"4,000.00",Timpson Ltd
02/06/2021,Local Restrictions Support Grants � Discretionary (COVID-19),Local Restrictions Support Grants (COVID-19),"20,000.00",Tiny Toez Childrens Day Nursery
23/06/2021,Local Restrictions Support Grants � Discretionary (COVID-19),Local Restrictions Support Grants (COVID-19),"10,000.00",Titan Tour Productions Limited
14/04/2021,Restart Grant - Strand Two (COVID-19),Restart Grants (COVID-19),"12,000.00",TJR (Burton) Ltd
14/04/2021,Restart Grant - Strand One (COVID-19),Restart Grants (COVID-19),"6,000.00",TL Darby Ltd
14/04/2021,Restart Grant - Strand Two (COVID-19),Restart Grants (COVID-19),"8,000.00",TLZ Hair Design
14/04/2021,Restart Grant - Strand Two (COVID-19),Restart Grants (COVID-19),"8,000.00",Tom Boden Memorial Sports Trust
21/04/2021,Local Restrictions Support Grants � Mandatory Closed (COVID-19),Local Restrictions Support Grants (COVID-19),"2,001.00",Top Aesthetics Ltd
21/04/2021,Local Restrictions Support Grants � Mandatory Closed (COVID-19),Local Restrictions Support Grants (COVID-19),"2,096.00",Top Aesthetics Ltd
21/04/2021,Closed Business Lockdown Grants (COVID-19),Closed Business Lockdown Grants (COVID-19),"4,000.00",Top Aesthetics Ltd
02/06/2021,Restart Grant - Strand Two (COVID-19),Restart Grants (COVID-19),"8,000.00",Top Aesthetics Ltd
14/04/2021,Restart Grant - Strand One (COVID-19),Restart Grants (COVID-19),"4,000.00",Top Furniture Ltd
11/04/2021,Electricity,Burton Retail Market,"1,137.93",Total Gas & Power
12/06/2021,Electricity,Burton Retail Market,"1,427.27",Total Gas & Power
08/05/2021,Electricity,Burton Retail Market,"1,455.50",Total Gas & Power
12/06/2021,Electricity,Facilities Management,"1,965.84",Total Gas & Power
08/05/2021,Electricity,Facilities Management,"2,173.64",Total Gas & Power
11/04/2021,Electricity,Facilities Management,"2,583.80",Total Gas & Power
21/04/2021,Maintenance Agreements,Closed Circuit Cameras,"1,000.00",Total Integrated Solutions Ltd
13/04/2021,Maintenance Agreements,Closed Circuit Cameras,"1,334.58",Total Integrated Solutions Ltd
30/04/2021,Safer Public Spaces (Covid-19),Re-Opening the High Streets (COVID-19),710.00,Touch Broadcasting Ltd
09/06/2021,Restart Grant - Strand Two (COVID-19),Restart Grants (COVID-19),"8,000.00",Tower Brewery Ltd
29/03/2021,Accommodation Costs - B & B/Hotels,Housing Options - Accommodation,720.00,TQ Hotels Ltd
29/03/2021,Accommodation Costs - B & B/Hotels,Next Steps Accommodation Programme (NSAP),720.00,TQ Hotels Ltd
31/05/2021,Accommodation Costs - B & B/Hotels,Housing Options - Accommodation,810.00,TQ Hotels Ltd
29/03/2021,Accommodation Costs - B & B/Hotels,Housing Options - Accommodation,855.00,TQ Hotels Ltd
31/05/2021,Accommodation Costs - B & B/Hotels,Housing Options - Accommodation,"1,215.00",TQ Hotels Ltd
03/05/2021,Accommodation Costs - B & B/Hotels,Housing Options - Accommodation,"1,350.00",TQ Hotels Ltd
31/05/2021,Accommodation Costs - B & B/Hotels,Housing Options - Accommodation,"1,395.00",TQ Hotels Ltd
31/05/2021,Accommodation Costs - B & B/Hotels,Housing Options - Accommodation,"1,395.00",TQ Hotels Ltd
14/04/2021,Restart Grant - Strand One (COVID-19),Restart Grants (COVID-19),"2,667.00",Tracy Lea Weddings
14/04/2021,Restart Grant - Strand One (COVID-19),Restart Grants (COVID-19),"6,000.00",Travel & Home Store Ltd
02/06/2021,Restart Grant - Strand Two (COVID-19),Restart Grants (COVID-19),"12,000.00",Travelodge Hotels Ltd
02/06/2021,Restart Grant - Strand Two (COVID-19),Restart Grants (COVID-19),"12,000.00",Travelodge Hotels Ltd
14/04/2021,Restart Grant - Strand One (COVID-19),Restart Grants (COVID-19),"2,667.00",Treasure the Day
21/04/2021,Local Restrictions Support Grants � Mandatory Closed (COVID-19),Local Restrictions Support Grants (COVID-19),667.00,"Treasurers Account, Winshill Cricket Club"
21/04/2021,Local Restrictions Support Grants � Mandatory Closed (COVID-19),Local Restrictions Support Grants (COVID-19),667.00,"Treasurers Account, Winshill Cricket Club"
21/04/2021,Local Restrictions Support Grants � Mandatory Closed (COVID-19),Local Restrictions Support Grants (COVID-19),"1,334.00","Treasurers Account, Winshill Cricket Club"
21/04/2021,Local Restrictions Support Grants � Mandatory Closed (COVID-19),Local Restrictions Support Grants (COVID-19),"2,001.00","Treasurers Account, Winshill Cricket Club"
21/04/2021,Local Restrictions Support Grants � Mandatory Closed (COVID-19),Local Restrictions Support Grants (COVID-19),"2,096.00","Treasurers Account, Winshill Cricket Club"
21/04/2021,Closed Business Lockdown Grants (COVID-19),Closed Business Lockdown Grants (COVID-19),"4,000.00","Treasurers Account, Winshill Cricket Club"
02/06/2021,Restart Grant - Strand Two (COVID-19),Restart Grants (COVID-19),"8,000.00","Treasurers Account, Winshill Cricket Club"
08/04/2021,Rents,Housing Options - Accommodation,"1,082.04",Trent & Dove Housing
08/04/2021,Rents,Housing Options,"1,274.00",Trent & Dove Housing
08/04/2021,Rents,Housing Options - Accommodation,"2,575.00",Trent & Dove Housing
14/04/2021,Restart Grant - Strand One (COVID-19),Restart Grants (COVID-19),"4,000.00",Trent Furnishing Co Ltd
28/04/2021,Restart Grant - Strand One (COVID-19),Restart Grants (COVID-19),"2,667.00",Trent Kitchens Ltd
21/04/2021,Local Restrictions Support Grants � Mandatory Closed (COVID-19),Local Restrictions Support Grants (COVID-19),"1,334.00",Trent Rowing Club
21/04/2021,Local Restrictions Support Grants � Mandatory Closed (COVID-19),Local Restrictions Support Grants (COVID-19),"2,001.00",Trent Rowing Club
21/04/2021,Local Restrictions Support Grants � Mandatory Closed (COVID-19),Local Restrictions Support Grants (COVID-19),"2,096.00",Trent Rowing Club
21/04/2021,Closed Business Lockdown Grants (COVID-19),Closed Business Lockdown Grants (COVID-19),"4,000.00",Trent Rowing Club
02/06/2021,Restart Grant - Strand Two (COVID-19),Restart Grants (COVID-19),"8,000.00",Trent Rowing Club
14/04/2021,Restart Grant - Strand One (COVID-19),Restart Grants (COVID-19),"2,667.00",Trent Trophies
14/04/2021,Restart Grant - Strand One (COVID-19),Restart Grants (COVID-19),"2,667.00",Trent Vehicle Solutions
14/04/2021,Restart Grant - Strand Two (COVID-19),Restart Grants (COVID-19),"8,000.00",Trentside Cricket Club
14/04/2021,Restart Grant - Strand Two (COVID-19),Restart Grants (COVID-19),"8,000.00",Trojan Horse Pub Co Limited
30/04/2021,Other Equipment,Closed Circuit Cameras,503.10,TSC Signs Ltd
14/04/2021,Restart Grant - Strand Two (COVID-19),Restart Grants (COVID-19),"12,000.00",TTG Inns Ltd
14/04/2021,Restart Grant - Strand Two (COVID-19),Restart Grants (COVID-19),"8,000.00",Tutbury Castle Trading Ltd
14/04/2021,Restart Grant - Strand Two (COVID-19),Restart Grants (COVID-19),"8,000.00",Tutbury Club Ltd
08/04/2021,Wasps Expenditure,Councillors Community Fund,"1,000.00",Tutbury Cricket Club
14/04/2021,Restart Grant - Strand Two (COVID-19),Restart Grants (COVID-19),"12,000.00",Tutbury Ltd
14/04/2021,Restart Grant - Strand One (COVID-19),Restart Grants (COVID-19),"2,667.00",Tutbury Models
14/04/2021,Restart Grant - Strand One (COVID-19),Restart Grants (COVID-19),"2,667.00",Tutbury Present Co Ltd
14/04/2021,Restart Grant - Strand Two (COVID-19),Restart Grants (COVID-19),"8,000.00",Tutbury Village Hall
14/04/2021,Restart Grant - Strand One (COVID-19),Restart Grants (COVID-19),"2,667.00",Twine Clothing Ltd
14/04/2021,Restart Grant - Strand One (COVID-19),Restart Grants (COVID-19),"2,667.00",U Phone Solutions
14/04/2021,Restart Grant - Strand Two (COVID-19),Restart Grants (COVID-19),"12,000.00",UK Hairdressers 2019 Limited
14/04/2021,Restart Grant - Strand One (COVID-19),Restart Grants (COVID-19),"2,667.00",Ultimarisa(2016)Ltd
14/04/2021,Restart Grant - Strand One (COVID-19),Restart Grants (COVID-19),"4,000.00",Ultimarisa(2016)Ltd
14/04/2021,Restart Grant - Strand Two (COVID-19),Restart Grants (COVID-19),"8,000.00",Ultimate Party Zone Ltd
14/04/2021,Restart Grant - Strand One (COVID-19),Restart Grants (COVID-19),"2,667.00",Unique Fashions
16/02/2021,Contributions to Other Bodies,Arts Grant Aid Scheme,"3,000.00",University of Derby Theatre Ltd
14/04/2021,Restart Grant - Strand Two (COVID-19),Restart Grants (COVID-19),"12,000.00",Urban Chef (Burton) Ltd
14/04/2021,Restart Grant - Strand Two (COVID-19),Restart Grants (COVID-19),"8,000.00",Utopia
09/06/2021,Local Restrictions Support Grants � Mandatory Closed (COVID-19),Local Restrictions Support Grants (COVID-19),"2,096.00",Uttoxeter Cricket Club
28/04/2021,Restart Grant - Strand Two (COVID-19),Restart Grants (COVID-19),"8,000.00",Uttoxeter Cricket Club
14/04/2021,Restart Grant - Strand Two (COVID-19),Restart Grants (COVID-19),"8,000.00",Uttoxeter Heath Community Centre
14/04/2021,Local Restrictions Support Grants � Mandatory Closed (COVID-19),Local Restrictions Support Grants (COVID-19),"2,001.00",Uttoxeter Shoe Repairs Ltd
14/04/2021,Local Restrictions Support Grants � Mandatory Closed (COVID-19),Local Restrictions Support Grants (COVID-19),"2,096.00",Uttoxeter Shoe Repairs Ltd
02/06/2021,Restart Grant - Strand One (COVID-19),Restart Grants (COVID-19),"2,667.00",Uttoxeter Shoe Repairs Ltd
14/04/2021,Closed Business Lockdown Grants (COVID-19),Closed Business Lockdown Grants (COVID-19),"4,000.00",Uttoxeter Shoe Repairs Ltd
31/03/2021,Exhibitions/Events,Horticultural Resource Centre,"2,842.39",Uttoxeter Town Council
14/04/2021,Restart Grant - Strand Two (COVID-19),Restart Grants (COVID-19),"8,000.00",V Kundra Veneziaa Ltd
14/04/2021,Restart Grant - Strand Two (COVID-19),Restart Grants (COVID-19),"8,000.00",V29 V Green
14/04/2021,Restart Grant - Strand Two (COVID-19),Restart Grants (COVID-19),"8,000.00",Vanessa Davies Ltd
14/04/2021,Restart Grant - Strand One (COVID-19),Restart Grants (COVID-19),"4,000.00",Vayper Ltd
14/04/2021,Restart Grant - Strand Two (COVID-19),Restart Grants (COVID-19),"8,000.00",Vestry Hair & Beauty Ltd
12/05/2021,Local Restrictions Support Grants � Discretionary (COVID-19),Local Restrictions Support Grants (COVID-19),"10,000.00",Victory Lane Awards
30/04/2021,Third Party Payments,Recycling,598.80,Vital Earth GB Ltd
31/03/2021,Third Party Payments,Recycling,811.40,Vital Earth GB Ltd
14/04/2021,Mobile Telephones,ICT,628.96,Vodafone Limited
